Workbook

Sheet Cover
A1: =RIGHT(CELL("filename", $A$1), LEN(CELL("filename", $A$1)) - SEARCH("]", CELL("filename", $A$1))) -> Cover
C3: Model name: | D3: Grants and Contrinutions Feeder Model
C4: Version number: | D4: =LEFT(D5, FIND(".", D5, 1) - 1) -> Grants and Contributions model_TMS_ST_DD
C5: Filename: | D5: =MID(CELL("filename"), FIND("[", CELL("filename"), 1) + 1, FIND("]", CELL("filename"), 1) - FIND("[", CELL("filename"), 1) - 1) -> Grants and Contributions model_TMS_ST_DD.xlsm
C6: Date: | D6: 2019-04-16
C7: Author: | D7: Ofwat
C8: Author contact information: | D8: pr19@ofwat.gov.uk
C11: Summary of model: | D11: This model calculates the capex and opex, price control and non-price control Grants & Conbtributions for input to the financial model.
C14: Known limitations: | D14: There are a number of areas of further work to be carried out in the model. These are listed below:
D16: Issue | F16: Details | G16: Model link
D17: No known issues | F17: not applicable | G17: not applicable
D19: The model has been subject to internal Ofwat quality assurance.
D20: The model is not a policy statement.
D21: Users should refer to the "Delivering Water 2020: Our final methodology for the 2019 price review" for information on proposed policy.
C23: Feedback: | D23: We would welcome feedback on this PR19 model. Please send any feedback to the following email address.
D24: pr19@ofwat.gov.uk
C26: Error check status: | D26: =Check!$F$2 -> 0 | E26: =IF(D26 = 0, "No error checks", "Error checks active") -> No error checks
D27: =Check!$F$3 -> 44 | E27: =IF(D27 = 0, "No output changes", "Output changes") -> Output changes
C29: Instructions: | D29: A model 'User guide' is present in the model to help the user in operating the model.
D30: Follow link >> | E30: Goto User Guide
A32: End of sheet

Sheet User Guide
A1: =RIGHT(CELL("filename", $A$1), LEN(CELL("filename", $A$1)) - SEARCH("]", CELL("filename", $A$1))) -> User Guide
A3: GENERIC MODEL DESIGN
F5: Logic Flow
H34: NOTES:
H35: Wastewater Network Totex is for new developments and growth.
H36: There are no Bioresources inputs for new developments so we can assume that it is all wastewater network.
H38: Water Resources Totex is for new developments only.
H39: Water Network Totex is for both new developments and new connections so there are 2 recovery rates and the calculations are repeated.
A43: APPROACH
F45: General approach to grants and contributions
G46: Companies receive grants and contributions from developers towards the costs of ‘new developments’, expenditure to reinforce the network, and ‘new connections’, expenditure to connect a property, for example the meter and connection pipe.
G48: We would expect recovery rates for connections to be close to 100% as these costs should be recoverable by companies rather than being funded by general customers.
G50: For wastewater new developments we use a rate of 100% based on our understanding of historical practice in the industry and this is broadly supported by company business plans.
G52: For diversions activities (both water and wastewater), where companies move their assets to make way for new infrastructure, we have used the company view of the associated income and assumed that this represents 100% of the costs.
G54: Tax impact; We have not updated the inputs in the tax calculation for our view of grants and contributions. We expect companies to provide an updated APP29 table reflecting our assumed recovery rates as part of their representations on the draft determination.
A56: HOW TO RUN THE MODEL
G58: Step 1 - | H58: Load F_Inputs from Fountain for the company to be modelled
G60: Step 2 - | H60: Go to the InpOverride sheet and apply any company specific overrides
G62: Step 3 - | H62: Press Ctrl-Alt-F9 to recalculate the workbook
G64: Step 4 - | H64: Upload F_Outputs to Fountain
A67: SHEET TABS
H69: Light Yellow | J69: Input sheets
H71: No colour (default Excel tab colour) | J71: Calculation and documentation sheets
H73: Pale Blue | J73: Key output sheets
H75: Turquoise | J75: Quality control sheets
H77: Yellow | J77: To be completed, temporary, restructured, or deleted
A80: COLOUR
B82: Font colour only
H83: Blue font | J83: Imported from another sheet
H85: Red font | J85: Exported to another sheet (except from Input sheets)
H87: Black font | J87: Within sheet link or calculation
B89: Font + shade combinations
H90: Black font + Light Yellow shade | J90: Inputs
H92: Black font + Light Grey shade on entire row | J92: Within-worksheet counter-flow
H94: Blue font + Light Grey shade on entire row | J94: Between-worksheet counter-flow
H96: Empty Cell with Light Grey shade | J96: Empty cells being deliberately referenced
B98: Other
H99: Black font + Pale Blue shade on entire row | J99: Section separator
H101: Light Turquoise shade | J101: Stored/dead/hard coded outputs
H103: Tan shade | J103: Pre-model time line actuals
H105: Yellow shade | J105: Work in progress / temporary
H107: Lime shade | J107: Values or logic to be reviewed
B109: Error checks & alerts
H110: Green shade | J110: OK
H112: Red shade | J112: Error
H114: Gold shade | J114: Alert
A117: ABBREVIATIONS
H119: £ | I119: Great Britain Pound
H120: CALC | I120: Calculation
H121: m | I121: Million
H122: na | I122: Not available / applicable
H123: Opex | I123: Operating expenditure
H124: POS | I124: Positive
H125: Totex | I125: Total expenditure
A127: NAMES
H129: CHK_TOL
H130: CHK_TOL_TAX
H131: LIVE_RESULTS
H132: START_TRACK_STORE
H133: TRACK_ACTIVE
H134: TRACK_COMMENT_START
H135: TRK_COMMENT
H136: TRK_TOL
A138: LIST OF MACROS USED
B140: Store track results
H141: Store track results | L141: This macro helps in storing the results/outputs after any change is made in the model on "Track" sheet.
L142: These stored results then can be used to analyse the impact of any change made in the model.
L143: Goto macro
B145: Save as PDF
H146: Save as PDF | L146: This macro helps in saving any worksheet or chart in PDF format.
A151: End of sheet

Sheet Adjustments Log
A1: =RIGHT(CELL("filename", $A$1), LEN(CELL("filename", $A$1)) - SEARCH("]", CELL("filename", $A$1))) -> Adjustments Log
C5: This sheet logs any company specific overrides used in this feeder model.
B7: Company Specific Corrections
C9: There are no company specific overrides
B13: 1 | C13: Apply overrides | D13: BoN | E13: Sheet | F13: 2018-19 | G13: 2019-2020 | H13: 2020-21 | I13: 2021-22 | J13: 2022-23 | K13: 2023-24 | L13: 2024-25

Sheet Inputs >>

Sheet F_Inputs
C1: PR19_GC_In
A2: Acronym | B2: Reference | C2: Item description | D2: Unit | E2: Model | F2: 2020-21 | G2: 2021-22 | H2: 2022-23 | I2: 2023-24 | J2: 2024-25
B4: BC11271IN | C4: Connection charges (s45) | D4: £m | E4: Price Review 2019 | F4: 24.3707282 | G4: 23.43771491 | H4: 22.2605482 | I4: 22.01654114 | J4: 21.9618946
B5: BC11270IN | C5: Infrastructure charge receipts (s146) | D5: £m | E5: Price Review 2019 | F5: -7.890074308 | G5: -7.557520945 | H5: -7.115321065 | I5: -6.981203106 | J5: -6.906554414
B6: BC11272IN | C6: Requisitioned mains (s43, s55 & s56) | D6: £m | E6: Price Review 2019 | F6: 7.104782138 | G6: 6.848708904 | H6: 6.522714977 | I6: 6.462724079 | J6: 6.45670342
B7: BA1086PC | C7: Grants and contributions received ~ wholesale water service - Other contributions (price control) | D7: £m | E7: Price Review 2019 | F7: 2.316558546 | G7: 2.22375369 | H7: 2.106310752 | I7: 2.083062733 | J7: 2.078910888
B8: BC11273IN | C8: Diversions (s185) | D8: £m | E8: Price Review 2019 | F8: 3.710914711 | G8: 3.58582009 | H8: 3.425915594 | I8: 3.398009796 | J8: 3.39689992
B9: BA1086NPC | C9: Grants and contributions received ~ wholesale water service - Other contributions (non-price control) | D9: £m | E9: Price Review 2019 | F9: 14.27957581 | G9: 13.24026443 | H9: 8.941083708 | I9: 8.017404892 | J9: 5.31266027
B10: BC11370IN | C10: Infrastructure charge receipts (s146) | D10: £m | E10: Price Review 2019 | F10: 13.31702526 | G10: 13.06461251 | H10: 11.42207695 | I10: 11.65089173 | J10: 11.25046768
B11: BC11372IN | C11: Requisitioned sewers (s100) | D11: £m | E11: Price Review 2019 | F11: 3.309437795 | G11: 3.252062232 | H11: 2.890136643 | I11: 2.956277373 | J11: 2.888752198
B12: BA2086PC | C12: Grants and contributions received ~ wholesale wastewater service - Other contributions (price control) | D12: £m | E12: Price Review 2019 | F12: 0.7295495175 | G12: 0.7372357685 | H12: 0.7444577538 | I12: 0.7517563592 | J12: 0.7591265196
B13: BC11373IN | C13: Diversions (s185) | D13: £m | E13: Price Review 2019 | F13: 1.822015786 | G13: 1.801028098 | H13: 1.647126818 | I13: 1.679744627 | J13: 1.654170668
B14: BA2086NPC | C14: Grants and contributions received ~ wholesale wastewater service - Other contributions (non-price control) | D14: £m | E14: Price Review 2019 | F14: 29.7885588 | G14: 27.03503791 | H14: 19.035014 | I14: 15.50145508 | J14: 10.93811581
B15: W3009WR | C15: New developments - Water resources | D15: £m | E15: Price Review 2019 | F15: 0 | G15: 0 | H15: 0 | I15: 0 | J15: 0
B16: W3009RWD | C16: New developments - Raw water distribution | D16: £m | E16: Price Review 2019 | F16: 0 | G16: 0 | H16: 0 | I16: 0 | J16: 0
B17: W3009WT | C17: New developments - Water treatment | D17: £m | E17: Price Review 2019 | F17: 0 | G17: 0 | H17: 0 | I17: 0 | J17: 0
B18: W3009TWD | C18: New developments - Treated water distribution | D18: £m | E18: Price Review 2019 | F18: 16.2393271 | G18: 29.32824226 | H18: 33.07116331 | I18: 30.74416918 | J18: 27.08511838
B19: W3009CAW | C19: New developments - Total | D19: £m | E19: Price Review 2019 | F19: 16.2393271 | G19: 29.32824226 | H19: 33.07116331 | I19: 30.74416918 | J19: 27.08511838
B20: WS2004CAW | C20: New connections element of new development (CPs, meters) - Total | D20: £m | E20: Price Review 2019 | F20: 25.35103504 | G20: 24.31059703 | H20: 23.00590063 | I20: 22.71571992 | J20: 22.63141916
B21: WS2019WR | C21: Enhancement expenditure by purpose ~ operating - New developments - Water resources | D21: £m | E21: Price Review 2019 | F21: 0 | G21: 0 | H21: 0 | I21: 0 | J21: 0
B22: WS2019RWD | C22: Enhancement expenditure by purpose ~ operating - New developments - Raw water distribution | D22: £m | E22: Price Review 2019 | F22: 0 | G22: 0 | H22: 0 | I22: 0 | J22: 0
B23: WS2019WT | C23: Enhancement expenditure by purpose ~ operating - New developments - Water treatment | D23: £m | E23: Price Review 2019 | F23: 0 | G23: 0 | H23: 0 | I23: 0 | J23: 0
B24: WS2019TWD | C24: Enhancement expenditure by purpose ~ operating - New developments - Treated water distribution | D24: £m | E24: Price Review 2019 | F24: 0 | G24: 0.0391074727 | H24: 0.0387183369 | I24: 0.0383616363 | J24: 0.2682213979
B25: WS2019CAW | C25: Enhancement expenditure by purpose ~ operating - New developments - Total | D25: £m | E25: Price Review 2019 | F25: 0 | G25: 0.0391074727 | H25: 0.0387183369 | I25: 0.0383616363 | J25: 0.2682213979
B26: WS2020CAW | C26: Enhancement expenditure by purpose ~ operating - New connections element of new development (CPs, meters) - Total | D26: £m | E26: Price Review 2019 | F26: 0 | G26: 0 | H26: 0 | I26: 0 | J26: 0
B27: S3020CAS | C27: New development and growth - Total | D27: £m | E27: Price Review 2019 | F27: 34.18882295 | G27: 34.43888323 | H27: 20.28197982 | I27: 20.5759668 | J27: 21.38957367
B28: S3021CAS | C28: Growth at sewage treatment works (excluding sludge treatment) - Total | D28: £m | E28: Price Review 2019 | F28: 42.94581086 | G28: 85.98567569 | H28: 96.2147494 | I28: 88.29818285 | J28: 70.47366601
B29: S3023CAS | C29: Reduce flooding risk for properties - Total | D29: £m | E29: Price Review 2019 | F29: 25.85509043 | G29: 16.39033641 | H29: 12.21088648 | I29: 11.25864821 | J29: 12.08276493
B30: WWS2033CAS | C30: Enhancement expenditure by purpose - operating - New development and growth - Total | D30: £m | E30: Price Review 2019 | F30: 1.630857887 | G30: 1.629670716 | H30: 1.624620885 | I30: 2.169558273 | J30: 2.717710401
B31: WS1011CAW | C31: Total operating expenditure - Total | D31: £m | E31: Price Review 2019 | F31: 464.5130249 | G31: 456.088723 | H31: 439.222679 | I31: 425.1872295 | J31: 423.2369584
B32: WWS1011CAS | C32: Operating expenditure - Total operating expenditure - Total | D32: £m | E32: Price Review 2019 | F32: 381.5740786 | G32: 362.7520125 | H32: 358.6704209 | I32: 354.6169606 | J32: 354.9849601
B33: A19048WR | C33: Water resources operating expenditure grants and contributions (price control) | D33: £m | E33: Price Review 2019 | F33: 0 | G33: 0 | H33: 0 | I33: 0 | J33: 0
B34: A19049WR | C34: Water resources capital expenditure grants and contributions (price control) | D34: £m | E34: Price Review 2019 | F34: 0 | G34: 0 | H34: 0 | I34: 0 | J34: 0
B35: A19052WR | C35: Water resources operating expenditure grants and contributions (non-price control) | D35: £m | E35: Price Review 2019 | F35: 0 | G35: 0 | H35: 0 | I35: 0 | J35: 0
B36: A19053WR | C36: Water resources capital expenditure grants and contributions (non-price control) | D36: £m | E36: Price Review 2019 | F36: 0 | G36: 0 | H36: 0 | I36: 0 | J36: 0
B37: A19052WN | C37: Water network operating expenditure grants and contributions (price control) | D37: £m | E37: Price Review 2019 | F37: 2.509184295 | G37: 2.535620089 | H37: 2.560459105 | I37: 2.585561645 | J37: 2.610910289
B38: A19053WN | C38: Water network capital expenditure grants and contributions (price control) | D38: £m | E38: Price Review 2019 | F38: 27.10372499 | G38: 26.00285656 | H38: 24.63970935 | I38: 24.393573 | J38: 24.37694412
B39: A19054WN | C39: Water network operating expenditure grants and contributions (non-price control) | D39: £m | E39: Price Review 2019 | F39: 0 | G39: 0 | H39: 0 | I39: 0 | J39: 0
B40: A19055WN | C40: Water network capital expenditure grants and contributions (non-price control) | D40: £m | E40: Price Review 2019 | F40: 14.27957581 | G40: 13.24026443 | H40: 8.941083708 | I40: 8.017404892 | J40: 5.31266027
B41: A19052WWN | C41: Wastewater network operating expenditure grants and contributions (price control) | D41: £m | E41: Price Review 2019 | F41: 0.4057306099 | G41: 0.4183082588 | H41: 0.3880924366 | I41: 0.3918972644 | J41: 0.3957393945
B42: A19053WWN | C42: Wastewater network capital expenditure grants and contributions (price control) | D42: £m | E42: Price Review 2019 | F42: 18.77229775 | G42: 18.43663035 | H42: 16.31570573 | I42: 16.64677283 | J42: 16.15677768
B43: A19054WWN | C43: Wastewater network operating expenditure grants and contributions (non-price control) | D43: £m | E43: Price Review 2019 | F43: 0.721298862 | G43: 0.7436591267 | H43: 0.6899421095 | I43: 0.6967062479 | J43: 0.7035367013
B44: A19055WWN | C44: Wastewater network capital expenditure grants and contributions (non-price control) | D44: £m | E44: Price Review 2019 | F44: 29.06725994 | G44: 26.29137878 | H44: 18.34507189 | I44: 14.80474883 | J44: 10.23457911
B45: A19052BIO | C45: Bioresources operating expenditure grants and contributions (price control) | D45: £m | E45: Price Review 2019 | F45: 0 | G45: 0 | H45: 0 | I45: 0 | J45: 0
B46: A19053BIO | C46: Bioresources capital expenditure grants and contributions (price control) | D46: £m | E46: Price Review 2019 | F46: 0 | G46: 0 | H46: 0 | I46: 0 | J46: 0
B47: A19054BIO | C47: Bioresources operating expenditure grants and contributions (non-price control) | D47: £m | E47: Price Review 2019 | F47: 0 | G47: 0 | H47: 0 | I47: 0 | J47: 0
B48: A19055BIO | C48: Bioresources capital expenditure grants and contributions (non-price control) | D48: £m | E48: Price Review 2019 | F48: 0 | G48: 0 | H48: 0 | I48: 0 | J48: 0
B49: A19052_DMMY | C49: Dummy operating expenditure grants and contributions (price control) | D49: £m | E49: Price Review 2019 | F49: 0 | G49: 0 | H49: 0 | I49: 0 | J49: 0
B50: A19053_DMMY | C50: Dummy capital expenditure grants and contributions (price control) | D50: £m | E50: Price Review 2019 | F50: 0 | G50: 0 | H50: 0 | I50: 0 | J50: 0
B51: A19054_DMMY | C51: Dummy operating expenditure grants and contributions (non-price control) | D51: £m | E51: Price Review 2019 | F51: 0 | G51: 0 | H51: 0 | I51: 0 | J51: 0
B52: A19055_DMMY | C52: Dummy capital expenditure grants and contributions (non-price control) | D52: £m | E52: Price Review 2019 | F52: 3.140224574 | G52: 3.277357328 | H52: 4.91170068 | I52: 164.2056724 | J52: 169.0563089
B53: PR19GC0021 | C53: OFWAT view of G&C recovery rate - new developments - Water | D53: % | E53: Price Review 2019 | F53: 0 | G53: 0 | H53: 0 | I53: 0 | J53: 0
B54: PR19GC0022 | C54: OFWAT view of G&C recovery rate - new connections - Water | D54: % | E54: Price Review 2019 | F54: 1 | G54: 1 | H54: 1 | I54: 1 | J54: 1
B55: PR19GC0023 | C55: OFWAT view of G&C recovery rate - new developments - Wastewater | D55: % | E55: Price Review 2019 | F55: 1 | G55: 1 | H55: 1 | I55: 1 | J55: 1
B56: PR19GC0036 | C56: OFWAT view of G&C recovery rate - diversions - Water | D56: % | E56: Price Review 2019 | F56: 1 | G56: 1 | H56: 1 | I56: 1 | J56: 1
B57: PR19GC0037 | C57: OFWAT view of G&C recovery rate - diversions - Wastewater | D57: % | E57: Price Review 2019 | F57: 1 | G57: 1 | H57: 1 | I57: 1 | J57: 1
B58: PR19GC0040 | C58: Wastewater efficiency challenge - opex | D58: % | E58: Price Review 2019 | F58: 0.3403678112 | G58: 0.3403678112 | H58: 0.3403678112 | I58: 0.3403678112 | J58: 0.3403678112
B59: PR19GC0042 | C59: Wastewater efficiency challenge - capex | D59: % | E59: Price Review 2019 | F59: 0.3403678112 | G59: 0.3403678112 | H59: 0.3403678112 | I59: 0.3403678112 | J59: 0.3403678112
B60: PR19GC0044 | C60: Water efficiency challenge - opex | D60: % | E60: Price Review 2019 | F60: 0.1390638769 | G60: 0.1390638769 | H60: 0.1390638769 | I60: 0.1390638769 | J60: 0.1390638769
B61: PR19GC0046 | C61: Water efficiency challenge - capex | D61: % | E61: Price Review 2019 | F61: 0.1390638769 | G61: 0.1390638769 | H61: 0.1390638769 | I61: 0.1390638769 | J61: 0.1390638769

Sheet InpOverride
A1: =RIGHT(CELL("filename", $A$1), LEN(CELL("filename", $A$1)) - SEARCH("]", CELL("filename", $A$1))) -> InpOverride | F1: =IF(InpActive!$F$163 + InpOverride!$F$77 > 0, "Overrides", "No Overrides") -> No Overrides
E2: =Time!E$25 -> Model period ending | F2: =Check!$F$11 -> 0 | G2: Checks | J2: =Time!J$25 -> 2019-03-31 | K2: =Time!K$25 -> 2020-03-31 | L2: =Time!L$25 -> 2021-03-31 | M2: =Time!M$25 -> 2022-03-31 | N2: =Time!N$25 -> 2023-03-31 | O2: =Time!O$25 -> 2024-03-31 | P2: =Time!P$25 -> 2025-03-31 | Q2: =Time!Q$25 -> 2026-03-31 | R2: =Time!R$25 -> 2027-03-31 | S2: =Time!S$25 -> 2028-03-31 | T2: =Time!T$25 -> 2029-03-31 | U2: =Time!U$25 -> 2030-03-31
E3: =Time!E$104 -> Timeline label | F3: =Check!$F$28 -> 44 | G3: Track chgs | J3: =Time!J$104 -> Pre-Fcst | K3: =Time!K$104 -> Pre-Fcst | L3: =Time!L$104 -> Forecast | M3: =Time!M$104 -> Forecast | N3: =Time!N$104 -> Forecast | O3: =Time!O$104 -> Forecast | P3: =Time!P$104 -> Forecast | Q3: =Time!Q$104 -> Post-Fcst | R3: =Time!R$104 -> Post-Fcst | S3: =Time!S$104 -> Post-Fcst | T3: =Time!T$104 -> Post-Fcst | U3: =Time!U$104 -> Post-Fcst
E4: =Time!E$127 -> Financial year ending | J4: =Time!J$127 -> 2019 | K4: =Time!K$127 -> 2020 | L4: =Time!L$127 -> 2021 | M4: =Time!M$127 -> 2022 | N4: =Time!N$127 -> 2023 | O4: =Time!O$127 -> 2024 | P4: =Time!P$127 -> 2025 | Q4: =Time!Q$127 -> 2026 | R4: =Time!R$127 -> 2027 | S4: =Time!S$127 -> 2028 | T4: =Time!T$127 -> 2029 | U4: =Time!U$127 -> 2030
D5: Input references | E5: =Time!E$10 -> Model column counter | F5: Constant | G5: Unit | H5: Total | J5: =Time!J$10 -> 1 | K5: =Time!K$10 -> 2 | L5: =Time!L$10 -> 3 | M5: =Time!M$10 -> 4 | N5: =Time!N$10 -> 5 | O5: =Time!O$10 -> 6 | P5: =Time!P$10 -> 7 | Q5: =Time!Q$10 -> 8 | R5: =Time!R$10 -> 9 | S5: =Time!S$10 -> 10 | T5: =Time!T$10 -> 11 | U5: =Time!U$10 -> 12
A8: OVERRIDE ON INPUTS
B10: Efficiency challenge
E11: =F_Inputs!C58 -> Wastewater efficiency challenge - opex | F11: =F_Inputs!F58 -> 0.3403678112 | G11: =F_Inputs!D58 -> %
E12: =E11 & " - override" -> Wastewater efficiency challenge - opex - override | G12: %
E13: =E11 & " - (post override)" -> Wastewater efficiency challenge - opex - (post override) | F13: =IF(F12 = "", F11, F12) -> 0.3403678112 | G13: %
E15: =F_Inputs!C59 -> Wastewater efficiency challenge - capex | F15: =F_Inputs!F59 -> 0.3403678112 | G15: =F_Inputs!D59 -> %
E16: =E15 & " - override" -> Wastewater efficiency challenge - capex - override | G16: %
E17: =E15 & " - (post override)" -> Wastewater efficiency challenge - capex - (post override) | F17: =IF(F16 = "", F15, F16) -> 0.3403678112 | G17: %
E19: =F_Inputs!C60 -> Water efficiency challenge - opex | F19: =F_Inputs!F60 -> 0.1390638769 | G19: =F_Inputs!D60 -> %
E20: =E19 & " - override" -> Water efficiency challenge - opex - override | G20: %
E21: =E19 & " - (post override)" -> Water efficiency challenge - opex - (post override) | F21: =IF(F20 = "", F19, F20) -> 0.1390638769 | G21: %
E23: =F_Inputs!C61 -> Water efficiency challenge - capex | F23: =F_Inputs!F61 -> 0.1390638769 | G23: =F_Inputs!D61 -> %
E24: =E23 & " - override" -> Water efficiency challenge - capex - override | G24: %
E25: =E23 & " - (post override)" -> Water efficiency challenge - capex - (post override) | F25: =IF(F24 = "", F23, F24) -> 0.1390638769 | G25: %
B27: Diversions
B28: We would expect expenditure on diversions to be recovered in full, so we treat them separately to other G&C and apply 100% revovery rate
B29: Companies should record diversions on App28 line 11 & 27 but may have also used App28 line 12 & 28 (Other contributions - non price control)
B30: We haven't requested the opex/capex split for diversions so we assume it's opex
E32: Diversion Overrides active switch | F32: 1 | G32: 1 = Active, 0 = Inactive
B34: Assume diversions expenditure equals diversions G&C since 100% recovery rate expected
D35: =F_Inputs!B$8 -> BC11273IN | E35: =F_Inputs!C$8 & " Water" -> Diversions (s185) Water | G35: £m | L35: =F_Inputs!F$8 -> 3.710914711 | M35: =F_Inputs!G$8 -> 3.58582009 | N35: =F_Inputs!H$8 -> 3.425915594 | O35: =F_Inputs!I$8 -> 3.398009796 | P35: =F_Inputs!J$8 -> 3.39689992 | Q35: =F_Inputs!K$8 -> 0 | R35: =F_Inputs!L$8 -> 0 | S35: =F_Inputs!M$8 -> 0 | T35: =F_Inputs!N$8 -> 0 | U35: =F_Inputs!O$8 -> 0
E36: ="Diversions - opex - water - override" -> Diversions - opex - water - override | G36: £m
E37: Diversions - opex - water - post override | G37: £m | J37: =IF(AND($F$32 = 1, J36 <> ""), J36, J35) -> 0 | K37: =IF(AND($F$32 = 1, K36 <> ""), K36, K35) -> 0 | L37: 3.710914711 | M37: 3.58582009 | N37: 3.425915594 | O37: 3.398009796 | P37: 3.39689992 | Q37: 0 | R37: 0 | S37: 0 | T37: 0 | U37: 0
E39: Diversions - capex - water | G39: £m | J39: 0 | K39: 0 | L39: 0 | M39: 0 | N39: 0 | O39: 0 | P39: 0 | Q39: 0 | R39: 0 | S39: 0 | T39: 0 | U39: 0
E40: ="Diversions - capex - water - override" -> Diversions - capex - water - override | G40: £m
E41: Diversions - capex - water - post override | G41: £m | J41: =IF(AND($F$32 = 1, J40 <> ""), J40, J39) -> 0 | K41: =IF(AND($F$32 = 1, K40 <> ""), K40, K39) -> 0 | L41: =IF(AND($F$32 = 1, L40 <> ""), L40, L39) -> 0 | M41: =IF(AND($F$32 = 1, M40 <> ""), M40, M39) -> 0 | N41: =IF(AND($F$32 = 1, N40 <> ""), N40, N39) -> 0 | O41: =IF(AND($F$32 = 1, O40 <> ""), O40, O39) -> 0 | P41: =IF(AND($F$32 = 1, P40 <> ""), P40, P39) -> 0 | Q41: =IF(AND($F$32 = 1, Q40 <> ""), Q40, Q39) -> 0 | R41: =IF(AND($F$32 = 1, R40 <> ""), R40, R39) -> 0 | S41: =IF(AND($F$32 = 1, S40 <> ""), S40, S39) -> 0 | T41: =IF(AND($F$32 = 1, T40 <> ""), T40, T39) -> 0 | U41: =IF(AND($F$32 = 1, U40 <> ""), U40, U39) -> 0
D43: =F_Inputs!B$9 -> BA1086NPC | E43: =F_Inputs!C$9 -> Grants and contributions received ~ wholesale water service - Other contributions (non-price control) | G43: £m | L43: =F_Inputs!F$9 -> 14.27957581 | M43: =F_Inputs!G$9 -> 13.24026443 | N43: =F_Inputs!H$9 -> 8.941083708 | O43: =F_Inputs!I$9 -> 8.017404892 | P43: =F_Inputs!J$9 -> 5.31266027 | Q43: =F_Inputs!K$9 -> 0 | R43: =F_Inputs!L$9 -> 0 | S43: =F_Inputs!M$9 -> 0 | T43: =F_Inputs!N$9 -> 0 | U43: =F_Inputs!O$9 -> 0
E44: ="G&C received - water - other contributions (non-price control) - override" -> G&C received - water - other contributions (non-price control) - override | G44: £m
E45: ="G&C received - water - other contributions (non-price control) - post-override" -> G&C received - water - other contributions (non-price control) - post-override | G45: £m | J45: =IF(AND($F$32 = 1, J44 <> ""), J44, J43) -> 0 | K45: 0 | L45: 14.27957581 | M45: 13.24026443 | N45: 8.941083708 | O45: 8.017404892 | P45: 5.31266027 | Q45: 0 | R45: 0 | S45: 0 | T45: 0 | U45: 0
B47: Assume diversions expenditure equals diversions G&C since 100% recovery rate expected
D48: =F_Inputs!B$13 -> BC11373IN | E48: =F_Inputs!C$13 & " Wastewater" -> Diversions (s185) Wastewater | G48: £m | L48: =F_Inputs!F$13 -> 1.822015786 | M48: =F_Inputs!G$13 -> 1.801028098 | N48: =F_Inputs!H$13 -> 1.647126818 | O48: =F_Inputs!I$13 -> 1.679744627 | P48: =F_Inputs!J$13 -> 1.654170668 | Q48: =F_Inputs!K$13 -> 0 | R48: =F_Inputs!L$13 -> 0 | S48: =F_Inputs!M$13 -> 0 | T48: =F_Inputs!N$13 -> 0 | U48: =F_Inputs!O$13 -> 0
E49: ="Diversions - opex - wastewater - override" -> Diversions - opex - wastewater - override | G49: £m
E50: Diversions - opex - wastewater - post override | G50: £m | J50: =IF(AND($F$32 = 1, J49 <> ""), J49, J48) -> 0 | K50: =IF(AND($F$32 = 1, K49 <> ""), K49, K48) -> 0 | L50: =IF(AND($F$32 = 1, L49 <> ""), L49, L48) -> 1.822015786 | M50: =IF(AND($F$32 = 1, M49 <> ""), M49, M48) -> 1.801028098 | N50: =IF(AND($F$32 = 1, N49 <> ""), N49, N48) -> 1.647126818 | O50: =IF(AND($F$32 = 1, O49 <> ""), O49, O48) -> 1.679744627 | P50: =IF(AND($F$32 = 1, P49 <> ""), P49, P48) -> 1.654170668 | Q50: =IF(AND($F$32 = 1, Q49 <> ""), Q49, Q48) -> 0 | R50: =IF(AND($F$32 = 1, R49 <> ""), R49, R48) -> 0 | S50: =IF(AND($F$32 = 1, S49 <> ""), S49, S48) -> 0 | T50: =IF(AND($F$32 = 1, T49 <> ""), T49, T48) -> 0 | U50: =IF(AND($F$32 = 1, U49 <> ""), U49, U48) -> 0
E52: Diversions - capex - wastewater | G52: £m | J52: 0 | K52: 0 | L52: 0 | M52: 0 | N52: 0 | O52: 0 | P52: 0 | Q52: 0 | R52: 0 | S52: 0 | T52: 0 | U52: 0
E53: ="Diversions - capex - wastewater - override" -> Diversions - capex - wastewater - override | G53: £m
E54: Diversions - capex - wastewater - post override | G54: £m | J54: =IF(AND($F$32 = 1, J53 <> ""), J53, J52) -> 0 | K54: =IF(AND($F$32 = 1, K53 <> ""), K53, K52) -> 0 | L54: =IF(AND($F$32 = 1, L53 <> ""), L53, L52) -> 0 | M54: =IF(AND($F$32 = 1, M53 <> ""), M53, M52) -> 0 | N54: =IF(AND($F$32 = 1, N53 <> ""), N53, N52) -> 0 | O54: =IF(AND($F$32 = 1, O53 <> ""), O53, O52) -> 0 | P54: =IF(AND($F$32 = 1, P53 <> ""), P53, P52) -> 0 | Q54: =IF(AND($F$32 = 1, Q53 <> ""), Q53, Q52) -> 0 | R54: =IF(AND($F$32 = 1, R53 <> ""), R53, R52) -> 0 | S54: =IF(AND($F$32 = 1, S53 <> ""), S53, S52) -> 0 | T54: =IF(AND($F$32 = 1, T53 <> ""), T53, T52) -> 0 | U54: =IF(AND($F$32 = 1, U53 <> ""), U53, U52) -> 0
D56: =F_Inputs!B$14 -> BA2086NPC | E56: =F_Inputs!C$14 -> Grants and contributions received ~ wholesale wastewater service - Other contributions (non-price control) | G56: £m | L56: =F_Inputs!F$14 -> 29.7885588 | M56: =F_Inputs!G$14 -> 27.03503791 | N56: =F_Inputs!H$14 -> 19.035014 | O56: =F_Inputs!I$14 -> 15.50145508 | P56: =F_Inputs!J$14 -> 10.93811581 | Q56: =F_Inputs!K$14 -> 0 | R56: =F_Inputs!L$14 -> 0 | S56: =F_Inputs!M$14 -> 0 | T56: =F_Inputs!N$14 -> 0 | U56: =F_Inputs!O$14 -> 0
E57: ="G&C received - wastewater - other contributions (non-price control) - override" -> G&C received - wastewater - other contributions (non-price control) - override | G57: £m
E58: ="G&C received - wastewater - other contributions (non-price control) - post-override" -> G&C received - wastewater - other contributions (non-price control) - post-override | G58: £m | J58: =IF(AND($F$32 = 1, J57 <> ""), J57, J56) -> 0 | K58: =IF(AND($F$32 = 1, K57 <> ""), K57, K56) -> 0 | L58: 29.7885588 | M58: 27.03503791 | N58: 19.035014 | O58: 15.50145508 | P58: 10.93811581 | Q58: 0 | R58: 0 | S58: 0 | T58: 0 | U58: 0
B60: Grants and Contributions
C61: Ofwat view of grants and contributions received for opex and capex split between price control and non price control
E62: Ofwat view of G&C for capex - water network - price control (override) | G62: £m | H62: =SUM(J62:U62) -> 0
E63: Ofwat view of G&C for capex - water network - non price control (override) | G63: £m | H63: =SUM(J63:U63) -> 0
E64: Ofwat view of G&C for opex - water network - price control (override) | G64: £m | H64: =SUM(J64:U64) -> 0
E65: Ofwat view of G&C for opex - water network - non price control (override) | G65: £m | H65: =SUM(J65:U65) -> 0
E67: Ofwat view of G&C for capex - water resources - price control (override) | G67: £m | H67: =SUM(J67:U67) -> 0
E68: Ofwat view of G&C for capex - water resources - non price control (override) | G68: £m | H68: =SUM(J68:U68) -> 0
E69: Ofwat view of G&C for opex - water resources - price control (override) | G69: £m | H69: =SUM(J69:U69) -> 0
E70: Ofwat view of G&C for opex - water resources - non price control (override) | G70: £m | H70: =SUM(J70:U70) -> 0
E72: Ofwat view of G&C for capex - wastewater - price control (override) | G72: £m | H72: =SUM(J72:U72) -> 0
E73: Ofwat view of G&C for capex - wastewater - non price control (override) | G73: £m | H73: =SUM(J73:U73) -> 0
E74: Ofwat view of G&C for opex - wastewater - price control (override) | G74: £m | H74: =SUM(J74:U74) -> 0
E75: Ofwat view of G&C for opex - wastewater - non price control (override) | G75: £m | H75: =SUM(J75:U75) -> 0
E77: Overrides applied | F77: =COUNT(J62:U75,J36:U36,J40:U40,J44:U44,J49:U49,J53:U53,J57:U57) -> 0 | G77: flag
A79: End of sheet

Sheet InpActive
A1: =RIGHT(CELL("filename", $A$1), LEN(CELL("filename", $A$1)) - SEARCH("]", CELL("filename", $A$1))) -> InpActive | F1: =IF(InpActive!$F$163 + InpOverride!$F$77 > 0, "Overrides", "No Overrides") -> No Overrides
E2: =Time!E$25 -> Model period ending | F2: =Check!$F$11 -> 0 | G2: Checks | J2: =Time!J$25 -> 2019-03-31 | K2: =Time!K$25 -> 2020-03-31 | L2: =Time!L$25 -> 2021-03-31 | M2: =Time!M$25 -> 2022-03-31 | N2: =Time!N$25 -> 2023-03-31 | O2: =Time!O$25 -> 2024-03-31 | P2: =Time!P$25 -> 2025-03-31 | Q2: =Time!Q$25 -> 2026-03-31 | R2: =Time!R$25 -> 2027-03-31 | S2: =Time!S$25 -> 2028-03-31 | T2: =Time!T$25 -> 2029-03-31 | U2: =Time!U$25 -> 2030-03-31
E3: =Time!E$104 -> Timeline label | F3: =Check!$F$28 -> 44 | G3: Track chgs | J3: =Time!J$104 -> Pre-Fcst | K3: =Time!K$104 -> Pre-Fcst | L3: =Time!L$104 -> Forecast | M3: =Time!M$104 -> Forecast | N3: =Time!N$104 -> Forecast | O3: =Time!O$104 -> Forecast | P3: =Time!P$104 -> Forecast | Q3: =Time!Q$104 -> Post-Fcst | R3: =Time!R$104 -> Post-Fcst | S3: =Time!S$104 -> Post-Fcst | T3: =Time!T$104 -> Post-Fcst | U3: =Time!U$104 -> Post-Fcst
E4: =Time!E$127 -> Financial year ending | J4: =Time!J$127 -> 2019 | K4: =Time!K$127 -> 2020 | L4: =Time!L$127 -> 2021 | M4: =Time!M$127 -> 2022 | N4: =Time!N$127 -> 2023 | O4: =Time!O$127 -> 2024 | P4: =Time!P$127 -> 2025 | Q4: =Time!Q$127 -> 2026 | R4: =Time!R$127 -> 2027 | S4: =Time!S$127 -> 2028 | T4: =Time!T$127 -> 2029 | U4: =Time!U$127 -> 2030
D5: Input references | E5: =Time!E$10 -> Model column counter | F5: Constant | G5: Unit | H5: Total | J5: =Time!J$10 -> 1 | K5: =Time!K$10 -> 2 | L5: =Time!L$10 -> 3 | M5: =Time!M$10 -> 4 | N5: =Time!N$10 -> 5 | O5: =Time!O$10 -> 6 | P5: =Time!P$10 -> 7 | Q5: =Time!Q$10 -> 8 | R5: =Time!R$10 -> 9 | S5: =Time!S$10 -> 10 | T5: =Time!T$10 -> 11 | U5: =Time!U$10 -> 12 | W5: Input type (Real / Nominal)
A8: TIME
B10: Timeline setup
C12: Timeline start dates
E13: 1st model column start date | F13: 2018-04-01 | G13: date | H13: Date should be the first date of the financial year
C15: Financial year inputs
E16: First modelling column financial year# | F16: 2019 | G16: year # | H16: Financial model start year
E17: Financial year end month number | F17: 3 | G17: month # | H17: Month of financial year end for financial model
C19: Timeline labels
E20: Pre - forecast period | F20: Pre-Fcst | G20: label
E21: Forecast period | F21: Forecast | G21: label
E22: Post - forecast period | F22: Post-Fcst | G22: label
B24: Project dates
E26: Base financial year | F26: 2017-18 | G26: year
E27: AMP duration | F27: 5 | G27: years
E28: Forecast start date | F28: 2020-04-01 | G28: date
E29: Forecast duration | F29: 10 | G29: years
E30: AMP duration (text) | F30: =YEAR(F28) + 1 & "-" & TEXT(DATE(YEAR(F28) + F27, 1, 1), "yy") -> 2021-25 | G30: years #
E31: Forecast duration (text) | F31: =YEAR(F28) + 1 & "-" & TEXT(DATE(YEAR(F28) + F29, 1, 1), "yy") -> 2021-30 | G31: years #
A34: NON CHANGEABLE MODEL TECHNICAL INPUTS
E36: Months per model period | F36: 12 | G36: months
E38: Months in a year | F38: 12 | G38: months
E40: Days in a year | F40: 365 | G40: days
E42: Thousands in a million | F42: 1000 | G42: thousand
E44: Units in a million | F44: 1000000 | G44: unit
B46: Model tolerance
E48: Model check tolerance level | F48: 1e-06 | G48: tolerance
A52: Grants & Contributions
B54: Grants & Contributions - Water (App28)
D55: =F_Inputs!B$4 -> BC11271IN | E55: =F_Inputs!C$4 & " - water" -> Connection charges (s45) - water | G55: £m | H55: =SUM(J55:U55) -> 114.047427 | L55: =F_Inputs!F$4 -> 24.3707282 | M55: =F_Inputs!G$4 -> 23.43771491 | N55: =F_Inputs!H$4 -> 22.2605482 | O55: =F_Inputs!I$4 -> 22.01654114 | P55: =F_Inputs!J$4 -> 21.9618946 | Q55: =F_Inputs!K$4 -> 0 | R55: =F_Inputs!L$4 -> 0 | S55: =F_Inputs!M$4 -> 0 | T55: =F_Inputs!N$4 -> 0 | U55: =F_Inputs!O$4 -> 0
D56: =F_Inputs!B$5 -> BC11270IN | E56: =F_Inputs!C$5 & " - water" -> Infrastructure charge receipts (s146) - water | G56: £m | H56: =SUM(J56:U56) -> -36.45067384 | L56: =F_Inputs!F$5 -> -7.890074308 | M56: =F_Inputs!G$5 -> -7.557520945 | N56: =F_Inputs!H$5 -> -7.115321065 | O56: =F_Inputs!I$5 -> -6.981203106 | P56: =F_Inputs!J$5 -> -6.906554414 | Q56: =F_Inputs!K$5 -> 0 | R56: =F_Inputs!L$5 -> 0 | S56: =F_Inputs!M$5 -> 0 | T56: =F_Inputs!N$5 -> 0 | U56: =F_Inputs!O$5 -> 0
D57: =F_Inputs!B$6 -> BC11272IN | E57: =F_Inputs!C$6 & " - water" -> Requisitioned mains (s43, s55 & s56) - water | G57: £m | H57: 33.39563352 | L57: =F_Inputs!F$6 -> 7.104782138 | M57: =F_Inputs!G$6 -> 6.848708904 | N57: =F_Inputs!H$6 -> 6.522714977 | O57: =F_Inputs!I$6 -> 6.462724079 | P57: =F_Inputs!J$6 -> 6.45670342 | Q57: =F_Inputs!K$6 -> 0 | R57: =F_Inputs!L$6 -> 0 | S57: =F_Inputs!M$6 -> 0 | T57: =F_Inputs!N$6 -> 0 | U57: =F_Inputs!O$6 -> 0
D58: =F_Inputs!B$7 -> BA1086PC | E58: =F_Inputs!C$7 -> Grants and contributions received ~ wholesale water service - Other contributions (price control) | G58: £m | H58: 10.80859661 | L58: =F_Inputs!F$7 -> 2.316558546 | M58: =F_Inputs!G$7 -> 2.22375369 | N58: =F_Inputs!H$7 -> 2.106310752 | O58: =F_Inputs!I$7 -> 2.083062733 | P58: =F_Inputs!J$7 -> 2.078910888 | Q58: =F_Inputs!K$7 -> 0 | R58: =F_Inputs!L$7 -> 0 | S58: =F_Inputs!M$7 -> 0 | T58: =F_Inputs!N$7 -> 0 | U58: =F_Inputs!O$7 -> 0
D59: =F_Inputs!B$9 -> BA1086NPC | E59: =F_Inputs!C$9 -> Grants and contributions received ~ wholesale water service - Other contributions (non-price control) | G59: £m | H59: 49.7909891 | L59: =F_Inputs!F$9 -> 14.27957581 | M59: =F_Inputs!G$9 -> 13.24026443 | N59: =F_Inputs!H$9 -> 8.941083708 | O59: =F_Inputs!I$9 -> 8.017404892 | P59: =F_Inputs!J$9 -> 5.31266027 | Q59: =F_Inputs!K$9 -> 0 | R59: =F_Inputs!L$9 -> 0 | S59: =F_Inputs!M$9 -> 0 | T59: =F_Inputs!N$9 -> 0 | U59: =F_Inputs!O$9 -> 0
D60: =F_Inputs!B$8 -> BC11273IN | E60: =F_Inputs!C$8 -> Diversions (s185) | G60: £m | H60: =SUM(J60:U60) -> 17.51756011 | L60: =F_Inputs!F$8 -> 3.710914711 | M60: =F_Inputs!G$8 -> 3.58582009 | N60: =F_Inputs!H$8 -> 3.425915594 | O60: =F_Inputs!I$8 -> 3.398009796 | P60: =F_Inputs!J$8 -> 3.39689992 | Q60: =F_Inputs!K$8 -> 0 | R60: =F_Inputs!L$8 -> 0 | S60: =F_Inputs!M$8 -> 0 | T60: =F_Inputs!N$8 -> 0 | U60: =F_Inputs!O$8 -> 0
E61: =InpOverride!E$37 -> Diversions - opex - water - post override | F61: =InpOverride!F$37 -> 0 | G61: =InpOverride!G$37 -> £m | H61: =InpOverride!H$37 -> 0 | I61: =InpOverride!I$37 -> 0 | J61: =InpOverride!J$37 -> 0 | K61: =InpOverride!K$37 -> 0 | L61: =InpOverride!L$37 -> 3.710914711 | M61: =InpOverride!M$37 -> 3.58582009 | N61: =InpOverride!N$37 -> 3.425915594 | O61: =InpOverride!O$37 -> 3.398009796 | P61: =InpOverride!P$37 -> 3.39689992 | Q61: =InpOverride!Q$37 -> 0 | R61: =InpOverride!R$37 -> 0 | S61: =InpOverride!S$37 -> 0 | T61: =InpOverride!T$37 -> 0 | U61: =InpOverride!U$37 -> 0
E62: =InpOverride!E$41 -> Diversions - capex - water - post override | F62: =InpOverride!F$41 -> 0 | G62: =InpOverride!G$41 -> £m | H62: =InpOverride!H$41 -> 0 | I62: =InpOverride!I$41 -> 0 | J62: =InpOverride!J$41 -> 0 | K62: =InpOverride!K$41 -> 0 | L62: =InpOverride!L$41 -> 0 | M62: =InpOverride!M$41 -> 0 | N62: =InpOverride!N$41 -> 0 | O62: =InpOverride!O$41 -> 0 | P62: =InpOverride!P$41 -> 0 | Q62: =InpOverride!Q$41 -> 0 | R62: =InpOverride!R$41 -> 0 | S62: =InpOverride!S$41 -> 0 | T62: =InpOverride!T$41 -> 0 | U62: =InpOverride!U$41 -> 0
E63: =InpOverride!E45 -> G&C received - water - other contributions (non-price control) - post-override | F63: =InpOverride!F45 -> 0 | G63: =InpOverride!G45 -> £m | H63: =InpOverride!H45 -> 0 | I63: =InpOverride!I45 -> 0 | J63: =InpOverride!J45 -> 0 | K63: =InpOverride!K45 -> 0 | L63: =InpOverride!L45 -> 14.27957581 | M63: =InpOverride!M45 -> 13.24026443 | N63: =InpOverride!N45 -> 8.941083708 | O63: =InpOverride!O45 -> 8.017404892 | P63: =InpOverride!P45 -> 5.31266027 | Q63: =InpOverride!Q45 -> 0 | R63: =InpOverride!R45 -> 0 | S63: =InpOverride!S45 -> 0 | T63: =InpOverride!T45 -> 0 | U63: =InpOverride!U45 -> 0
B66: Grants & Contributions - Wastewater (App28)
D67: =F_Inputs!B$10 -> BC11370IN | E67: =F_Inputs!C$10 & " - wastewater" -> Infrastructure charge receipts (s146) - wastewater | G67: £m | H67: =SUM(J67:U67) -> 60.70507414 | L67: =F_Inputs!F$10 -> 13.31702526 | M67: =F_Inputs!G$10 -> 13.06461251 | N67: =F_Inputs!H$10 -> 11.42207695 | O67: =F_Inputs!I$10 -> 11.65089173 | P67: =F_Inputs!J$10 -> 11.25046768 | Q67: =F_Inputs!K$10 -> 0 | R67: =F_Inputs!L$10 -> 0 | S67: =F_Inputs!M$10 -> 0 | T67: =F_Inputs!N$10 -> 0 | U67: =F_Inputs!O$10 -> 0
D68: =F_Inputs!B$11 -> BC11372IN | E68: =F_Inputs!C$11 -> Requisitioned sewers (s100) | G68: £m | H68: 15.29666624 | L68: =F_Inputs!F$11 -> 3.309437795 | M68: =F_Inputs!G$11 -> 3.252062232 | N68: =F_Inputs!H$11 -> 2.890136643 | O68: =F_Inputs!I$11 -> 2.956277373 | P68: =F_Inputs!J$11 -> 2.888752198 | Q68: =F_Inputs!K$11 -> 0 | R68: =F_Inputs!L$11 -> 0 | S68: =F_Inputs!M$11 -> 0 | T68: =F_Inputs!N$11 -> 0 | U68: =F_Inputs!O$11 -> 0
D69: =F_Inputs!B$12 -> BA2086PC | E69: =F_Inputs!C$12 -> Grants and contributions received ~ wholesale wastewater service - Other contributions (price control) | G69: £m | H69: 3.722125919 | L69: =F_Inputs!F$12 -> 0.7295495175 | M69: =F_Inputs!G$12 -> 0.7372357685 | N69: =F_Inputs!H$12 -> 0.7444577538 | O69: =F_Inputs!I$12 -> 0.7517563592 | P69: =F_Inputs!J$12 -> 0.7591265196 | Q69: =F_Inputs!K$12 -> 0 | R69: =F_Inputs!L$12 -> 0 | S69: =F_Inputs!M$12 -> 0 | T69: =F_Inputs!N$12 -> 0 | U69: =F_Inputs!O$12 -> 0
D70: =F_Inputs!B$14 -> BA2086NPC | E70: =F_Inputs!C$14 -> Grants and contributions received ~ wholesale wastewater service - Other contributions (non-price control) | G70: £m | H70: 102.2981816 | L70: =F_Inputs!F$14 -> 29.7885588 | M70: =F_Inputs!G$14 -> 27.03503791 | N70: =F_Inputs!H$14 -> 19.035014 | O70: =F_Inputs!I$14 -> 15.50145508 | P70: =F_Inputs!J$14 -> 10.93811581 | Q70: =F_Inputs!K$14 -> 0 | R70: =F_Inputs!L$14 -> 0 | S70: =F_Inputs!M$14 -> 0 | T70: =F_Inputs!N$14 -> 0 | U70: =F_Inputs!O$14 -> 0
D71: =F_Inputs!B$13 -> BC11373IN | E71: =F_Inputs!C$13 -> Diversions (s185) | G71: £m | H71: 8.604085997 | L71: =F_Inputs!F$13 -> 1.822015786 | M71: =F_Inputs!G$13 -> 1.801028098 | N71: =F_Inputs!H$13 -> 1.647126818 | O71: =F_Inputs!I$13 -> 1.679744627 | P71: =F_Inputs!J$13 -> 1.654170668 | Q71: =F_Inputs!K$13 -> 0 | R71: =F_Inputs!L$13 -> 0 | S71: =F_Inputs!M$13 -> 0 | T71: =F_Inputs!N$13 -> 0 | U71: =F_Inputs!O$13 -> 0
E72: =InpOverride!E$50 -> Diversions - opex - wastewater - post override | F72: =InpOverride!F$50 -> 0 | G72: =InpOverride!G$50 -> £m | H72: =InpOverride!H$50 -> 0 | I72: =InpOverride!I$50 -> 0 | J72: =InpOverride!J$50 -> 0 | K72: =InpOverride!K$50 -> 0 | L72: =InpOverride!L$50 -> 1.822015786 | M72: =InpOverride!M$50 -> 1.801028098 | N72: =InpOverride!N$50 -> 1.647126818 | O72: =InpOverride!O$50 -> 1.679744627 | P72: =InpOverride!P$50 -> 1.654170668 | Q72: =InpOverride!Q$50 -> 0 | R72: =InpOverride!R$50 -> 0 | S72: =InpOverride!S$50 -> 0 | T72: =InpOverride!T$50 -> 0 | U72: =InpOverride!U$50 -> 0
E73: =InpOverride!E$54 -> Diversions - capex - wastewater - post override | F73: =InpOverride!F$54 -> 0 | G73: =InpOverride!G$54 -> £m | H73: =InpOverride!H$54 -> 0 | I73: =InpOverride!I$54 -> 0 | J73: =InpOverride!J$54 -> 0 | K73: =InpOverride!K$54 -> 0 | L73: =InpOverride!L$54 -> 0 | M73: =InpOverride!M$54 -> 0 | N73: =InpOverride!N$54 -> 0 | O73: =InpOverride!O$54 -> 0 | P73: =InpOverride!P$54 -> 0 | Q73: =InpOverride!Q$54 -> 0 | R73: =InpOverride!R$54 -> 0 | S73: =InpOverride!S$54 -> 0 | T73: =InpOverride!T$54 -> 0 | U73: =InpOverride!U$54 -> 0
E74: =InpOverride!E58 -> G&C received - wastewater - other contributions (non-price control) - post-override | F74: =InpOverride!F58 -> 0 | G74: =InpOverride!G58 -> £m | H74: =InpOverride!H58 -> 0 | I74: =InpOverride!I58 -> 0 | J74: =InpOverride!J58 -> 0 | K74: =InpOverride!K58 -> 0 | L74: =InpOverride!L58 -> 29.7885588 | M74: =InpOverride!M58 -> 27.03503791 | N74: =InpOverride!N58 -> 19.035014 | O74: =InpOverride!O58 -> 15.50145508 | P74: =InpOverride!P58 -> 10.93811581 | Q74: =InpOverride!Q58 -> 0 | R74: =InpOverride!R58 -> 0 | S74: =InpOverride!S58 -> 0 | T74: =InpOverride!T58 -> 0 | U74: =InpOverride!U58 -> 0
B77: Grants & Contributions - Water Network (Wn3)
D78: =F_Inputs!B$37 -> A19052WN | E78: =F_Inputs!C$37 -> Water network operating expenditure grants and contributions (price control) | G78: £m | H78: =SUM(J78:U78) -> 12.80173542 | L78: =F_Inputs!F$37 -> 2.509184295 | M78: =F_Inputs!G$37 -> 2.535620089 | N78: =F_Inputs!H$37 -> 2.560459105 | O78: =F_Inputs!I$37 -> 2.585561645 | P78: =F_Inputs!J$37 -> 2.610910289 | Q78: =F_Inputs!K$37 -> 0 | R78: =F_Inputs!L$37 -> 0 | S78: =F_Inputs!M$37 -> 0 | T78: =F_Inputs!N$37 -> 0 | U78: =F_Inputs!O$37 -> 0
D79: =F_Inputs!B$38 -> A19053WN | E79: =F_Inputs!C$38 -> Water network capital expenditure grants and contributions (price control) | G79: £m | H79: 126.516808 | L79: =F_Inputs!F$38 -> 27.10372499 | M79: =F_Inputs!G$38 -> 26.00285656 | N79: =F_Inputs!H$38 -> 24.63970935 | O79: =F_Inputs!I$38 -> 24.393573 | P79: =F_Inputs!J$38 -> 24.37694412 | Q79: =F_Inputs!K$38 -> 0 | R79: =F_Inputs!L$38 -> 0 | S79: =F_Inputs!M$38 -> 0 | T79: =F_Inputs!N$38 -> 0 | U79: =F_Inputs!O$38 -> 0
D80: =F_Inputs!B$39 -> A19054WN | E80: =F_Inputs!C$39 -> Water network operating expenditure grants and contributions (non-price control) | G80: £m | H80: 0 | L80: =F_Inputs!F$39 -> 0 | M80: =F_Inputs!G$39 -> 0 | N80: =F_Inputs!H$39 -> 0 | O80: =F_Inputs!I$39 -> 0 | P80: =F_Inputs!J$39 -> 0 | Q80: =F_Inputs!K$39 -> 0 | R80: =F_Inputs!L$39 -> 0 | S80: =F_Inputs!M$39 -> 0 | T80: =F_Inputs!N$39 -> 0 | U80: =F_Inputs!O$39 -> 0
D81: =F_Inputs!B$40 -> A19055WN | E81: =F_Inputs!C$40 -> Water network capital expenditure grants and contributions (non-price control) | G81: £m | H81: 49.7909891 | L81: =F_Inputs!F$40 -> 14.27957581 | M81: =F_Inputs!G$40 -> 13.24026443 | N81: =F_Inputs!H$40 -> 8.941083708 | O81: =F_Inputs!I$40 -> 8.017404892 | P81: =F_Inputs!J$40 -> 5.31266027 | Q81: =F_Inputs!K$40 -> 0 | R81: =F_Inputs!L$40 -> 0 | S81: =F_Inputs!M$40 -> 0 | T81: =F_Inputs!N$40 -> 0 | U81: =F_Inputs!O$40 -> 0
B83: Grants & Contributions - Water Resources (Wr3)
D84: =F_Inputs!B$33 -> A19048WR | E84: =F_Inputs!C$33 -> Water resources operating expenditure grants and contributions (price control) | G84: £m | H84: =SUM(J84:U84) -> 0 | L84: =F_Inputs!F$33 -> 0 | M84: =F_Inputs!G$33 -> 0 | N84: =F_Inputs!H$33 -> 0 | O84: =F_Inputs!I$33 -> 0 | P84: =F_Inputs!J$33 -> 0 | Q84: =F_Inputs!K$33 -> 0 | R84: =F_Inputs!L$33 -> 0 | S84: =F_Inputs!M$33 -> 0 | T84: =F_Inputs!N$33 -> 0 | U84: =F_Inputs!O$33 -> 0
D85: =F_Inputs!B$34 -> A19049WR | E85: =F_Inputs!C$34 -> Water resources capital expenditure grants and contributions (price control) | G85: £m | H85: 0 | L85: =F_Inputs!F$34 -> 0 | M85: =F_Inputs!G$34 -> 0 | N85: =F_Inputs!H$34 -> 0 | O85: =F_Inputs!I$34 -> 0 | P85: =F_Inputs!J$34 -> 0 | Q85: =F_Inputs!K$34 -> 0 | R85: =F_Inputs!L$34 -> 0 | S85: =F_Inputs!M$34 -> 0 | T85: =F_Inputs!N$34 -> 0 | U85: =F_Inputs!O$34 -> 0
D86: =F_Inputs!B$35 -> A19052WR | E86: =F_Inputs!C$35 -> Water resources operating expenditure grants and contributions (non-price control) | G86: £m | H86: 0 | L86: =F_Inputs!F$35 -> 0 | M86: =F_Inputs!G$35 -> 0 | N86: =F_Inputs!H$35 -> 0 | O86: =F_Inputs!I$35 -> 0 | P86: =F_Inputs!J$35 -> 0 | Q86: =F_Inputs!K$35 -> 0 | R86: =F_Inputs!L$35 -> 0 | S86: =F_Inputs!M$35 -> 0 | T86: =F_Inputs!N$35 -> 0 | U86: =F_Inputs!O$35 -> 0
D87: =F_Inputs!B$36 -> A19053WR | E87: =F_Inputs!C$36 -> Water resources capital expenditure grants and contributions (non-price control) | G87: £m | H87: 0 | L87: =F_Inputs!F$36 -> 0 | M87: =F_Inputs!G$36 -> 0 | N87: =F_Inputs!H$36 -> 0 | O87: =F_Inputs!I$36 -> 0 | P87: =F_Inputs!J$36 -> 0 | Q87: =F_Inputs!K$36 -> 0 | R87: =F_Inputs!L$36 -> 0 | S87: =F_Inputs!M$36 -> 0 | T87: =F_Inputs!N$36 -> 0 | U87: =F_Inputs!O$36 -> 0
B89: Grants & Contributions - Wastewater (WWn5)
D90: =F_Inputs!B$41 -> A19052WWN | E90: =F_Inputs!C$41 -> Wastewater network operating expenditure grants and contributions (price control) | G90: £m | H90: =SUM(J90:U90) -> 1.999767964 | L90: =F_Inputs!F$41 -> 0.4057306099 | M90: =F_Inputs!G$41 -> 0.4183082588 | N90: =F_Inputs!H$41 -> 0.3880924366 | O90: =F_Inputs!I$41 -> 0.3918972644 | P90: =F_Inputs!J$41 -> 0.3957393945 | Q90: =F_Inputs!K$41 -> 0 | R90: =F_Inputs!L$41 -> 0 | S90: =F_Inputs!M$41 -> 0 | T90: =F_Inputs!N$41 -> 0 | U90: =F_Inputs!O$41 -> 0
D91: =F_Inputs!B$42 -> A19053WWN | E91: =F_Inputs!C$42 -> Wastewater network capital expenditure grants and contributions (price control) | G91: £m | H91: 86.32818433 | L91: =F_Inputs!F$42 -> 18.77229775 | M91: =F_Inputs!G$42 -> 18.43663035 | N91: =F_Inputs!H$42 -> 16.31570573 | O91: =F_Inputs!I$42 -> 16.64677283 | P91: =F_Inputs!J$42 -> 16.15677768 | Q91: =F_Inputs!K$42 -> 0 | R91: =F_Inputs!L$42 -> 0 | S91: =F_Inputs!M$42 -> 0 | T91: =F_Inputs!N$42 -> 0 | U91: =F_Inputs!O$42 -> 0
D92: =F_Inputs!B$43 -> A19054WWN | E92: =F_Inputs!C$43 -> Wastewater network operating expenditure grants and contributions (non-price control) | G92: £m | H92: 3.555143047 | L92: =F_Inputs!F$43 -> 0.721298862 | M92: =F_Inputs!G$43 -> 0.7436591267 | N92: =F_Inputs!H$43 -> 0.6899421095 | O92: =F_Inputs!I$43 -> 0.6967062479 | P92: =F_Inputs!J$43 -> 0.7035367013 | Q92: =F_Inputs!K$43 -> 0 | R92: =F_Inputs!L$43 -> 0 | S92: =F_Inputs!M$43 -> 0 | T92: =F_Inputs!N$43 -> 0 | U92: =F_Inputs!O$43 -> 0
D93: =F_Inputs!B$44 -> A19055WWN | E93: =F_Inputs!C$44 -> Wastewater network capital expenditure grants and contributions (non-price control) | G93: £m | H93: 98.74303855 | L93: =F_Inputs!F$44 -> 29.06725994 | M93: =F_Inputs!G$44 -> 26.29137878 | N93: =F_Inputs!H$44 -> 18.34507189 | O93: =F_Inputs!I$44 -> 14.80474883 | P93: =F_Inputs!J$44 -> 10.23457911 | Q93: =F_Inputs!K$44 -> 0 | R93: =F_Inputs!L$44 -> 0 | S93: =F_Inputs!M$44 -> 0 | T93: =F_Inputs!N$44 -> 0 | U93: =F_Inputs!O$44 -> 0
A96: Expenditure
B98: Expenditure: Development & Connections - Water (WS2)
D99: =F_Inputs!B$15 -> W3009WR | E99: =F_Inputs!C$15 -> New developments - Water resources | G99: £m | H99: =SUM(J99:U99) -> 0 | L99: =F_Inputs!F$15 -> 0 | M99: =F_Inputs!G$15 -> 0 | N99: =F_Inputs!H$15 -> 0 | O99: =F_Inputs!I$15 -> 0 | P99: =F_Inputs!J$15 -> 0 | Q99: =F_Inputs!K$15 -> 0 | R99: =F_Inputs!L$15 -> 0 | S99: =F_Inputs!M$15 -> 0 | T99: =F_Inputs!N$15 -> 0 | U99: =F_Inputs!O$15 -> 0
D100: =F_Inputs!B$16 -> W3009RWD | E100: =F_Inputs!C$16 -> New developments - Raw water distribution | G100: £m | H100: =SUM(J100:U100) -> 0 | L100: =F_Inputs!F$16 -> 0 | M100: =F_Inputs!G$16 -> 0 | N100: =F_Inputs!H$16 -> 0 | O100: =F_Inputs!I$16 -> 0 | P100: =F_Inputs!J$16 -> 0 | Q100: =F_Inputs!K$16 -> 0 | R100: =F_Inputs!L$16 -> 0 | S100: =F_Inputs!M$16 -> 0 | T100: =F_Inputs!N$16 -> 0 | U100: =F_Inputs!O$16 -> 0
D101: =F_Inputs!B$17 -> W3009WT | E101: =F_Inputs!C$17 -> New developments - Water treatment | G101: £m | H101: 0 | L101: =F_Inputs!F$17 -> 0 | M101: =F_Inputs!G$17 -> 0 | N101: =F_Inputs!H$17 -> 0 | O101: =F_Inputs!I$17 -> 0 | P101: =F_Inputs!J$17 -> 0 | Q101: =F_Inputs!K$17 -> 0 | R101: =F_Inputs!L$17 -> 0 | S101: =F_Inputs!M$17 -> 0 | T101: =F_Inputs!N$17 -> 0 | U101: =F_Inputs!O$17 -> 0
D102: =F_Inputs!B$18 -> W3009TWD | E102: =F_Inputs!C$18 -> New developments - Treated water distribution | G102: £m | H102: 136.4680202 | L102: =F_Inputs!F$18 -> 16.2393271 | M102: =F_Inputs!G$18 -> 29.32824226 | N102: =F_Inputs!H$18 -> 33.07116331 | O102: =F_Inputs!I$18 -> 30.74416918 | P102: =F_Inputs!J$18 -> 27.08511838 | Q102: =F_Inputs!K$18 -> 0 | R102: =F_Inputs!L$18 -> 0 | S102: =F_Inputs!M$18 -> 0 | T102: =F_Inputs!N$18 -> 0 | U102: =F_Inputs!O$18 -> 0
D103: =F_Inputs!B$19 -> W3009CAW | E103: =F_Inputs!C$19 -> New developments - Total | G103: £m | H103: =SUM(J103:U103) -> 136.4680202 | L103: =F_Inputs!F$19 -> 16.2393271 | M103: =F_Inputs!G$19 -> 29.32824226 | N103: =F_Inputs!H$19 -> 33.07116331 | O103: =F_Inputs!I$19 -> 30.74416918 | P103: =F_Inputs!J$19 -> 27.08511838 | Q103: =F_Inputs!K$19 -> 0 | R103: =F_Inputs!L$19 -> 0 | S103: =F_Inputs!M$19 -> 0 | T103: =F_Inputs!N$19 -> 0 | U103: =F_Inputs!O$19 -> 0
D104: =F_Inputs!B$20 -> WS2004CAW | E104: =F_Inputs!C$20 -> New connections element of new development (CPs, meters) - Total | G104: £m | H104: 118.0146718 | L104: =F_Inputs!F$20 -> 25.35103504 | M104: =F_Inputs!G$20 -> 24.31059703 | N104: =F_Inputs!H$20 -> 23.00590063 | O104: =F_Inputs!I$20 -> 22.71571992 | P104: =F_Inputs!J$20 -> 22.63141916 | Q104: =F_Inputs!K$20 -> 0 | R104: =F_Inputs!L$20 -> 0 | S104: =F_Inputs!M$20 -> 0 | T104: =F_Inputs!N$20 -> 0 | U104: =F_Inputs!O$20 -> 0
D105: =F_Inputs!B$21 -> WS2019WR | E105: =F_Inputs!C$21 -> Enhancement expenditure by purpose ~ operating - New developments - Water resources | G105: £m | H105: 0 | L105: =F_Inputs!F$21 -> 0 | M105: =F_Inputs!G$21 -> 0 | N105: =F_Inputs!H$21 -> 0 | O105: =F_Inputs!I$21 -> 0 | P105: =F_Inputs!J$21 -> 0 | Q105: =F_Inputs!K$21 -> 0 | R105: =F_Inputs!L$21 -> 0 | S105: =F_Inputs!M$21 -> 0 | T105: =F_Inputs!N$21 -> 0 | U105: =F_Inputs!O$21 -> 0
D106: =F_Inputs!B$22 -> WS2019RWD | E106: =F_Inputs!C$22 -> Enhancement expenditure by purpose ~ operating - New developments - Raw water distribution | G106: £m | H106: =SUM(J106:U106) -> 0 | L106: =F_Inputs!F$22 -> 0 | M106: =F_Inputs!G$22 -> 0 | N106: =F_Inputs!H$22 -> 0 | O106: =F_Inputs!I$22 -> 0 | P106: =F_Inputs!J$22 -> 0 | Q106: =F_Inputs!K$22 -> 0 | R106: =F_Inputs!L$22 -> 0 | S106: =F_Inputs!M$22 -> 0 | T106: =F_Inputs!N$22 -> 0 | U106: =F_Inputs!O$22 -> 0
D107: =F_Inputs!B$23 -> WS2019WT | E107: =F_Inputs!C$23 -> Enhancement expenditure by purpose ~ operating - New developments - Water treatment | G107: £m | H107: 0 | L107: =F_Inputs!F$23 -> 0 | M107: =F_Inputs!G$23 -> 0 | N107: =F_Inputs!H$23 -> 0 | O107: =F_Inputs!I$23 -> 0 | P107: =F_Inputs!J$23 -> 0 | Q107: =F_Inputs!K$23 -> 0 | R107: =F_Inputs!L$23 -> 0 | S107: =F_Inputs!M$23 -> 0 | T107: =F_Inputs!N$23 -> 0 | U107: =F_Inputs!O$23 -> 0
D108: =F_Inputs!B$24 -> WS2019TWD | E108: =F_Inputs!C$24 -> Enhancement expenditure by purpose ~ operating - New developments - Treated water distribution | G108: £m | H108: 0.3844088438 | L108: =F_Inputs!F$24 -> 0 | M108: =F_Inputs!G$24 -> 0.0391074727 | N108: =F_Inputs!H$24 -> 0.0387183369 | O108: =F_Inputs!I$24 -> 0.0383616363 | P108: =F_Inputs!J$24 -> 0.2682213979 | Q108: =F_Inputs!K$24 -> 0 | R108: =F_Inputs!L$24 -> 0 | S108: =F_Inputs!M$24 -> 0 | T108: =F_Inputs!N$24 -> 0 | U108: =F_Inputs!O$24 -> 0
D109: =F_Inputs!B$25 -> WS2019CAW | E109: =F_Inputs!C$25 -> Enhancement expenditure by purpose ~ operating - New developments - Total | G109: £m | H109: 0.3844088438 | L109: =F_Inputs!F$25 -> 0 | M109: =F_Inputs!G$25 -> 0.0391074727 | N109: =F_Inputs!H$25 -> 0.0387183369 | O109: =F_Inputs!I$25 -> 0.0383616363 | P109: =F_Inputs!J$25 -> 0.2682213979 | Q109: =F_Inputs!K$25 -> 0 | R109: =F_Inputs!L$25 -> 0 | S109: =F_Inputs!M$25 -> 0 | T109: =F_Inputs!N$25 -> 0 | U109: =F_Inputs!O$25 -> 0
D110: =F_Inputs!B$26 -> WS2020CAW | E110: =F_Inputs!C$26 -> Enhancement expenditure by purpose ~ operating - New connections element of new development (CPs, meters) - Total | G110: £m | H110: 0 | L110: =F_Inputs!F$26 -> 0 | M110: =F_Inputs!G$26 -> 0 | N110: =F_Inputs!H$26 -> 0 | O110: =F_Inputs!I$26 -> 0 | P110: =F_Inputs!J$26 -> 0 | Q110: =F_Inputs!K$26 -> 0 | R110: =F_Inputs!L$26 -> 0 | S110: =F_Inputs!M$26 -> 0 | T110: =F_Inputs!N$26 -> 0 | U110: =F_Inputs!O$26 -> 0
B112: Expenditure: Development & Connections - Wastewater (WWS2)
D113: =F_Inputs!B$27 -> S3020CAS | E113: =F_Inputs!C$27 -> New development and growth - Total | G113: £m | H113: =SUM(J113:U113) -> 130.8752265 | L113: =F_Inputs!F$27 -> 34.18882295 | M113: =F_Inputs!G$27 -> 34.43888323 | N113: =F_Inputs!H$27 -> 20.28197982 | O113: =F_Inputs!I$27 -> 20.5759668 | P113: =F_Inputs!J$27 -> 21.38957367 | Q113: =F_Inputs!K$27 -> 0 | R113: =F_Inputs!L$27 -> 0 | S113: =F_Inputs!M$27 -> 0 | T113: =F_Inputs!N$27 -> 0 | U113: =F_Inputs!O$27 -> 0
D114: =F_Inputs!B$30 -> WWS2033CAS | E114: =F_Inputs!C$30 -> Enhancement expenditure by purpose - operating - New development and growth - Total | G114: £m | H114: 9.772418162 | L114: =F_Inputs!F$30 -> 1.630857887 | M114: =F_Inputs!G$30 -> 1.629670716 | N114: =F_Inputs!H$30 -> 1.624620885 | O114: =F_Inputs!I$30 -> 2.169558273 | P114: =F_Inputs!J$30 -> 2.717710401 | Q114: =F_Inputs!K$30 -> 0 | R114: =F_Inputs!L$30 -> 0 | S114: =F_Inputs!M$30 -> 0 | T114: =F_Inputs!N$30 -> 0 | U114: =F_Inputs!O$30 -> 0
A117: Ofwat Inputs and Overrides
B118: Ofwat view of recovery rate for new developments and connections
D119: =F_Inputs!$B$53 -> PR19GC0021 | E119: =F_Inputs!$C$53 -> OFWAT view of G&C recovery rate - new developments - Water | G119: % | H119: =SUM(J119:U119) -> 0 | L119: =F_Inputs!F53 -> 0 | M119: =F_Inputs!G53 -> 0 | N119: =F_Inputs!H53 -> 0 | O119: =F_Inputs!I53 -> 0 | P119: =F_Inputs!J53 -> 0 | Q119: =F_Inputs!K53 -> 0 | R119: =F_Inputs!L53 -> 0 | S119: =F_Inputs!M53 -> 0 | T119: =F_Inputs!N53 -> 0 | U119: =F_Inputs!O53 -> 0
D120: =F_Inputs!$B$54 -> PR19GC0022 | E120: =F_Inputs!$C$54 -> OFWAT view of G&C recovery rate - new connections - Water | G120: % | H120: 5 | L120: =F_Inputs!F54 -> 1 | M120: =F_Inputs!G54 -> 1 | N120: =F_Inputs!H54 -> 1 | O120: =F_Inputs!I54 -> 1 | P120: =F_Inputs!J54 -> 1 | Q120: =F_Inputs!K54 -> 0 | R120: =F_Inputs!L54 -> 0 | S120: =F_Inputs!M54 -> 0 | T120: =F_Inputs!N54 -> 0 | U120: =F_Inputs!O54 -> 0
D121: =F_Inputs!B$56 -> PR19GC0036 | E121: =F_Inputs!C$56 -> OFWAT view of G&C recovery rate - diversions - Water | G121: % | H121: =SUM(J121:U121) -> 5 | L121: =F_Inputs!F$56 -> 1 | M121: =F_Inputs!G$56 -> 1 | N121: =F_Inputs!H$56 -> 1 | O121: =F_Inputs!I$56 -> 1 | P121: =F_Inputs!J$56 -> 1 | Q121: =F_Inputs!K$56 -> 0 | R121: =F_Inputs!L$56 -> 0 | S121: =F_Inputs!M$56 -> 0 | T121: =F_Inputs!N$56 -> 0 | U121: =F_Inputs!O$56 -> 0
D122: =F_Inputs!$B$55 -> PR19GC0023 | E122: =F_Inputs!$C$55 -> OFWAT view of G&C recovery rate - new developments - Wastewater | G122: % | H122: 5 | L122: =F_Inputs!F55 -> 1 | M122: =F_Inputs!G55 -> 1 | N122: =F_Inputs!H55 -> 1 | O122: =F_Inputs!I55 -> 1 | P122: =F_Inputs!J55 -> 1 | Q122: =F_Inputs!K55 -> 0 | R122: =F_Inputs!L55 -> 0 | S122: =F_Inputs!M55 -> 0 | T122: =F_Inputs!N55 -> 0 | U122: =F_Inputs!O55 -> 0
D123: =F_Inputs!B$57 -> PR19GC0037 | E123: =F_Inputs!C$57 -> OFWAT view of G&C recovery rate - diversions - Wastewater | G123: % | H123: =SUM(J123:U123) -> 5 | L123: =F_Inputs!F$57 -> 1 | M123: =F_Inputs!G$57 -> 1 | N123: =F_Inputs!H$57 -> 1 | O123: =F_Inputs!I$57 -> 1 | P123: =F_Inputs!J$57 -> 1 | Q123: =F_Inputs!K$57 -> 0 | R123: =F_Inputs!L$57 -> 0 | S123: =F_Inputs!M$57 -> 0 | T123: =F_Inputs!N$57 -> 0 | U123: =F_Inputs!O$57 -> 0
B125: Ofwat view of grants and contributions received for opex and capex split between price control and non price control
E126: =InpOverride!E$62 -> Ofwat view of G&C for capex - water network - price control (override) | F126: =InpOverride!F$62 -> 0 | G126: =InpOverride!G$62 -> £m | H126: =InpOverride!H$62 -> 0 | I126: =InpOverride!I$62 -> 0 | J126: =InpOverride!J$62 -> 0 | K126: =InpOverride!K$62 -> 0 | L126: =InpOverride!L$62 -> 0 | M126: =InpOverride!M$62 -> 0 | N126: =InpOverride!N$62 -> 0 | O126: =InpOverride!O$62 -> 0 | P126: =InpOverride!P$62 -> 0 | Q126: =InpOverride!Q$62 -> 0 | R126: =InpOverride!R$62 -> 0 | S126: =InpOverride!S$62 -> 0 | T126: =InpOverride!T$62 -> 0 | U126: =InpOverride!U$62 -> 0
E127: =InpOverride!E$63 -> Ofwat view of G&C for capex - water network - non price control (override) | F127: =InpOverride!F$63 -> 0 | G127: =InpOverride!G$63 -> £m | H127: =InpOverride!H$63 -> 0 | I127: =InpOverride!I$63 -> 0 | J127: =InpOverride!J$63 -> 0 | K127: =InpOverride!K$63 -> 0 | L127: =InpOverride!L$63 -> 0 | M127: =InpOverride!M$63 -> 0 | N127: =InpOverride!N$63 -> 0 | O127: =InpOverride!O$63 -> 0 | P127: =InpOverride!P$63 -> 0 | Q127: =InpOverride!Q$63 -> 0 | R127: =InpOverride!R$63 -> 0 | S127: =InpOverride!S$63 -> 0 | T127: =InpOverride!T$63 -> 0 | U127: =InpOverride!U$63 -> 0
E128: =InpOverride!E$64 -> Ofwat view of G&C for opex - water network - price control (override) | F128: =InpOverride!F$64 -> 0 | G128: =InpOverride!G$64 -> £m | H128: =InpOverride!H$64 -> 0 | I128: =InpOverride!I$64 -> 0 | J128: =InpOverride!J$64 -> 0 | K128: =InpOverride!K$64 -> 0 | L128: =InpOverride!L$64 -> 0 | M128: =InpOverride!M$64 -> 0 | N128: =InpOverride!N$64 -> 0 | O128: =InpOverride!O$64 -> 0 | P128: =InpOverride!P$64 -> 0 | Q128: =InpOverride!Q$64 -> 0 | R128: =InpOverride!R$64 -> 0 | S128: =InpOverride!S$64 -> 0 | T128: =InpOverride!T$64 -> 0 | U128: =InpOverride!U$64 -> 0
E129: =InpOverride!E$65 -> Ofwat view of G&C for opex - water network - non price control (override) | F129: =InpOverride!F$65 -> 0 | G129: =InpOverride!G$65 -> £m | H129: =InpOverride!H$65 -> 0 | I129: =InpOverride!I$65 -> 0 | J129: =InpOverride!J$65 -> 0 | K129: =InpOverride!K$65 -> 0 | L129: =InpOverride!L$65 -> 0 | M129: =InpOverride!M$65 -> 0 | N129: =InpOverride!N$65 -> 0 | O129: =InpOverride!O$65 -> 0 | P129: =InpOverride!P$65 -> 0 | Q129: =InpOverride!Q$65 -> 0 | R129: =InpOverride!R$65 -> 0 | S129: =InpOverride!S$65 -> 0 | T129: =InpOverride!T$65 -> 0 | U129: =InpOverride!U$65 -> 0
E131: =InpOverride!E$67 -> Ofwat view of G&C for capex - water resources - price control (override) | F131: =InpOverride!F$67 -> 0 | G131: =InpOverride!G$67 -> £m | H131: =InpOverride!H$67 -> 0 | I131: =InpOverride!I$67 -> 0 | J131: =InpOverride!J$67 -> 0 | K131: =InpOverride!K$67 -> 0 | L131: =InpOverride!L$67 -> 0 | M131: =InpOverride!M$67 -> 0 | N131: =InpOverride!N$67 -> 0 | O131: =InpOverride!O$67 -> 0 | P131: =InpOverride!P$67 -> 0 | Q131: =InpOverride!Q$67 -> 0 | R131: =InpOverride!R$67 -> 0 | S131: =InpOverride!S$67 -> 0 | T131: =InpOverride!T$67 -> 0 | U131: =InpOverride!U$67 -> 0
E132: =InpOverride!E$68 -> Ofwat view of G&C for capex - water resources - non price control (override) | F132: =InpOverride!F$68 -> 0 | G132: =InpOverride!G$68 -> £m | H132: =InpOverride!H$68 -> 0 | I132: =InpOverride!I$68 -> 0 | J132: =InpOverride!J$68 -> 0 | K132: =InpOverride!K$68 -> 0 | L132: =InpOverride!L$68 -> 0 | M132: =InpOverride!M$68 -> 0 | N132: =InpOverride!N$68 -> 0 | O132: =InpOverride!O$68 -> 0 | P132: =InpOverride!P$68 -> 0 | Q132: =InpOverride!Q$68 -> 0 | R132: =InpOverride!R$68 -> 0 | S132: =InpOverride!S$68 -> 0 | T132: =InpOverride!T$68 -> 0 | U132: =InpOverride!U$68 -> 0
E133: =InpOverride!E$69 -> Ofwat view of G&C for opex - water resources - price control (override) | F133: =InpOverride!F$69 -> 0 | G133: =InpOverride!G$69 -> £m | H133: =InpOverride!H$69 -> 0 | I133: =InpOverride!I$69 -> 0 | J133: =InpOverride!J$69 -> 0 | K133: =InpOverride!K$69 -> 0 | L133: =InpOverride!L$69 -> 0 | M133: =InpOverride!M$69 -> 0 | N133: =InpOverride!N$69 -> 0 | O133: =InpOverride!O$69 -> 0 | P133: =InpOverride!P$69 -> 0 | Q133: =InpOverride!Q$69 -> 0 | R133: =InpOverride!R$69 -> 0 | S133: =InpOverride!S$69 -> 0 | T133: =InpOverride!T$69 -> 0 | U133: =InpOverride!U$69 -> 0
E134: =InpOverride!E$70 -> Ofwat view of G&C for opex - water resources - non price control (override) | F134: =InpOverride!F$70 -> 0 | G134: =InpOverride!G$70 -> £m | H134: =InpOverride!H$70 -> 0 | I134: =InpOverride!I$70 -> 0 | J134: =InpOverride!J$70 -> 0 | K134: =InpOverride!K$70 -> 0 | L134: =InpOverride!L$70 -> 0 | M134: =InpOverride!M$70 -> 0 | N134: =InpOverride!N$70 -> 0 | O134: =InpOverride!O$70 -> 0 | P134: =InpOverride!P$70 -> 0 | Q134: =InpOverride!Q$70 -> 0 | R134: =InpOverride!R$70 -> 0 | S134: =InpOverride!S$70 -> 0 | T134: =InpOverride!T$70 -> 0 | U134: =InpOverride!U$70 -> 0
E136: =InpOverride!E$72 -> Ofwat view of G&C for capex - wastewater - price control (override) | F136: =InpOverride!F$72 -> 0 | G136: =InpOverride!G$72 -> £m | H136: =InpOverride!H$72 -> 0 | I136: =InpOverride!I$72 -> 0 | J136: =InpOverride!J$72 -> 0 | K136: =InpOverride!K$72 -> 0 | L136: =InpOverride!L$72 -> 0 | M136: =InpOverride!M$72 -> 0 | N136: =InpOverride!N$72 -> 0 | O136: =InpOverride!O$72 -> 0 | P136: =InpOverride!P$72 -> 0 | Q136: =InpOverride!Q$72 -> 0 | R136: =InpOverride!R$72 -> 0 | S136: =InpOverride!S$72 -> 0 | T136: =InpOverride!T$72 -> 0 | U136: =InpOverride!U$72 -> 0
E137: =InpOverride!E$73 -> Ofwat view of G&C for capex - wastewater - non price control (override) | F137: =InpOverride!F$73 -> 0 | G137: =InpOverride!G$73 -> £m | H137: =InpOverride!H$73 -> 0 | I137: =InpOverride!I$73 -> 0 | J137: =InpOverride!J$73 -> 0 | K137: =InpOverride!K$73 -> 0 | L137: =InpOverride!L$73 -> 0 | M137: =InpOverride!M$73 -> 0 | N137: =InpOverride!N$73 -> 0 | O137: =InpOverride!O$73 -> 0 | P137: =InpOverride!P$73 -> 0 | Q137: =InpOverride!Q$73 -> 0 | R137: =InpOverride!R$73 -> 0 | S137: =InpOverride!S$73 -> 0 | T137: =InpOverride!T$73 -> 0 | U137: =InpOverride!U$73 -> 0
E138: =InpOverride!E$74 -> Ofwat view of G&C for opex - wastewater - price control (override) | F138: =InpOverride!F$74 -> 0 | G138: =InpOverride!G$74 -> £m | H138: =InpOverride!H$74 -> 0 | I138: =InpOverride!I$74 -> 0 | J138: =InpOverride!J$74 -> 0 | K138: =InpOverride!K$74 -> 0 | L138: =InpOverride!L$74 -> 0 | M138: =InpOverride!M$74 -> 0 | N138: =InpOverride!N$74 -> 0 | O138: =InpOverride!O$74 -> 0 | P138: =InpOverride!P$74 -> 0 | Q138: =InpOverride!Q$74 -> 0 | R138: =InpOverride!R$74 -> 0 | S138: =InpOverride!S$74 -> 0 | T138: =InpOverride!T$74 -> 0 | U138: =InpOverride!U$74 -> 0
E139: =InpOverride!E$75 -> Ofwat view of G&C for opex - wastewater - non price control (override) | F139: =InpOverride!F$75 -> 0 | G139: =InpOverride!G$75 -> £m | H139: =InpOverride!H$75 -> 0 | I139: =InpOverride!I$75 -> 0 | J139: =InpOverride!J$75 -> 0 | K139: =InpOverride!K$75 -> 0 | L139: =InpOverride!L$75 -> 0 | M139: =InpOverride!M$75 -> 0 | N139: =InpOverride!N$75 -> 0 | O139: =InpOverride!O$75 -> 0 | P139: =InpOverride!P$75 -> 0 | Q139: =InpOverride!Q$75 -> 0 | R139: =InpOverride!R$75 -> 0 | S139: =InpOverride!S$75 -> 0 | T139: =InpOverride!T$75 -> 0 | U139: =InpOverride!U$75 -> 0
B141: OFWAT efficiency challenge (from feeder models FM_E_WW_growth)
E142: =InpOverride!E$13 -> Wastewater efficiency challenge - opex - (post override) | F142: =InpOverride!F$13 -> 0.3403678112 | G142: =InpOverride!G$13 -> %
E143: =InpOverride!E$17 -> Wastewater efficiency challenge - capex - (post override) | F143: =InpOverride!F$17 -> 0.3403678112 | G143: =InpOverride!G$17 -> %
E144: =InpOverride!E$21 -> Water efficiency challenge - opex - (post override) | F144: =InpOverride!F$21 -> 0.1390638769 | G144: =InpOverride!G$21 -> %
E145: =InpOverride!E$25 -> Water efficiency challenge - capex - (post override) | F145: =InpOverride!F$25 -> 0.1390638769 | G145: =InpOverride!G$25 -> %
B147: OFWAT adjustments to to grants and contributions received - One-off contributions to be applied in addtiion to the calculated amounts
E148: Ofwat adjustment to capex - water network - price control | G148: £m | H148: =SUM(J148:U148) -> 0
E149: Ofwat adjustment to capex - water network - non price control | G149: £m | H149: =SUM(J149:U149) -> 0
E150: Ofwat adjustment to opex - water network - price control | G150: £m | H150: =SUM(J150:U150) -> 0
E151: Ofwat adjustment to opex - water network - non price control | G151: £m | H151: =SUM(J151:U151) -> 0
E153: Ofwat adjustment to capex - water resources - price control | G153: £m | H153: =SUM(J153:U153) -> 0
E154: Ofwat adjustment to capex - water resources - non price control | G154: £m | H154: =SUM(J154:U154) -> 0
E155: Ofwat adjustment to opex - water resources - price control | G155: £m | H155: =SUM(J155:U155) -> 0
E156: Ofwat adjustment to opex - water resources - non price control | G156: £m | H156: =SUM(J156:U156) -> 0
E158: Ofwat adjustment to capex - wastewater - price control | G158: £m | H158: =SUM(J158:U158) -> 0
E159: Ofwat adjustment to capex - wastewater - non price control | G159: £m | H159: =SUM(J159:U159) -> 0
E160: Ofwat adjustment to opex - wastewater - price control | G160: £m | H160: =SUM(J160:U160) -> 0
E161: Ofwat adjustment to opex - wastewater - non price control | G161: £m | H161: =SUM(J161:U161) -> 0
E163: Overrides applied | F163: =COUNT(J148:U151,J153:U156,J158:U161) -> 0 | G163: flag
A167: End of sheet

Sheet Time
A1: =RIGHT(CELL("FILENAME", $A$1), LEN(CELL("FILENAME", $A$1)) - SEARCH("]", CELL("FILENAME", $A$1))) -> Time | F1: =IF(InpActive!$F$163 + InpOverride!$F$77 > 0, "Overrides", "No Overrides") -> No Overrides
E2: =Time!E$25 -> Model period ending | F2: =Check!$F$11 -> 0 | G2: Checks | J2: =Time!J$25 -> 2019-03-31 | K2: =Time!K$25 -> 2020-03-31 | L2: =Time!L$25 -> 2021-03-31 | M2: =Time!M$25 -> 2022-03-31 | N2: =Time!N$25 -> 2023-03-31 | O2: =Time!O$25 -> 2024-03-31 | P2: =Time!P$25 -> 2025-03-31 | Q2: =Time!Q$25 -> 2026-03-31 | R2: =Time!R$25 -> 2027-03-31 | S2: =Time!S$25 -> 2028-03-31 | T2: =Time!T$25 -> 2029-03-31 | U2: =Time!U$25 -> 2030-03-31
E3: =Time!E$104 -> Timeline label | F3: =Check!$F$28 -> 44 | G3: Track chgs | J3: =Time!J$104 -> Pre-Fcst | K3: =Time!K$104 -> Pre-Fcst | L3: =Time!L$104 -> Forecast | M3: =Time!M$104 -> Forecast | N3: =Time!N$104 -> Forecast | O3: =Time!O$104 -> Forecast | P3: =Time!P$104 -> Forecast | Q3: =Time!Q$104 -> Post-Fcst | R3: =Time!R$104 -> Post-Fcst | S3: =Time!S$104 -> Post-Fcst | T3: =Time!T$104 -> Post-Fcst | U3: =Time!U$104 -> Post-Fcst
E4: =Time!E$127 -> Financial year ending | J4: =Time!J$127 -> 2019 | K4: =Time!K$127 -> 2020 | L4: =Time!L$127 -> 2021 | M4: =Time!M$127 -> 2022 | N4: =Time!N$127 -> 2023 | O4: =Time!O$127 -> 2024 | P4: =Time!P$127 -> 2025 | Q4: =Time!Q$127 -> 2026 | R4: =Time!R$127 -> 2027 | S4: =Time!S$127 -> 2028 | T4: =Time!T$127 -> 2029 | U4: =Time!U$127 -> 2030
E5: =Time!E$10 -> Model column counter | F5: Constant | G5: Unit | H5: Total | J5: =Time!J$10 -> 1 | K5: =Time!K$10 -> 2 | L5: =Time!L$10 -> 3 | M5: =Time!M$10 -> 4 | N5: =Time!N$10 -> 5 | O5: =Time!O$10 -> 6 | P5: =Time!P$10 -> 7 | Q5: =Time!Q$10 -> 8 | R5: =Time!R$10 -> 9 | S5: =Time!S$10 -> 10 | T5: =Time!T$10 -> 11 | U5: =Time!U$10 -> 12
A7: MODEL PERIOD
B9: Model column counter
E10: Model column counter | G10: counter | J10: =I10 + 1 -> 1 | K10: 2 | L10: 3 | M10: 4 | N10: 5 | O10: 6 | P10: 7 | Q10: 8 | R10: 9 | S10: =R10 + 1 -> 10 | T10: =S10 + 1 -> 11 | U10: =T10 + 1 -> 12
E11: Model column total | F11: =MAX(J10:U10) -> 12 | G11: columns
E13: =E$10 -> Model column counter | F13: 0 | G13: counter | H13: 0 | I13: 0 | J13: 1 | K13: 2 | L13: 3 | M13: 4 | N13: 5 | O13: 6 | P13: 7 | Q13: 8 | R13: 9 | S13: 10 | T13: 11 | U13: 12
E14: 1st model column flag | G14: flag | H14: =SUM(J14:U14) -> 1 | J14: =IF(J13 = 1, 1, 0) -> 1 | K14: 0 | L14: 0 | M14: 0 | N14: 0 | O14: 0 | P14: 0 | Q14: 0 | R14: 0 | S14: =IF(S13 = 1, 1, 0) -> 0 | T14: =IF(T13 = 1, 1, 0) -> 0 | U14: =IF(U13 = 1, 1, 0) -> 0
B16: Model period beginning
E17: =InpActive!E$13 -> 1st model column start date | F17: =InpActive!F$13 -> 2018-04-01 | G17: =InpActive!G$13 -> date
E18: =InpActive!E$36 -> Months per model period | F18: =InpActive!F$36 -> 12 | G18: =InpActive!G$36 -> months
E19: =E$14 -> 1st model column flag | F19: 0 | G19: flag | H19: 1 | I19: 0 | J19: 1 | K19: 0 | L19: 0 | M19: 0 | N19: 0 | O19: 0 | P19: 0 | Q19: 0 | R19: 0 | S19: 0 | T19: 0 | U19: 0
E20: Model period beginning | G20: date | J20: =IF(J19 = 1, $F17, DATE(YEAR(I20), MONTH(I20) + $F18, DAY(1))) -> 2018-04-01 | K20: 2019-04-01 | L20: 2020-04-01 | M20: 2021-04-01 | N20: 2022-04-01 | O20: 2023-04-01 | P20: 2024-04-01 | Q20: 2025-04-01 | R20: 2026-04-01 | S20: =IF(S19 = 1, $F17, DATE(YEAR(R20), MONTH(R20) + $F18, DAY(1))) -> 2027-04-01 | T20: =IF(T19 = 1, $F17, DATE(YEAR(S20), MONTH(S20) + $F18, DAY(1))) -> 2028-04-01 | U20: =IF(U19 = 1, $F17, DATE(YEAR(T20), MONTH(T20) + $F18, DAY(1))) -> 2029-04-01
B22: Model period ending
E23: =InpActive!E$36 -> Months per model period | F23: =InpActive!F$36 -> 12 | G23: =InpActive!G$36 -> months
E24: =E$20 -> Model period beginning | F24: 00:00:00 | G24: date | H24: 00:00:00 | I24: 00:00:00 | J24: 2018-04-01 | K24: 2019-04-01 | L24: 2020-04-01 | M24: 2021-04-01 | N24: 2022-04-01 | O24: 2023-04-01 | P24: 2024-04-01 | Q24: 2025-04-01 | R24: 2026-04-01 | S24: 2027-04-01 | T24: 2028-04-01 | U24: 2029-04-01
E25: Model period ending | G25: date | J25: =DATE(YEAR(J24), MONTH(J24) + $F23, DAY(J24) - 1) -> 2019-03-31 | K25: 2020-03-31 | L25: 2021-03-31 | M25: 2022-03-31 | N25: 2023-03-31 | O25: 2024-03-31 | P25: 2025-03-31 | Q25: 2026-03-31 | R25: 2027-03-31 | S25: =DATE(YEAR(S24), MONTH(S24) + $F23, DAY(S24) - 1) -> 2028-03-31 | T25: =DATE(YEAR(T24), MONTH(T24) + $F23, DAY(T24) - 1) -> 2029-03-31 | U25: =DATE(YEAR(U24), MONTH(U24) + $F23, DAY(U24) - 1) -> 2030-03-31
E27: =E$25 -> Model period ending | F27: 00:00:00 | G27: date | H27: 00:00:00 | I27: 00:00:00 | J27: 2019-03-31 | K27: 2020-03-31 | L27: 2021-03-31 | M27: 2022-03-31 | N27: 2023-03-31 | O27: 2024-03-31 | P27: 2025-03-31 | Q27: 2026-03-31 | R27: 2027-03-31 | S27: 2028-03-31 | T27: 2029-03-31 | U27: 2030-03-31
E28: =E$20 -> Model period beginning | F28: 00:00:00 | G28: date | H28: 00:00:00 | I28: 00:00:00 | J28: 2018-04-01 | K28: 2019-04-01 | L28: 2020-04-01 | M28: 2021-04-01 | N28: 2022-04-01 | O28: 2023-04-01 | P28: 2024-04-01 | Q28: 2025-04-01 | R28: 2026-04-01 | S28: 2027-04-01 | T28: 2028-04-01 | U28: 2029-04-01
E29: Days in a year | G29: days | J29: =J27 - J28 + 1 -> 365 | K29: =K27 - K28 + 1 -> 366 | L29: 365 | M29: 365 | N29: 365 | O29: 366 | P29: 365 | Q29: 365 | R29: 365 | S29: 366 | T29: 365 | U29: 365
A32: FORECAST PERIOD
B34: Forecast start period flag
E35: =InpActive!E$28 -> Forecast start date | F35: =InpActive!F$28 -> 2020-04-01 | G35: =InpActive!G$28 -> date
E36: =E$20 -> Model period beginning | F36: 00:00:00 | G36: date | H36: 00:00:00 | I36: 00:00:00 | J36: 2018-04-01 | K36: 2019-04-01 | L36: 2020-04-01 | M36: 2021-04-01 | N36: 2022-04-01 | O36: 2023-04-01 | P36: 2024-04-01 | Q36: 2025-04-01 | R36: 2026-04-01 | S36: 2027-04-01 | T36: 2028-04-01 | U36: 2029-04-01
E37: =E$25 -> Model period ending | F37: 00:00:00 | G37: date | H37: 00:00:00 | I37: 00:00:00 | J37: 2019-03-31 | K37: 2020-03-31 | L37: 2021-03-31 | M37: 2022-03-31 | N37: 2023-03-31 | O37: 2024-03-31 | P37: 2025-03-31 | Q37: 2026-03-31 | R37: 2027-03-31 | S37: 2028-03-31 | T37: 2029-03-31 | U37: 2030-03-31
E38: Forecast start period flag | G38: flag | H38: =SUM(J38:U38) -> 1 | J38: =IF(AND($F35 >= J36, $F35 <= J37), 1, 0) -> 0 | K38: =IF(AND($F35 >= K36, $F35 <= K37), 1, 0) -> 0 | L38: 1 | M38: 0 | N38: 0 | O38: 0 | P38: 0 | Q38: 0 | R38: 0 | S38: =IF(AND($F35 >= S36, $F35 <= S37), 1, 0) -> 0 | T38: =IF(AND($F35 >= T36, $F35 <= T37), 1, 0) -> 0 | U38: =IF(AND($F35 >= U36, $F35 <= U37), 1, 0) -> 0
B40: Forecast end period flag
E41: =InpActive!E$28 -> Forecast start date | F41: =InpActive!F$28 -> 2020-04-01 | G41: =InpActive!G$28 -> date
E42: =InpActive!E$29 -> Forecast duration | F42: =InpActive!F$29 -> 10 | G42: =InpActive!G$29 -> years
E43: Forecast end date | F43: =DATE(YEAR(F41) + F42, MONTH(F41), DAY(F41) - 1) -> 2030-03-31 | G43: date
E45: =E$43 -> Forecast end date | F45: =F$43 -> 2030-03-31 | G45: =G$43 -> date
E46: =E$20 -> Model period beginning | F46: 00:00:00 | G46: date | H46: 00:00:00 | I46: 00:00:00 | J46: 2018-04-01 | K46: 2019-04-01 | L46: 2020-04-01 | M46: 2021-04-01 | N46: 2022-04-01 | O46: 2023-04-01 | P46: 2024-04-01 | Q46: 2025-04-01 | R46: 2026-04-01 | S46: 2027-04-01 | T46: 2028-04-01 | U46: 2029-04-01
E47: =E$25 -> Model period ending | F47: 00:00:00 | G47: date | H47: 00:00:00 | I47: 00:00:00 | J47: 2019-03-31 | K47: 2020-03-31 | L47: 2021-03-31 | M47: 2022-03-31 | N47: 2023-03-31 | O47: 2024-03-31 | P47: 2025-03-31 | Q47: 2026-03-31 | R47: 2027-03-31 | S47: 2028-03-31 | T47: 2029-03-31 | U47: 2030-03-31
E48: Forecast end period flag | G48: flag | H48: =SUM(J48:U48) -> 1 | J48: =IF(AND($F45 >= J46, $F45 <= J47), 1, 0) -> 0 | K48: 0 | L48: 0 | M48: 0 | N48: 0 | O48: 0 | P48: 0 | Q48: 0 | R48: 0 | S48: 0 | T48: 0 | U48: 1
B50: Forecast period flag
E51: =E$38 -> Forecast start period flag | F51: =F$38 -> 0 | G51: flag | H51: 1 | I51: 0 | J51: 0 | K51: 0 | L51: 1 | M51: 0 | N51: 0 | O51: 0 | P51: 0 | Q51: 0 | R51: 0 | S51: 0 | T51: 0 | U51: 0
E52: =E$48 -> Forecast end period flag | F52: =F$48 -> 0 | G52: flag | H52: 1 | I52: 0 | J52: 0 | K52: 0 | L52: 0 | M52: 0 | N52: 0 | O52: 0 | P52: 0 | Q52: 0 | R52: 0 | S52: 0 | T52: 0 | U52: 1
E53: Forecast period flag | G53: flag | H53: =SUM(J53:U53) -> 10 | J53: =J51 + I53 - I52 -> 0 | K53: =K51 + J53 - J52 -> 0 | L53: 1 | M53: 1 | N53: 1 | O53: 1 | P53: 1 | Q53: 1 | R53: 1 | S53: =S51 + R53 - R52 -> 1 | T53: =T51 + S53 - S52 -> 1 | U53: =U51 + T53 - T52 -> 1
E54: Total number of forecast periods | F54: =SUM(J53:U53) -> 10 | G54: periods
B56: Pre-forecast period flag
E57: =E$14 -> 1st model column flag | F57: =F$14 -> 0 | G57: flag | H57: 1 | I57: 0 | J57: 1 | K57: 0 | L57: 0 | M57: 0 | N57: 0 | O57: 0 | P57: 0 | Q57: 0 | R57: 0 | S57: 0 | T57: 0 | U57: 0
E58: =E$38 -> Forecast start period flag | F58: =F$38 -> 0 | G58: flag | H58: 1 | I58: 0 | J58: 0 | K58: 0 | L58: 1 | M58: 0 | N58: 0 | O58: 0 | P58: 0 | Q58: 0 | R58: 0 | S58: 0 | T58: 0 | U58: 0
E59: Pre-forecast period flag | G59: flag | H59: =SUM(J59:U59) -> 2 | J59: =J57 + I59 - J58 -> 1 | K59: =K57 + J59 - K58 -> 1 | L59: 0 | M59: 0 | N59: 0 | O59: 0 | P59: 0 | Q59: 0 | R59: 0 | S59: =S57 + R59 - S58 -> 0 | T59: =T57 + S59 - T58 -> 0 | U59: =U57 + T59 - U58 -> 0
E60: Pre-forecast period flag - total | F60: =SUM(J59:U59) -> 2 | G60: periods
E62: =E$38 -> Forecast start period flag | F62: =F$38 -> 0 | G62: flag | H62: 1 | I62: 0 | J62: 0 | K62: 0 | L62: 1 | M62: 0 | N62: 0 | O62: 0 | P62: 0 | Q62: 0 | R62: 0 | S62: 0 | T62: 0 | U62: 0
E63: Last pre-forecast period flag | G63: flag | H63: =SUM(J63:U63) -> 1 | J63: =K62 -> 0 | K63: =L62 -> 1 | L63: 0 | M63: 0 | N63: 0 | O63: 0 | P63: 0 | Q63: 0 | R63: 0 | S63: =T62 -> 0 | T63: =U62 -> 0 | U63: =V62 -> 0
B65: First post-forecast period flag
E66: =E$48 -> Forecast end period flag | F66: =F$48 -> 0 | G66: flag | H66: 1 | I66: 0 | J66: 0 | K66: 0 | L66: 0 | M66: 0 | N66: 0 | O66: 0 | P66: 0 | Q66: 0 | R66: 0 | S66: 0 | T66: 0 | U66: 1
E67: First post-forecast period flag | G67: flag | H67: =SUM(J67:U67) -> 0 | J67: =I66 -> 0 | K67: =J66 -> 0 | L67: 0 | M67: 0 | N67: 0 | O67: 0 | P67: 0 | Q67: 0 | R67: 0 | S67: =R66 -> 0 | T67: =S66 -> 0 | U67: =T66 -> 0
B69: Post-forecast period flag
E70: =E$67 -> First post-forecast period flag | F70: 0 | G70: flag | H70: 0 | I70: 0 | J70: 0 | K70: 0 | L70: 0 | M70: 0 | N70: 0 | O70: 0 | P70: 0 | Q70: 0 | R70: 0 | S70: 0 | T70: 0 | U70: 0
E71: Post-forecast period flag | G71: flag | H71: =SUM(J71:U71) -> 0 | J71: =J70 + I71 -> 0 | K71: =K70 + J71 -> 0 | L71: 0 | M71: 0 | N71: 0 | O71: 0 | P71: 0 | Q71: 0 | R71: 0 | S71: =S70 + R71 -> 0 | T71: =T70 + S71 -> 0 | U71: =U70 + T71 -> 0
E72: Post-forecast period - total | F72: =SUM(J71:U71) -> 0 | G72: periods
B74: Model period flag
E75: =E$53 -> Forecast period flag | F75: =F$53 -> 0 | G75: flag | H75: 10 | I75: 0 | J75: 0 | K75: 0 | L75: 1 | M75: 1 | N75: 1 | O75: 1 | P75: 1 | Q75: 1 | R75: 1 | S75: 1 | T75: 1 | U75: 1
E76: =E$59 -> Pre-forecast period flag | F76: =F$59 -> 0 | G76: flag | H76: 2 | I76: 0 | J76: 1 | K76: 1 | L76: 0 | M76: 0 | N76: 0 | O76: 0 | P76: 0 | Q76: 0 | R76: 0 | S76: 0 | T76: 0 | U76: 0
E77: Model period flag | G77: flag | H77: =SUM(J77:U77) -> 12 | J77: =MAX(J75:J76) -> 1 | K77: =MAX(K75:K76) -> 1 | L77: 1 | M77: 1 | N77: 1 | O77: 1 | P77: 1 | Q77: 1 | R77: 1 | S77: 1 | T77: 1 | U77: 1
B79: Forecast year
E80: =E$127 -> Financial year ending | F80: =F$127 -> 0 | G80: year # | H80: 0 | I80: 0 | J80: 2019 | K80: 2020 | L80: 2021 | M80: 2022 | N80: 2023 | O80: 2024 | P80: 2025 | Q80: 2026 | R80: 2027 | S80: 2028 | T80: 2029 | U80: 2030
E81: =E$38 -> Forecast start period flag | F81: =F$38 -> 0 | G81: flag | H81: 1 | I81: 0 | J81: 0 | K81: 0 | L81: 1 | M81: 0 | N81: 0 | O81: 0 | P81: 0 | Q81: 0 | R81: 0 | S81: 0 | T81: 0 | U81: 0
E82: Forecast year 1 | F82: =SUMPRODUCT(J81:U81, J80:U80) -> 2021 | G82: year #
E84: =E$82 -> Forecast year 1 | F84: =F$82 -> 2021 | G84: =G$82 -> year #
E85: Forecast year 2 | F85: =F$84 + COUNT(F$84:F84) -> 2022 | G85: year #
E86: Forecast year 3 | F86: =F$84 + COUNT(F$84:F85) -> 2023 | G86: year #
E87: Forecast year 4 | F87: =F$84 + COUNT(F$84:F86) -> 2024 | G87: year #
E88: Forecast year 5 | F88: =F$84 + COUNT(F$84:F87) -> 2025 | G88: year #
A91: MODEL TIMELINE
B94: Timeline label
E95: =E$14 -> 1st model column flag | F95: 0 | G95: flag | H95: 1 | I95: 0 | J95: 1 | K95: 0 | L95: 0 | M95: 0 | N95: 0 | O95: 0 | P95: 0 | Q95: 0 | R95: 0 | S95: 0 | T95: 0 | U95: 0
E96: =E$38 -> Forecast start period flag | F96: =F$38 -> 0 | G96: flag | H96: 1 | I96: 0 | J96: 0 | K96: 0 | L96: 1 | M96: 0 | N96: 0 | O96: 0 | P96: 0 | Q96: 0 | R96: 0 | S96: 0 | T96: 0 | U96: 0
E97: =E$67 -> First post-forecast period flag | F97: 0 | G97: flag | H97: 0 | I97: 0 | J97: 0 | K97: 0 | L97: 0 | M97: 0 | N97: 0 | O97: 0 | P97: 0 | Q97: 0 | R97: 0 | S97: 0 | T97: 0 | U97: 0
E98: Timeline label counter | G98: counter | J98: =I98 + SUM(J95:J97) -> 1 | K98: 1 | L98: 2 | M98: 2 | N98: 2 | O98: 2 | P98: 2 | Q98: 3 | R98: 3 | S98: =R98 + SUM(S95:S97) -> 3 | T98: =S98 + SUM(T95:T97) -> 3 | U98: =T98 + SUM(U95:U97) -> 3
E100: =InpActive!E$20 -> Pre - forecast period | F100: =InpActive!F$20 -> Pre-Fcst | G100: =InpActive!G$20 -> label
E101: =InpActive!E$21 -> Forecast period | F101: =InpActive!F$21 -> Forecast | G101: =InpActive!G$21 -> label
E102: =InpActive!E$22 -> Post - forecast period | F102: =InpActive!F$22 -> Post-Fcst | G102: =InpActive!G$22 -> label
E103: =E$98 -> Timeline label counter | F103: 0 | G103: counter | H103: 0 | I103: 0 | J103: 1 | K103: 1 | L103: 2 | M103: 2 | N103: 2 | O103: 2 | P103: 2 | Q103: 3 | R103: 3 | S103: 3 | T103: 3 | U103: 3
E104: Timeline label | G104: label | J104: =INDEX($F100:$F102, J103) -> Pre-Fcst | K104: Pre-Fcst | L104: Forecast | M104: Forecast | N104: Forecast | O104: Forecast | P104: Forecast | Q104: =INDEX($F100:$F102, Q103) -> Post-Fcst | R104: Post-Fcst | S104: =INDEX($F100:$F102, S103) -> Post-Fcst | T104: =INDEX($F100:$F102, T103) -> Post-Fcst | U104: =INDEX($F100:$F102, U103) -> Post-Fcst
B106: Modelling period check
E107: =E$59 -> Pre-forecast period flag | F107: =F$59 -> 0 | G107: flag | H107: 2 | I107: 0 | J107: 1 | K107: 1 | L107: 0 | M107: 0 | N107: 0 | O107: 0 | P107: 0 | Q107: 0 | R107: 0 | S107: 0 | T107: 0 | U107: 0
E108: =E$53 -> Forecast period flag | F108: =F$53 -> 0 | G108: flag | H108: 10 | I108: 0 | J108: 0 | K108: 0 | L108: 1 | M108: 1 | N108: 1 | O108: 1 | P108: 1 | Q108: 1 | R108: 1 | S108: 1 | T108: 1 | U108: 1
E109: =E$71 -> Post-forecast period flag | F109: 0 | G109: flag | H109: 0 | I109: 0 | J109: 0 | K109: 0 | L109: 0 | M109: 0 | N109: 0 | O109: 0 | P109: 0 | Q109: 0 | R109: 0 | S109: 0 | T109: 0 | U109: 0
E110: No. of overlapping in flags | G110: # | H110: =SUM(J110:U110) -> 0 | J110: =MAX(0, SUM(J107:J109) - 1) -> 0 | K110: 0 | L110: 0 | M110: 0 | N110: 0 | O110: 0 | P110: 0 | Q110: 0 | R110: 0 | S110: =MAX(0, SUM(S107:S109) - 1) -> 0 | T110: =MAX(0, SUM(T107:T109) - 1) -> 0 | U110: =MAX(0, SUM(U107:U109) - 1) -> 0
E111: Overlapping in periods - total | F111: =SUM(J110:U110) -> 0 | G111: periods
E113: =E$11 -> Model column total | F113: =F$11 -> 12 | G113: =G$11 -> columns
E114: =E$111 -> Overlapping in periods - total | F114: =F$111 -> 0 | G114: =G$111 -> periods
E115: =E$60 -> Pre-forecast period flag - total | F115: =F$60 -> 2 | G115: =G$60 -> periods
E116: =E$54 -> Total number of forecast periods | F116: =F$54 -> 10 | G116: =G$54 -> periods
E117: =E$72 -> Post-forecast period - total | F117: =F$72 -> 0 | G117: =G$72 -> periods
E118: Modelling period check | F118: =IF(SUM(F113:F114) - SUM(F115:F117) <> 0, 1, 0) -> 0 | G118: check
A121: FINANCIAL YEAR
E123: =InpActive!E$16 -> First modelling column financial year# | F123: =InpActive!F$16 -> 2019 | G123: =InpActive!G$16 -> year #
E124: =InpActive!E$17 -> Financial year end month number | F124: =InpActive!F$17 -> 3 | G124: =InpActive!G$17 -> month #
E125: =E$25 -> Model period ending | F125: 00:00:00 | G125: date | H125: 00:00:00 | I125: 00:00:00 | J125: 2019-03-31 | K125: 2020-03-31 | L125: 2021-03-31 | M125: 2022-03-31 | N125: 2023-03-31 | O125: 2024-03-31 | P125: 2025-03-31 | Q125: 2026-03-31 | R125: 2027-03-31 | S125: 2028-03-31 | T125: 2029-03-31 | U125: 2030-03-31
E126: =E$14 -> 1st model column flag | F126: 0 | G126: flag | H126: 1 | I126: 0 | J126: 1 | K126: 0 | L126: 0 | M126: 0 | N126: 0 | O126: 0 | P126: 0 | Q126: 0 | R126: 0 | S126: 0 | T126: 0 | U126: 0
E127: Financial year ending | G127: year # | J127: =IF(J126 = 1, $F123, IF(J125 > (DATE(I127, $F124 + 1, 1) - 1), I127 + 1, I127)) -> 2019 | K127: 2020 | L127: 2021 | M127: 2022 | N127: 2023 | O127: 2024 | P127: 2025 | Q127: 2026 | R127: 2027 | S127: =IF(S126 = 1, $F123, IF(S125 > (DATE(R127, $F124 + 1, 1) - 1), R127 + 1, R127)) -> 2028 | T127: =IF(T126 = 1, $F123, IF(T125 > (DATE(S127, $F124 + 1, 1) - 1), S127 + 1, S127)) -> 2029 | U127: =IF(U126 = 1, $F123, IF(U125 > (DATE(T127, $F124 + 1, 1) - 1), T127 + 1, T127)) -> 2030
A130: End of sheet

Sheet Calcs >>

Sheet G&C Water
A1: =RIGHT(CELL("filename", $A$1), LEN(CELL("filename", $A$1)) - SEARCH("]", CELL("filename", $A$1))) -> G&C Water | F1: =IF(InpActive!$F$163 + InpOverride!$F$77 > 0, "Overrides", "No Overrides") -> No Overrides
E2: =Time!E2 -> Model period ending | F2: =Check!$F$11 -> 0 | G2: Checks | J2: =Time!J$25 -> 2019-03-31 | K2: =Time!K$25 -> 2020-03-31 | L2: =Time!L$25 -> 2021-03-31 | M2: =Time!M$25 -> 2022-03-31 | N2: =Time!N$25 -> 2023-03-31 | O2: =Time!O$25 -> 2024-03-31 | P2: =Time!P$25 -> 2025-03-31 | Q2: =Time!Q$25 -> 2026-03-31 | R2: =Time!R$25 -> 2027-03-31 | S2: =Time!S$25 -> 2028-03-31 | T2: =Time!T$25 -> 2029-03-31 | U2: =Time!U$25 -> 2030-03-31
E3: =Time!E3 -> Timeline label | F3: =Check!$F$28 -> 44 | G3: Track chgs | J3: =Time!J$104 -> Pre-Fcst | K3: =Time!K$104 -> Pre-Fcst | L3: =Time!L$104 -> Forecast | M3: =Time!M$104 -> Forecast | N3: =Time!N$104 -> Forecast | O3: =Time!O$104 -> Forecast | P3: =Time!P$104 -> Forecast | Q3: =Time!Q$104 -> Post-Fcst | R3: =Time!R$104 -> Post-Fcst | S3: =Time!S$104 -> Post-Fcst | T3: =Time!T$104 -> Post-Fcst | U3: =Time!U$104 -> Post-Fcst
E4: =Time!E4 -> Financial year ending | J4: =Time!J$127 -> 2019 | K4: =Time!K$127 -> 2020 | L4: =Time!L$127 -> 2021 | M4: =Time!M$127 -> 2022 | N4: =Time!N$127 -> 2023 | O4: =Time!O$127 -> 2024 | P4: =Time!P$127 -> 2025 | Q4: =Time!Q$127 -> 2026 | R4: =Time!R$127 -> 2027 | S4: =Time!S$127 -> 2028 | T4: =Time!T$127 -> 2029 | U4: =Time!U$127 -> 2030
E5: =Time!E5 -> Model column counter | F5: Constant | G5: Unit | H5: Total | J5: =Time!J$10 -> 1 | K5: =Time!K$10 -> 2 | L5: =Time!L$10 -> 3 | M5: =Time!M$10 -> 4 | N5: =Time!N$10 -> 5 | O5: =Time!O$10 -> 6 | P5: =Time!P$10 -> 7 | Q5: =Time!Q$10 -> 8 | R5: =Time!R$10 -> 9 | S5: =Time!S$10 -> 10 | T5: =Time!T$10 -> 11 | U5: =Time!U$10 -> 12
A7: WATER GRANTS & CONTRIBUTIONS FEEDER CALCULATION
B9: There is 'new developments' expenditure for both Water Network and Water Resources
B10: There is no 'new connections' expenditure for Water Resources
A12: Recovery rate
B13: Calculate the recovery rate: G&C divided by new developments totex
C15: Company View of new development totex
B16: Assume diversions expenditure = diversions G&C since 100% recovery rate
E17: =InpActive!E$103 -> New developments - Total | F17: =InpActive!F$103 -> 0 | G17: =InpActive!G$103 -> £m | H17: =InpActive!H$103 -> 136.4680202 | I17: =InpActive!I$103 -> 0 | J17: =InpActive!J$103 -> 0 | K17: =InpActive!K$103 -> 0 | L17: =InpActive!L$103 -> 16.2393271 | M17: =InpActive!M$103 -> 29.32824226 | N17: =InpActive!N$103 -> 33.07116331 | O17: =InpActive!O$103 -> 30.74416918 | P17: =InpActive!P$103 -> 27.08511838 | Q17: =InpActive!Q$103 -> 0 | R17: =InpActive!R$103 -> 0 | S17: =InpActive!S$103 -> 0 | T17: =InpActive!T$103 -> 0 | U17: =InpActive!U$103 -> 0
E18: =InpActive!E$109 -> Enhancement expenditure by purpose ~ operating - New developments - Total | F18: =InpActive!F$109 -> 0 | G18: =InpActive!G$109 -> £m | H18: =InpActive!H$109 -> 0.3844088438 | I18: =InpActive!I$109 -> 0 | J18: =InpActive!J$109 -> 0 | K18: =InpActive!K$109 -> 0 | L18: =InpActive!L$109 -> 0 | M18: =InpActive!M$109 -> 0.0391074727 | N18: =InpActive!N$109 -> 0.0387183369 | O18: =InpActive!O$109 -> 0.0383616363 | P18: =InpActive!P$109 -> 0.2682213979 | Q18: =InpActive!Q$109 -> 0 | R18: =InpActive!R$109 -> 0 | S18: =InpActive!S$109 -> 0 | T18: =InpActive!T$109 -> 0 | U18: =InpActive!U$109 -> 0
E19: Company view of new developments totex (excl. diversions) - water - 2017/18 FYA CPIH deflated | G19: £m | H19: =SUM(J19:U19) -> 136.8524291 | J19: =SUM(J17:J18) -> 0 | K19: =SUM(K17:K18) -> 0 | L19: =SUM(L17:L18) -> 16.2393271 | M19: 29.36734973 | N19: 33.10988164 | O19: 30.78253082 | P19: 27.35333978 | Q19: 0 | R19: 0 | S19: 0 | T19: 0 | U19: 0
C21: Company View of new connections totex
E22: =InpActive!E$104 -> New connections element of new development (CPs, meters) - Total | F22: =InpActive!F$104 -> 0 | G22: =InpActive!G$104 -> £m | H22: =InpActive!H$104 -> 118.0146718 | I22: =InpActive!I$104 -> 0 | J22: =InpActive!J$104 -> 0 | K22: =InpActive!K$104 -> 0 | L22: =InpActive!L$104 -> 25.35103504 | M22: =InpActive!M$104 -> 24.31059703 | N22: =InpActive!N$104 -> 23.00590063 | O22: =InpActive!O$104 -> 22.71571992 | P22: =InpActive!P$104 -> 22.63141916 | Q22: =InpActive!Q$104 -> 0 | R22: =InpActive!R$104 -> 0 | S22: =InpActive!S$104 -> 0 | T22: =InpActive!T$104 -> 0 | U22: =InpActive!U$104 -> 0
E23: =InpActive!E$110 -> Enhancement expenditure by purpose ~ operating - New connections element of new development (CPs, meters) - Total | F23: =InpActive!F$110 -> 0 | G23: =InpActive!G$110 -> £m | H23: =InpActive!H$110 -> 0 | I23: =InpActive!I$110 -> 0 | J23: =InpActive!J$110 -> 0 | K23: =InpActive!K$110 -> 0 | L23: =InpActive!L$110 -> 0 | M23: =InpActive!M$110 -> 0 | N23: =InpActive!N$110 -> 0 | O23: =InpActive!O$110 -> 0 | P23: =InpActive!P$110 -> 0 | Q23: =InpActive!Q$110 -> 0 | R23: =InpActive!R$110 -> 0 | S23: =InpActive!S$110 -> 0 | T23: =InpActive!T$110 -> 0 | U23: =InpActive!U$110 -> 0
E24: Company view of new connections totex - water - 2017/18 FYA CPIH deflated | G24: £m | H24: =SUM(J24:U24) -> 118.0146718 | J24: =SUM(J22:J23) -> 0 | K24: =SUM(K22:K23) -> 0 | L24: =SUM(L22:L23) -> 25.35103504 | M24: 24.31059703 | N24: 23.00590063 | O24: 22.71571992 | P24: 22.63141916 | Q24: 0 | R24: 0 | S24: 0 | T24: 0 | U24: 0
C26: Calculate RECOVERY RATES
B27: Calculate the company view of G&C as a proportion of new developments totex
E28: =InpActive!E$56 -> Infrastructure charge receipts (s146) - water | F28: =InpActive!F$56 -> 0 | G28: =InpActive!G$56 -> £m | H28: =InpActive!H$56 -> -36.45067384 | I28: =InpActive!I$56 -> 0 | J28: =InpActive!J$56 -> 0 | K28: =InpActive!K$56 -> 0 | L28: =InpActive!L$56 -> -7.890074308 | M28: =InpActive!M$56 -> -7.557520945 | N28: =InpActive!N$56 -> -7.115321065 | O28: =InpActive!O$56 -> -6.981203106 | P28: =InpActive!P$56 -> -6.906554414 | Q28: =InpActive!Q$56 -> 0 | R28: =InpActive!R$56 -> 0 | S28: =InpActive!S$56 -> 0 | T28: =InpActive!T$56 -> 0 | U28: =InpActive!U$56 -> 0
E29: =InpActive!E$57 -> Requisitioned mains (s43, s55 & s56) - water | F29: =InpActive!F$57 -> 0 | G29: =InpActive!G$57 -> £m | H29: =InpActive!H$57 -> 33.39563352 | I29: =InpActive!I$57 -> 0 | J29: =InpActive!J$57 -> 0 | K29: =InpActive!K$57 -> 0 | L29: =InpActive!L$57 -> 7.104782138 | M29: =InpActive!M$57 -> 6.848708904 | N29: =InpActive!N$57 -> 6.522714977 | O29: =InpActive!O$57 -> 6.462724079 | P29: =InpActive!P$57 -> 6.45670342 | Q29: =InpActive!Q$57 -> 0 | R29: =InpActive!R$57 -> 0 | S29: =InpActive!S$57 -> 0 | T29: =InpActive!T$57 -> 0 | U29: =InpActive!U$57 -> 0
E30: =InpActive!E$58 -> Grants and contributions received ~ wholesale water service - Other contributions (price control) | F30: =InpActive!F$58 -> 0 | G30: =InpActive!G$58 -> £m | H30: =InpActive!H$58 -> 10.80859661 | I30: =InpActive!I$58 -> 0 | J30: =InpActive!J$58 -> 0 | K30: =InpActive!K$58 -> 0 | L30: =InpActive!L$58 -> 2.316558546 | M30: =InpActive!M$58 -> 2.22375369 | N30: =InpActive!N$58 -> 2.106310752 | O30: =InpActive!O$58 -> 2.083062733 | P30: =InpActive!P$58 -> 2.078910888 | Q30: =InpActive!Q$58 -> 0 | R30: =InpActive!R$58 -> 0 | S30: =InpActive!S$58 -> 0 | T30: =InpActive!T$58 -> 0 | U30: =InpActive!U$58 -> 0
E31: =InpActive!E$63 -> G&C received - water - other contributions (non-price control) - post-override | F31: =InpActive!F$63 -> 0 | G31: =InpActive!G$63 -> £m | H31: =InpActive!H$63 -> 0 | I31: =InpActive!I$63 -> 0 | J31: =InpActive!J$63 -> 0 | K31: =InpActive!K$63 -> 0 | L31: =InpActive!L$63 -> 14.27957581 | M31: =InpActive!M$63 -> 13.24026443 | N31: =InpActive!N$63 -> 8.941083708 | O31: =InpActive!O$63 -> 8.017404892 | P31: =InpActive!P$63 -> 5.31266027 | Q31: =InpActive!Q$63 -> 0 | R31: =InpActive!R$63 -> 0 | S31: =InpActive!S$63 -> 0 | T31: =InpActive!T$63 -> 0 | U31: =InpActive!U$63 -> 0
E32: Company view of G&C for new developments (excl. diversions) - water - 2017/18 FYA CPIH deflated | G32: £m | H32: =SUM(J32:U32) -> 57.54454539 | J32: =SUM(J28:J31) -> 0 | K32: =SUM(K28:K31) -> 0 | L32: 15.81084219 | M32: 14.75520608 | N32: 10.45478837 | O32: 9.581988597 | P32: 6.941720165 | Q32: 0 | R32: 0 | S32: 0 | T32: 0 | U32: 0
E34: =E$19 -> Company view of new developments totex (excl. diversions) - water - 2017/18 FYA CPIH deflated | F34: =F$19 -> 0 | G34: £m | H34: 136.8524291 | I34: 0 | J34: 0 | K34: 0 | L34: 16.2393271 | M34: 29.36734973 | N34: 33.10988164 | O34: 30.78253082 | P34: 27.35333978 | Q34: 0 | R34: 0 | S34: 0 | T34: 0 | U34: 0
E35: =E$32 -> Company view of G&C for new developments (excl. diversions) - water - 2017/18 FYA CPIH deflated | F35: =F$32 -> 0 | G35: £m | H35: 57.54454539 | I35: 0 | J35: 0 | K35: 0 | L35: 15.81084219 | M35: 14.75520608 | N35: 10.45478837 | O35: 9.581988597 | P35: 6.941720165 | Q35: 0 | R35: 0 | S35: 0 | T35: 0 | U35: 0
E36: Company view of G&C recovery rate - new developments - water | G36: % | J36: =IF(J34 = 0, 0, J35 / J34) -> 0 | K36: =IF(K34 = 0, 0, K35 / K34) -> 0 | L36: =IF(L34 = 0, 0, L35 / L34) -> 0.9736143679 | M36: 0.5024357394 | N36: 0.3157603668 | O36: 0.3112800781 | P36: 0.2537796196 | Q36: 0 | R36: 0 | S36: 0 | T36: 0 | U36: 0
E38: New developments G&C but no expenditure, water - check | F38: =IF( SUM(J38:U38) > 0, 1, 0) -> 0 | G38: check | J38: =IF( AND(J34 = 0, J35 > 0), 1, 0) -> 0 | K38: =IF( AND(K34 = 0, K35 > 0), 1, 0) -> 0 | L38: =IF( AND(L34 = 0, L35 > 0), 1, 0) -> 0 | M38: 0 | N38: 0 | O38: 0 | P38: 0 | Q38: 0 | R38: 0 | S38: 0 | T38: 0 | U38: 0
B40: Calculate the company view of G&C as a proportion of new connections totex
E41: =E$24 -> Company view of new connections totex - water - 2017/18 FYA CPIH deflated | F41: =F$24 -> 0 | G41: £m | H41: 118.0146718 | I41: 0 | J41: 0 | K41: 0 | L41: 25.35103504 | M41: 24.31059703 | N41: 23.00590063 | O41: 22.71571992 | P41: 22.63141916 | Q41: 0 | R41: 0 | S41: 0 | T41: 0 | U41: 0
E42: =InpActive!E$55 -> Connection charges (s45) - water | F42: =InpActive!F$55 -> 0 | G42: =InpActive!G$55 -> £m | H42: =InpActive!H$55 -> 114.047427 | I42: =InpActive!I$55 -> 0 | J42: =InpActive!J$55 -> 0 | K42: =InpActive!K$55 -> 0 | L42: =InpActive!L$55 -> 24.3707282 | M42: =InpActive!M$55 -> 23.43771491 | N42: =InpActive!N$55 -> 22.2605482 | O42: =InpActive!O$55 -> 22.01654114 | P42: =InpActive!P$55 -> 21.9618946 | Q42: =InpActive!Q$55 -> 0 | R42: =InpActive!R$55 -> 0 | S42: =InpActive!S$55 -> 0 | T42: =InpActive!T$55 -> 0 | U42: =InpActive!U$55 -> 0
E43: Company view of G&C recovery rate - new connections - water | G43: % | J43: =IF(J41 = 0, 0, J42 / J41) -> 0 | K43: =IF(K41 = 0, 0, K42 / K41) -> 0 | L43: =IF(L41 = 0, 0, L42 / L41) -> 0.9613306975 | M43: 0.9640945831 | N43: 0.9676016842 | O43: 0.9692204878 | P43: 0.9704161479 | Q43: 0 | R43: 0 | S43: 0 | T43: 0 | U43: 0
E45: New connections G&C but no expenditure, water - check | F45: =IF( SUM(J45:U45) > 0, 1, 0) -> 0 | G45: check | J45: =IF( AND(J41 = 0, J42 > 0), 1, 0) -> 0 | K45: =IF( AND(K41 = 0, K42 > 0), 1, 0) -> 0 | L45: =IF( AND(L41 = 0, L42 > 0), 1, 0) -> 0 | M45: 0 | N45: 0 | O45: 0 | P45: 0 | Q45: 0 | R45: 0 | S45: 0 | T45: 0 | U45: 0
B47: Option to override the calculated recovery rates
E48: =E$36 -> Company view of G&C recovery rate - new developments - water | F48: =F$36 -> 0 | G48: % | H48: 0 | I48: 0 | J48: 0 | K48: 0 | L48: 0.9736143679 | M48: 0.5024357394 | N48: 0.3157603668 | O48: 0.3112800781 | P48: 0.2537796196 | Q48: 0 | R48: 0 | S48: 0 | T48: 0 | U48: 0
E49: =InpActive!E$119 -> OFWAT view of G&C recovery rate - new developments - Water | F49: =InpActive!F$119 -> 0 | G49: =InpActive!G$119 -> % | H49: =InpActive!H$119 -> 0 | I49: =InpActive!I$119 -> 0 | J49: =InpActive!J$119 -> 0 | K49: =InpActive!K$119 -> 0 | L49: =InpActive!L$119 -> 0 | M49: =InpActive!M$119 -> 0 | N49: =InpActive!N$119 -> 0 | O49: =InpActive!O$119 -> 0 | P49: =InpActive!P$119 -> 0 | Q49: =InpActive!Q$119 -> 0 | R49: =InpActive!R$119 -> 0 | S49: =InpActive!S$119 -> 0 | T49: =InpActive!T$119 -> 0 | U49: =InpActive!U$119 -> 0
E50: G&C recovery rate - new developments - water - post-override | G50: % | J50: =IF(J49 = 0, J48, J49) -> 0 | K50: =IF(K49 = 0, K48, K49) -> 0 | L50: 0.9736143679 | M50: 0.5024357394 | N50: 0.3157603668 | O50: 0.3112800781 | P50: 0.2537796196 | Q50: 0 | R50: 0 | S50: 0 | T50: 0 | U50: 0
E52: =E$43 -> Company view of G&C recovery rate - new connections - water | F52: =F$43 -> 0 | G52: % | H52: 0 | I52: 0 | J52: 0 | K52: 0 | L52: 0.9613306975 | M52: 0.9640945831 | N52: 0.9676016842 | O52: 0.9692204878 | P52: 0.9704161479 | Q52: 0 | R52: 0 | S52: 0 | T52: 0 | U52: 0
E53: =InpActive!E$120 -> OFWAT view of G&C recovery rate - new connections - Water | F53: =InpActive!F$120 -> 0 | G53: =InpActive!G$120 -> % | H53: =InpActive!H$120 -> 5 | I53: =InpActive!I$120 -> 0 | J53: =InpActive!J$120 -> 0 | K53: =InpActive!K$120 -> 0 | L53: =InpActive!L$120 -> 1 | M53: =InpActive!M$120 -> 1 | N53: =InpActive!N$120 -> 1 | O53: =InpActive!O$120 -> 1 | P53: =InpActive!P$120 -> 1 | Q53: =InpActive!Q$120 -> 0 | R53: =InpActive!R$120 -> 0 | S53: =InpActive!S$120 -> 0 | T53: =InpActive!T$120 -> 0 | U53: =InpActive!U$120 -> 0
E54: G&C recovery rate - new connections - water - post-override | G54: % | J54: =IF(J53 = 0, J52, J53) -> 0 | K54: =IF(K53 = 0, K52, K53) -> 0 | L54: 1 | M54: 1 | N54: 1 | O54: 1 | P54: 1 | Q54: 0 | R54: 0 | S54: 0 | T54: 0 | U54: 0
A56: OFWAT view of expenditure (efficiency challenge)
B57: Calculate Ofwat's view of expenditure: company view of expenditure * efficiency challenge
C59: Efficiency Challenge * Company View - Capex
B60: New developments expenditure for both Water Network and Water Resources
E61: =InpActive!E$145 -> Water efficiency challenge - capex - (post override) | F61: =InpActive!F$145 -> 0.1390638769 | G61: =InpActive!G$145 -> %
E62: =InpActive!E$99 -> New developments - Water resources | F62: =InpActive!F$99 -> 0 | G62: =InpActive!G$99 -> £m | H62: =InpActive!H$99 -> 0 | I62: =InpActive!I$99 -> 0 | J62: =InpActive!J$99 -> 0 | K62: =InpActive!K$99 -> 0 | L62: =InpActive!L$99 -> 0 | M62: =InpActive!M$99 -> 0 | N62: =InpActive!N$99 -> 0 | O62: =InpActive!O$99 -> 0 | P62: =InpActive!P$99 -> 0 | Q62: =InpActive!Q$99 -> 0 | R62: =InpActive!R$99 -> 0 | S62: =InpActive!S$99 -> 0 | T62: =InpActive!T$99 -> 0 | U62: =InpActive!U$99 -> 0
E63: Ofwat view of capex - new developments - water resources - 2017/18 FYA CPIH deflated | G63: £m | H63: =SUM(J63:U63) -> 0 | J63: =(1 - $F$61) * J62 -> 0 | K63: =(1 - $F$61) * K62 -> 0 | L63: =(1 - $F$61) * L62 -> 0 | M63: =(1 - $F$61) * M62 -> 0 | N63: 0 | O63: 0 | P63: 0 | Q63: 0 | R63: 0 | S63: 0 | T63: 0 | U63: 0
E65: =InpActive!E$145 -> Water efficiency challenge - capex - (post override) | F65: =InpActive!F$145 -> 0.1390638769 | G65: =InpActive!G$145 -> %
E66: =InpActive!E$100 -> New developments - Raw water distribution | F66: =InpActive!F$100 -> 0 | G66: =InpActive!G$100 -> £m | H66: =InpActive!H$100 -> 0 | I66: =InpActive!I$100 -> 0 | J66: =InpActive!J$100 -> 0 | K66: =InpActive!K$100 -> 0 | L66: =InpActive!L$100 -> 0 | M66: =InpActive!M$100 -> 0 | N66: =InpActive!N$100 -> 0 | O66: =InpActive!O$100 -> 0 | P66: =InpActive!P$100 -> 0 | Q66: =InpActive!Q$100 -> 0 | R66: =InpActive!R$100 -> 0 | S66: =InpActive!S$100 -> 0 | T66: =InpActive!T$100 -> 0 | U66: =InpActive!U$100 -> 0
E67: =InpActive!E$101 -> New developments - Water treatment | F67: =InpActive!F$101 -> 0 | G67: =InpActive!G$101 -> £m | H67: =InpActive!H$101 -> 0 | I67: =InpActive!I$101 -> 0 | J67: =InpActive!J$101 -> 0 | K67: =InpActive!K$101 -> 0 | L67: =InpActive!L$101 -> 0 | M67: =InpActive!M$101 -> 0 | N67: =InpActive!N$101 -> 0 | O67: =InpActive!O$101 -> 0 | P67: =InpActive!P$101 -> 0 | Q67: =InpActive!Q$101 -> 0 | R67: =InpActive!R$101 -> 0 | S67: =InpActive!S$101 -> 0 | T67: =InpActive!T$101 -> 0 | U67: =InpActive!U$101 -> 0
E68: =InpActive!E$102 -> New developments - Treated water distribution | F68: =InpActive!F$102 -> 0 | G68: =InpActive!G$102 -> £m | H68: =InpActive!H$102 -> 136.4680202 | I68: =InpActive!I$102 -> 0 | J68: =InpActive!J$102 -> 0 | K68: =InpActive!K$102 -> 0 | L68: =InpActive!L$102 -> 16.2393271 | M68: =InpActive!M$102 -> 29.32824226 | N68: =InpActive!N$102 -> 33.07116331 | O68: =InpActive!O$102 -> 30.74416918 | P68: =InpActive!P$102 -> 27.08511838 | Q68: =InpActive!Q$102 -> 0 | R68: =InpActive!R$102 -> 0 | S68: =InpActive!S$102 -> 0 | T68: =InpActive!T$102 -> 0 | U68: =InpActive!U$102 -> 0
E69: Ofwat view of capex - new developments (excl. diversions) - water network - 2017/18 FYA CPIH deflated | G69: £m | H69: =SUM(J69:U69) -> 117.4902483 | J69: =(1 - $F$65) * SUM(J66:J68) -> 0 | K69: =(1 - $F$65) * SUM(K66:K68) -> 0 | L69: =(1 - $F$65) * SUM(L66:L68) -> 13.98102331 | M69: 25.24974319 | N69: 28.47215913 | O69: 26.46876582 | P69: 23.31855681 | Q69: 0 | R69: 0 | S69: 0 | T69: 0 | U69: 0
B71: New connections expenditure for Water Network only
E72: =InpActive!E$145 -> Water efficiency challenge - capex - (post override) | F72: =InpActive!F$145 -> 0.1390638769 | G72: =InpActive!G$145 -> %
E73: =InpActive!E$104 -> New connections element of new development (CPs, meters) - Total | F73: =InpActive!F$104 -> 0 | G73: =InpActive!G$104 -> £m | H73: =InpActive!H$104 -> 118.0146718 | I73: =InpActive!I$104 -> 0 | J73: =InpActive!J$104 -> 0 | K73: =InpActive!K$104 -> 0 | L73: =InpActive!L$104 -> 25.35103504 | M73: =InpActive!M$104 -> 24.31059703 | N73: =InpActive!N$104 -> 23.00590063 | O73: =InpActive!O$104 -> 22.71571992 | P73: =InpActive!P$104 -> 22.63141916 | Q73: =InpActive!Q$104 -> 0 | R73: =InpActive!R$104 -> 0 | S73: =InpActive!S$104 -> 0 | T73: =InpActive!T$104 -> 0 | U73: =InpActive!U$104 -> 0
E74: Ofwat view of water capex - new connections - water network - 2017/18 FYA CPIH deflated | G74: £m | H74: =SUM(J74:U74) -> 101.603094 | J74: =(1 - $F$72) * J73 -> 0 | K74: =(1 - $F$72) * K73 -> 0 | L74: =(1 - $F$72) * L73 -> 21.82562183 | M74: =(1 - $F$72) * M73 -> 20.92987116 | N74: 19.8066109 | O74: 19.55678384 | P74: 19.48420627 | Q74: 0 | R74: 0 | S74: 0 | T74: 0 | U74: 0
C76: Efficiency Challenge * Company View - Opex
B77: New developments expenditure for both Water Network and Water Resources
E78: =InpActive!E$144 -> Water efficiency challenge - opex - (post override) | F78: =InpActive!F$144 -> 0.1390638769 | G78: =InpActive!G$144 -> %
E79: =InpActive!E$105 -> Enhancement expenditure by purpose ~ operating - New developments - Water resources | F79: =InpActive!F$105 -> 0 | G79: =InpActive!G$105 -> £m | H79: =InpActive!H$105 -> 0 | I79: =InpActive!I$105 -> 0 | J79: =InpActive!J$105 -> 0 | K79: =InpActive!K$105 -> 0 | L79: =InpActive!L$105 -> 0 | M79: =InpActive!M$105 -> 0 | N79: =InpActive!N$105 -> 0 | O79: =InpActive!O$105 -> 0 | P79: =InpActive!P$105 -> 0 | Q79: =InpActive!Q$105 -> 0 | R79: =InpActive!R$105 -> 0 | S79: =InpActive!S$105 -> 0 | T79: =InpActive!T$105 -> 0 | U79: =InpActive!U$105 -> 0
E80: Ofwat view of water opex - new developments - water resources - 2017/18 FYA CPIH deflated | G80: £m | H80: =SUM(J80:U80) -> 0 | J80: =(1 - $F$78) * J79 -> 0 | K80: =(1 - $F$78) * K79 -> 0 | L80: =(1 - $F$78) * L79 -> 0 | M80: =(1 - $F$78) * M79 -> 0 | N80: 0 | O80: 0 | P80: 0 | Q80: 0 | R80: 0 | S80: 0 | T80: 0 | U80: 0
E82: =InpActive!E$144 -> Water efficiency challenge - opex - (post override) | F82: =InpActive!F$144 -> 0.1390638769 | G82: =InpActive!G$144 -> %
E83: =InpActive!E$106 -> Enhancement expenditure by purpose ~ operating - New developments - Raw water distribution | F83: =InpActive!F$106 -> 0 | G83: =InpActive!G$106 -> £m | H83: =InpActive!H$106 -> 0 | I83: =InpActive!I$106 -> 0 | J83: =InpActive!J$106 -> 0 | K83: =InpActive!K$106 -> 0 | L83: =InpActive!L$106 -> 0 | M83: =InpActive!M$106 -> 0 | N83: =InpActive!N$106 -> 0 | O83: =InpActive!O$106 -> 0 | P83: =InpActive!P$106 -> 0 | Q83: =InpActive!Q$106 -> 0 | R83: =InpActive!R$106 -> 0 | S83: =InpActive!S$106 -> 0 | T83: =InpActive!T$106 -> 0 | U83: =InpActive!U$106 -> 0
E84: =InpActive!E$107 -> Enhancement expenditure by purpose ~ operating - New developments - Water treatment | F84: =InpActive!F$107 -> 0 | G84: =InpActive!G$107 -> £m | H84: =InpActive!H$107 -> 0 | I84: =InpActive!I$107 -> 0 | J84: =InpActive!J$107 -> 0 | K84: =InpActive!K$107 -> 0 | L84: =InpActive!L$107 -> 0 | M84: =InpActive!M$107 -> 0 | N84: =InpActive!N$107 -> 0 | O84: =InpActive!O$107 -> 0 | P84: =InpActive!P$107 -> 0 | Q84: =InpActive!Q$107 -> 0 | R84: =InpActive!R$107 -> 0 | S84: =InpActive!S$107 -> 0 | T84: =InpActive!T$107 -> 0 | U84: =InpActive!U$107 -> 0
E85: =InpActive!E$108 -> Enhancement expenditure by purpose ~ operating - New developments - Treated water distribution | F85: =InpActive!F$108 -> 0 | G85: =InpActive!G$108 -> £m | H85: =InpActive!H$108 -> 0.3844088438 | I85: =InpActive!I$108 -> 0 | J85: =InpActive!J$108 -> 0 | K85: =InpActive!K$108 -> 0 | L85: =InpActive!L$108 -> 0 | M85: =InpActive!M$108 -> 0.0391074727 | N85: =InpActive!N$108 -> 0.0387183369 | O85: =InpActive!O$108 -> 0.0383616363 | P85: =InpActive!P$108 -> 0.2682213979 | Q85: =InpActive!Q$108 -> 0 | R85: =InpActive!R$108 -> 0 | S85: =InpActive!S$108 -> 0 | T85: =InpActive!T$108 -> 0 | U85: =InpActive!U$108 -> 0
E86: Ofwat view of water opex - new developments less diversions - water network - 2017/18 FYA CPIH deflated | G86: £m | H86: =SUM(J86:U86) -> 0.3309514597 | J86: =(1 - $F$82) * SUM(J83:J85) -> 0 | K86: =(1 - $F$82) * SUM(K83:K85) -> 0 | L86: =(1 - $F$82) * SUM(L83:L85) -> 0 | M86: 0.03366903593 | N86: 0.03333401486 | O86: 0.03302691843 | P86: 0.2309214904 | Q86: 0 | R86: 0 | S86: 0 | T86: 0 | U86: 0
B88: New connections expenditure for Water Network only
E89: =InpActive!E$144 -> Water efficiency challenge - opex - (post override) | F89: =InpActive!F$144 -> 0.1390638769 | G89: =InpActive!G$144 -> %
E90: =InpActive!E$110 -> Enhancement expenditure by purpose ~ operating - New connections element of new development (CPs, meters) - Total | F90: =InpActive!F$110 -> 0 | G90: =InpActive!G$110 -> £m | H90: =InpActive!H$110 -> 0 | I90: =InpActive!I$110 -> 0 | J90: =InpActive!J$110 -> 0 | K90: =InpActive!K$110 -> 0 | L90: =InpActive!L$110 -> 0 | M90: =InpActive!M$110 -> 0 | N90: =InpActive!N$110 -> 0 | O90: =InpActive!O$110 -> 0 | P90: =InpActive!P$110 -> 0 | Q90: =InpActive!Q$110 -> 0 | R90: =InpActive!R$110 -> 0 | S90: =InpActive!S$110 -> 0 | T90: =InpActive!T$110 -> 0 | U90: =InpActive!U$110 -> 0
E91: Ofwat view of water opex - new connections - water network - 2017/18 FYA CPIH deflated | G91: £m | H91: =SUM(J91:U91) -> 0 | J91: =(1 - $F$89) * J90 -> 0 | K91: =(1 - $F$89) * K90 -> 0 | L91: =(1 - $F$89) * L90 -> 0 | M91: =(1 - $F$89) * M90 -> 0 | N91: 0 | O91: 0 | P91: 0 | Q91: 0 | R91: 0 | S91: 0 | T91: 0 | U91: 0
A93: Ofwat view of grants and contributions received
B94: Calculate Ofwat's view of G&C: Ofwat's view of expenditure * recovery rate
B96: Calculate Ofwat's view of G&C for new developments using Ofwat's view of new developments expenditure and the recovery rate
C97: New developments - Capex
E98: =E$50 -> G&C recovery rate - new developments - water - post-override | F98: =F$50 -> 0 | G98: % | H98: 0 | I98: 0 | J98: 0 | K98: 0 | L98: 0.9736143679 | M98: 0.5024357394 | N98: 0.3157603668 | O98: 0.3112800781 | P98: 0.2537796196 | Q98: 0 | R98: 0 | S98: 0 | T98: 0 | U98: 0
E99: =E$63 -> Ofwat view of capex - new developments - water resources - 2017/18 FYA CPIH deflated | F99: 0 | G99: £m | H99: 0 | I99: 0 | J99: 0 | K99: 0 | L99: 0 | M99: 0 | N99: 0 | O99: 0 | P99: 0 | Q99: 0 | R99: 0 | S99: 0 | T99: 0 | U99: 0
E100: Ofwat view of G&C for new developments capex - water resources - 2017/18 FYA CPIH deflated | G100: £m | H100: =SUM(J100:U100) -> 0 | J100: =J99 * J98 -> 0 | K100: =K99 * K98 -> 0 | L100: 0 | M100: 0 | N100: 0 | O100: 0 | P100: 0 | Q100: 0 | R100: 0 | S100: 0 | T100: 0 | U100: 0
E102: =E$50 -> G&C recovery rate - new developments - water - post-override | F102: =F$50 -> 0 | G102: % | H102: 0 | I102: 0 | J102: 0 | K102: 0 | L102: 0.9736143679 | M102: 0.5024357394 | N102: 0.3157603668 | O102: 0.3112800781 | P102: 0.2537796196 | Q102: 0 | R102: 0 | S102: 0 | T102: 0 | U102: 0
E103: =E$69 -> Ofwat view of capex - new developments (excl. diversions) - water network - 2017/18 FYA CPIH deflated | F103: 0 | G103: £m | H103: 117.4902483 | I103: 0 | J103: 0 | K103: 0 | L103: 13.98102331 | M103: 25.24974319 | N103: 28.47215913 | O103: 26.46876582 | P103: 23.31855681 | Q103: 0 | R103: 0 | S103: 0 | T103: 0 | U103: 0
D104: plus | E104: =InpActive!E$62 -> Diversions - capex - water - post override | F104: =InpActive!F$62 -> 0 | G104: =InpActive!G$62 -> £m | H104: =InpActive!H$62 -> 0 | I104: =InpActive!I$62 -> 0 | J104: =InpActive!J$62 -> 0 | K104: =InpActive!K$62 -> 0 | L104: =InpActive!L$62 -> 0 | M104: =InpActive!M$62 -> 0 | N104: =InpActive!N$62 -> 0 | O104: =InpActive!O$62 -> 0 | P104: =InpActive!P$62 -> 0 | Q104: =InpActive!Q$62 -> 0 | R104: =InpActive!R$62 -> 0 | S104: =InpActive!S$62 -> 0 | T104: =InpActive!T$62 -> 0 | U104: =InpActive!U$62 -> 0
E105: Ofwat view of G&C for new developments capex - water network - 2017/18 FYA CPIH deflated | G105: £m | H105: =SUM(J105:U105) -> 49.44585194 | J105: =J103 * J102 + J104 -> 0 | K105: =K103 * K102 + K104 -> 0 | L105: =L103 * L102 + L104 -> 13.61212517 | M105: 12.68637339 | N105: 8.990379408 | O105: 8.239199493 | P105: 5.917774478 | Q105: 0 | R105: 0 | S105: 0 | T105: 0 | U105: 0
C107: New developments - Opex
E108: =E$50 -> G&C recovery rate - new developments - water - post-override | F108: =F$50 -> 0 | G108: % | H108: 0 | I108: 0 | J108: 0 | K108: 0 | L108: 0.9736143679 | M108: 0.5024357394 | N108: 0.3157603668 | O108: 0.3112800781 | P108: 0.2537796196 | Q108: 0 | R108: 0 | S108: 0 | T108: 0 | U108: 0
E109: =E$80 -> Ofwat view of water opex - new developments - water resources - 2017/18 FYA CPIH deflated | F109: 0 | G109: £m | H109: 0 | I109: 0 | J109: 0 | K109: 0 | L109: 0 | M109: 0 | N109: 0 | O109: 0 | P109: 0 | Q109: 0 | R109: 0 | S109: 0 | T109: 0 | U109: 0
E110: Ofwat view of G&C for new developments opex - water resources - 2017/18 FYA CPIH deflated | G110: £m | H110: =SUM(J110:U110) -> 0 | J110: =J109 * J108 -> 0 | K110: =K109 * K108 -> 0 | L110: =L109 * L108 -> 0 | M110: 0 | N110: 0 | O110: 0 | P110: 0 | Q110: 0 | R110: 0 | S110: 0 | T110: 0 | U110: 0
E112: =E$50 -> G&C recovery rate - new developments - water - post-override | F112: =F$50 -> 0 | G112: % | H112: 0 | I112: 0 | J112: 0 | K112: 0 | L112: 0.9736143679 | M112: 0.5024357394 | N112: 0.3157603668 | O112: 0.3112800781 | P112: 0.2537796196 | Q112: 0 | R112: 0 | S112: 0 | T112: 0 | U112: 0
E113: =E$86 -> Ofwat view of water opex - new developments less diversions - water network - 2017/18 FYA CPIH deflated | F113: 0 | G113: £m | H113: 0.3309514597 | I113: 0 | J113: 0 | K113: 0 | L113: 0 | M113: 0.03366903593 | N113: 0.03333401486 | O113: 0.03302691843 | P113: 0.2309214904 | Q113: 0 | R113: 0 | S113: 0 | T113: 0 | U113: 0
D114: plus | E114: =InpActive!E$61 -> Diversions - opex - water - post override | F114: =InpActive!F$61 -> 0 | G114: =InpActive!G$61 -> £m | H114: =InpActive!H$61 -> 0 | I114: =InpActive!I$61 -> 0 | J114: =InpActive!J$61 -> 0 | K114: =InpActive!K$61 -> 0 | L114: =InpActive!L$61 -> 3.710914711 | M114: =InpActive!M$61 -> 3.58582009 | N114: =InpActive!N$61 -> 3.425915594 | O114: =InpActive!O$61 -> 3.398009796 | P114: =InpActive!P$61 -> 3.39689992 | Q114: =InpActive!Q$61 -> 0 | R114: =InpActive!R$61 -> 0 | S114: =InpActive!S$61 -> 0 | T114: =InpActive!T$61 -> 0 | U114: =InpActive!U$61 -> 0
E115: Ofwat view of G&C for new developments opex - water network - 2017/18 FYA CPIH deflated | G115: £m | H115: =SUM(J115:U115) -> 17.61388599 | J115: =J113 * J112 + J114 -> 0 | K115: =K113 * K112 + K114 -> 0 | L115: =L113 * L112 + L114 -> 3.710914711 | M115: =M113 * M112 + M114 -> 3.602736617 | N115: =N113 * N112 + N114 -> 3.436441155 | O115: =O113 * O112 + O114 -> 3.408290418 | P115: =P113 * P112 + P114 -> 3.455503088 | Q115: =Q113 * Q112 + Q114 -> 0 | R115: =R113 * R112 + R114 -> 0 | S115: =S113 * S112 + S114 -> 0 | T115: =T113 * T112 + T114 -> 0 | U115: =U113 * U112 + U114 -> 0
B117: Calculate Ofwat's view of G&C for new connections using Ofwat's view of new connections expenditure and the recovery rate
C118: New connections - Capex
E119: =E$54 -> G&C recovery rate - new connections - water - post-override | F119: =F$54 -> 0 | G119: % | H119: 0 | I119: 0 | J119: 0 | K119: 0 | L119: 1 | M119: 1 | N119: 1 | O119: 1 | P119: 1 | Q119: 0 | R119: 0 | S119: 0 | T119: 0 | U119: 0
E120: =E$74 -> Ofwat view of water capex - new connections - water network - 2017/18 FYA CPIH deflated | F120: 0 | G120: £m | H120: 101.603094 | I120: 0 | J120: 0 | K120: 0 | L120: 21.82562183 | M120: 20.92987116 | N120: 19.8066109 | O120: 19.55678384 | P120: 19.48420627 | Q120: 0 | R120: 0 | S120: 0 | T120: 0 | U120: 0
E121: Ofwat view of G&C for new connections capex - water network - 2017/18 FYA CPIH deflated | G121: £m | H121: =SUM(J121:U121) -> 101.603094 | J121: =J120 * J119 -> 0 | K121: =K120 * K119 -> 0 | L121: =L120 * L119 -> 21.82562183 | M121: 20.92987116 | N121: 19.8066109 | O121: 19.55678384 | P121: 19.48420627 | Q121: 0 | R121: 0 | S121: 0 | T121: 0 | U121: 0
C123: New connections - Opex
E124: =E$54 -> G&C recovery rate - new connections - water - post-override | F124: =F$54 -> 0 | G124: % | H124: 0 | I124: 0 | J124: 0 | K124: 0 | L124: 1 | M124: 1 | N124: 1 | O124: 1 | P124: 1 | Q124: 0 | R124: 0 | S124: 0 | T124: 0 | U124: 0
E125: =E$91 -> Ofwat view of water opex - new connections - water network - 2017/18 FYA CPIH deflated | F125: 0 | G125: £m | H125: 0 | I125: 0 | J125: 0 | K125: 0 | L125: 0 | M125: 0 | N125: 0 | O125: 0 | P125: 0 | Q125: 0 | R125: 0 | S125: 0 | T125: 0 | U125: 0
E126: Ofwat view of G&C for new connections opex - water network - 2017/18 FYA CPIH deflated | G126: £m | H126: =SUM(J126:U126) -> 0 | J126: =J125 * J124 -> 0 | K126: =K125 * K124 -> 0 | L126: 0 | M126: 0 | N126: 0 | O126: 0 | P126: 0 | Q126: 0 | R126: 0 | S126: 0 | T126: 0 | U126: 0
B128: Sum the water network capex
E129: =E$105 -> Ofwat view of G&C for new developments capex - water network - 2017/18 FYA CPIH deflated | F129: =F$105 -> 0 | G129: £m | H129: 49.44585194 | I129: 0 | J129: 0 | K129: 0 | L129: 13.61212517 | M129: 12.68637339 | N129: 8.990379408 | O129: 8.239199493 | P129: 5.917774478 | Q129: 0 | R129: 0 | S129: 0 | T129: 0 | U129: 0
E130: =E$121 -> Ofwat view of G&C for new connections capex - water network - 2017/18 FYA CPIH deflated | F130: =F$121 -> 0 | G130: £m | H130: 101.603094 | I130: 0 | J130: 0 | K130: 0 | L130: 21.82562183 | M130: 20.92987116 | N130: 19.8066109 | O130: 19.55678384 | P130: 19.48420627 | Q130: 0 | R130: 0 | S130: 0 | T130: 0 | U130: 0
E131: Ofwat view of G&C for new developments & connections capex - water network - 2017/18 FYA CPIH deflated | G131: £m | H131: =SUM(J131:U131) -> 151.0489459 | J131: =SUM(J129:J130) -> 0 | K131: =SUM(K129:K130) -> 0 | L131: =SUM(L129:L130) -> 35.437747 | M131: 33.61624455 | N131: 28.79699031 | O131: 27.79598333 | P131: 25.40198075 | Q131: 0 | R131: 0 | S131: 0 | T131: 0 | U131: 0
B133: Sum the water network opex
E134: =E115 -> Ofwat view of G&C for new developments opex - water network - 2017/18 FYA CPIH deflated | F134: =F115 -> 0 | G134: £m | H134: 17.61388599 | I134: 0 | J134: 0 | K134: 0 | L134: 3.710914711 | M134: 3.602736617 | N134: 3.436441155 | O134: 3.408290418 | P134: 3.455503088 | Q134: 0 | R134: 0 | S134: 0 | T134: 0 | U134: 0
E135: =E126 -> Ofwat view of G&C for new connections opex - water network - 2017/18 FYA CPIH deflated | F135: =F126 -> 0 | G135: £m | H135: 0 | I135: 0 | J135: 0 | K135: 0 | L135: 0 | M135: 0 | N135: 0 | O135: 0 | P135: 0 | Q135: 0 | R135: 0 | S135: 0 | T135: 0 | U135: 0
E136: Ofwat view of G&C for new developments & connections opex - water network - 2017/18 FYA CPIH deflated | G136: £m | H136: =SUM(J136:U136) -> 17.61388599 | J136: =SUM(J134:J135) -> 0 | K136: =SUM(K134:K135) -> 0 | L136: =SUM(L134:L135) -> 3.710914711 | M136: 3.602736617 | N136: 3.436441155 | O136: 3.408290418 | P136: 3.455503088 | Q136: 0 | R136: 0 | S136: 0 | T136: 0 | U136: 0
A138: Grants and contributions price control apportionment
B139: Calculate the apportionment between price control and non-price control expenditure using the company's view
C141: Company View - water network
E142: =InpActive!E$79 -> Water network capital expenditure grants and contributions (price control) | F142: =InpActive!F$79 -> 0 | G142: =InpActive!G$79 -> £m | H142: =InpActive!H$79 -> 126.516808 | I142: =InpActive!I$79 -> 0 | J142: =InpActive!J$79 -> 0 | K142: =InpActive!K$79 -> 0 | L142: =InpActive!L$79 -> 27.10372499 | M142: =InpActive!M$79 -> 26.00285656 | N142: =InpActive!N$79 -> 24.63970935 | O142: =InpActive!O$79 -> 24.393573 | P142: =InpActive!P$79 -> 24.37694412 | Q142: =InpActive!Q$79 -> 0 | R142: =InpActive!R$79 -> 0 | S142: =InpActive!S$79 -> 0 | T142: =InpActive!T$79 -> 0 | U142: =InpActive!U$79 -> 0
E143: =InpActive!E$81 -> Water network capital expenditure grants and contributions (non-price control) | F143: =InpActive!F$81 -> 0 | G143: =InpActive!G$81 -> £m | H143: =InpActive!H$81 -> 49.7909891 | I143: =InpActive!I$81 -> 0 | J143: =InpActive!J$81 -> 0 | K143: =InpActive!K$81 -> 0 | L143: =InpActive!L$81 -> 14.27957581 | M143: =InpActive!M$81 -> 13.24026443 | N143: =InpActive!N$81 -> 8.941083708 | O143: =InpActive!O$81 -> 8.017404892 | P143: =InpActive!P$81 -> 5.31266027 | Q143: =InpActive!Q$81 -> 0 | R143: =InpActive!R$81 -> 0 | S143: =InpActive!S$81 -> 0 | T143: =InpActive!T$81 -> 0 | U143: =InpActive!U$81 -> 0
E144: G&C apportionment water network capex - price control - 2017/18 FYA CPIH deflated | G144: % | J144: =IF( SUM(J142:J143) = 0, 0, J142 / SUM(J142:J143)) -> 0 | K144: =IF( SUM(K142:K143) = 0, 0, K142 / SUM(K142:K143)) -> 0 | L144: =IF( SUM(L142:L143) = 0, 0, L142 / SUM(L142:L143)) -> 0.6549435272 | M144: 0.6626092907 | N144: 0.733744117 | O144: 0.7526330455 | P144: 0.8210599172 | Q144: 0 | R144: 0 | S144: 0 | T144: 0 | U144: 0
E146: =InpActive!E$79 -> Water network capital expenditure grants and contributions (price control) | F146: =InpActive!F$79 -> 0 | G146: =InpActive!G$79 -> £m | H146: =InpActive!H$79 -> 126.516808 | I146: =InpActive!I$79 -> 0 | J146: =InpActive!J$79 -> 0 | K146: =InpActive!K$79 -> 0 | L146: =InpActive!L$79 -> 27.10372499 | M146: =InpActive!M$79 -> 26.00285656 | N146: =InpActive!N$79 -> 24.63970935 | O146: =InpActive!O$79 -> 24.393573 | P146: =InpActive!P$79 -> 24.37694412 | Q146: =InpActive!Q$79 -> 0 | R146: =InpActive!R$79 -> 0 | S146: =InpActive!S$79 -> 0 | T146: =InpActive!T$79 -> 0 | U146: =InpActive!U$79 -> 0
E147: =InpActive!E$81 -> Water network capital expenditure grants and contributions (non-price control) | F147: =InpActive!F$81 -> 0 | G147: =InpActive!G$81 -> £m | H147: =InpActive!H$81 -> 49.7909891 | I147: =InpActive!I$81 -> 0 | J147: =InpActive!J$81 -> 0 | K147: =InpActive!K$81 -> 0 | L147: =InpActive!L$81 -> 14.27957581 | M147: =InpActive!M$81 -> 13.24026443 | N147: =InpActive!N$81 -> 8.941083708 | O147: =InpActive!O$81 -> 8.017404892 | P147: =InpActive!P$81 -> 5.31266027 | Q147: =InpActive!Q$81 -> 0 | R147: =InpActive!R$81 -> 0 | S147: =InpActive!S$81 -> 0 | T147: =InpActive!T$81 -> 0 | U147: =InpActive!U$81 -> 0
E148: G&C apportionment water network capex - non price control - 2017/18 FYA CPIH deflated | G148: % | J148: =IF( SUM(J146:J147) = 0, 0, J147 / SUM(J146:J147)) -> 0 | K148: =IF( SUM(K146:K147) = 0, 0, K147 / SUM(K146:K147)) -> 0 | L148: =IF( SUM(L146:L147) = 0, 0, L147 / SUM(L146:L147)) -> 0.3450564728 | M148: 0.3373907093 | N148: 0.266255883 | O148: 0.2473669545 | P148: 0.1789400828 | Q148: 0 | R148: 0 | S148: 0 | T148: 0 | U148: 0
E150: =InpActive!E$78 -> Water network operating expenditure grants and contributions (price control) | F150: =InpActive!F$78 -> 0 | G150: =InpActive!G$78 -> £m | H150: =InpActive!H$78 -> 12.80173542 | I150: =InpActive!I$78 -> 0 | J150: =InpActive!J$78 -> 0 | K150: =InpActive!K$78 -> 0 | L150: =InpActive!L$78 -> 2.509184295 | M150: =InpActive!M$78 -> 2.535620089 | N150: =InpActive!N$78 -> 2.560459105 | O150: =InpActive!O$78 -> 2.585561645 | P150: =InpActive!P$78 -> 2.610910289 | Q150: =InpActive!Q$78 -> 0 | R150: =InpActive!R$78 -> 0 | S150: =InpActive!S$78 -> 0 | T150: =InpActive!T$78 -> 0 | U150: =InpActive!U$78 -> 0
E151: =InpActive!E$80 -> Water network operating expenditure grants and contributions (non-price control) | F151: =InpActive!F$80 -> 0 | G151: =InpActive!G$80 -> £m | H151: =InpActive!H$80 -> 0 | I151: =InpActive!I$80 -> 0 | J151: =InpActive!J$80 -> 0 | K151: =InpActive!K$80 -> 0 | L151: =InpActive!L$80 -> 0 | M151: =InpActive!M$80 -> 0 | N151: =InpActive!N$80 -> 0 | O151: =InpActive!O$80 -> 0 | P151: =InpActive!P$80 -> 0 | Q151: =InpActive!Q$80 -> 0 | R151: =InpActive!R$80 -> 0 | S151: =InpActive!S$80 -> 0 | T151: =InpActive!T$80 -> 0 | U151: =InpActive!U$80 -> 0
E152: G&C apportionment water network opex - price control - 2017/18 FYA CPIH deflated | G152: % | J152: =IF( SUM(J150:J151) = 0, 0, J150 / SUM(J150:J151)) -> 0 | K152: =IF( SUM(K150:K151) = 0, 0, K150 / SUM(K150:K151)) -> 0 | L152: =IF( SUM(L150:L151) = 0, 0, L150 / SUM(L150:L151)) -> 1 | M152: 1 | N152: 1 | O152: 1 | P152: 1 | Q152: 0 | R152: 0 | S152: 0 | T152: 0 | U152: 0
E154: =InpActive!E$78 -> Water network operating expenditure grants and contributions (price control) | F154: =InpActive!F$78 -> 0 | G154: =InpActive!G$78 -> £m | H154: =InpActive!H$78 -> 12.80173542 | I154: =InpActive!I$78 -> 0 | J154: =InpActive!J$78 -> 0 | K154: =InpActive!K$78 -> 0 | L154: =InpActive!L$78 -> 2.509184295 | M154: =InpActive!M$78 -> 2.535620089 | N154: =InpActive!N$78 -> 2.560459105 | O154: =InpActive!O$78 -> 2.585561645 | P154: =InpActive!P$78 -> 2.610910289 | Q154: =InpActive!Q$78 -> 0 | R154: =InpActive!R$78 -> 0 | S154: =InpActive!S$78 -> 0 | T154: =InpActive!T$78 -> 0 | U154: =InpActive!U$78 -> 0
E155: =InpActive!E$80 -> Water network operating expenditure grants and contributions (non-price control) | F155: =InpActive!F$80 -> 0 | G155: =InpActive!G$80 -> £m | H155: =InpActive!H$80 -> 0 | I155: =InpActive!I$80 -> 0 | J155: =InpActive!J$80 -> 0 | K155: =InpActive!K$80 -> 0 | L155: =InpActive!L$80 -> 0 | M155: =InpActive!M$80 -> 0 | N155: =InpActive!N$80 -> 0 | O155: =InpActive!O$80 -> 0 | P155: =InpActive!P$80 -> 0 | Q155: =InpActive!Q$80 -> 0 | R155: =InpActive!R$80 -> 0 | S155: =InpActive!S$80 -> 0 | T155: =InpActive!T$80 -> 0 | U155: =InpActive!U$80 -> 0
E156: G&C apportionment water network opex - non price control - 2017/18 FYA CPIH deflated | G156: % | J156: =IF( SUM(J154:J155) = 0, 0, J155 / SUM(J154:J155)) -> 0 | K156: =IF( SUM(K154:K155) = 0, 0, K155 / SUM(K154:K155)) -> 0 | L156: =IF( SUM(L154:L155) = 0, 0, L155 / SUM(L154:L155)) -> 0 | M156: 0 | N156: 0 | O156: 0 | P156: 0 | Q156: 0 | R156: 0 | S156: 0 | T156: 0 | U156: 0
C159: Company View - water resources
E160: =InpActive!E$85 -> Water resources capital expenditure grants and contributions (price control) | F160: =InpActive!F$85 -> 0 | G160: =InpActive!G$85 -> £m | H160: =InpActive!H$85 -> 0 | I160: =InpActive!I$85 -> 0 | J160: =InpActive!J$85 -> 0 | K160: =InpActive!K$85 -> 0 | L160: =InpActive!L$85 -> 0 | M160: =InpActive!M$85 -> 0 | N160: =InpActive!N$85 -> 0 | O160: =InpActive!O$85 -> 0 | P160: =InpActive!P$85 -> 0 | Q160: =InpActive!Q$85 -> 0 | R160: =InpActive!R$85 -> 0 | S160: =InpActive!S$85 -> 0 | T160: =InpActive!T$85 -> 0 | U160: =InpActive!U$85 -> 0
E161: =InpActive!E$87 -> Water resources capital expenditure grants and contributions (non-price control) | F161: =InpActive!F$87 -> 0 | G161: =InpActive!G$87 -> £m | H161: =InpActive!H$87 -> 0 | I161: =InpActive!I$87 -> 0 | J161: =InpActive!J$87 -> 0 | K161: =InpActive!K$87 -> 0 | L161: =InpActive!L$87 -> 0 | M161: =InpActive!M$87 -> 0 | N161: =InpActive!N$87 -> 0 | O161: =InpActive!O$87 -> 0 | P161: =InpActive!P$87 -> 0 | Q161: =InpActive!Q$87 -> 0 | R161: =InpActive!R$87 -> 0 | S161: =InpActive!S$87 -> 0 | T161: =InpActive!T$87 -> 0 | U161: =InpActive!U$87 -> 0
E162: G&C apportionment water resources capex - price control - 2017/18 FYA CPIH deflated | G162: % | J162: =IF( SUM(J160:J161) = 0, 0, J160 / SUM(J160:J161)) -> 0 | K162: =IF( SUM(K160:K161) = 0, 0, K160 / SUM(K160:K161)) -> 0 | L162: 0 | M162: 0 | N162: 0 | O162: 0 | P162: 0 | Q162: 0 | R162: 0 | S162: 0 | T162: 0 | U162: 0
E164: =InpActive!E$85 -> Water resources capital expenditure grants and contributions (price control) | F164: =InpActive!F$85 -> 0 | G164: =InpActive!G$85 -> £m | H164: =InpActive!H$85 -> 0 | I164: =InpActive!I$85 -> 0 | J164: =InpActive!J$85 -> 0 | K164: =InpActive!K$85 -> 0 | L164: =InpActive!L$85 -> 0 | M164: =InpActive!M$85 -> 0 | N164: =InpActive!N$85 -> 0 | O164: =InpActive!O$85 -> 0 | P164: =InpActive!P$85 -> 0 | Q164: =InpActive!Q$85 -> 0 | R164: =InpActive!R$85 -> 0 | S164: =InpActive!S$85 -> 0 | T164: =InpActive!T$85 -> 0 | U164: =InpActive!U$85 -> 0
E165: =InpActive!E$87 -> Water resources capital expenditure grants and contributions (non-price control) | F165: =InpActive!F$87 -> 0 | G165: =InpActive!G$87 -> £m | H165: =InpActive!H$87 -> 0 | I165: =InpActive!I$87 -> 0 | J165: =InpActive!J$87 -> 0 | K165: =InpActive!K$87 -> 0 | L165: =InpActive!L$87 -> 0 | M165: =InpActive!M$87 -> 0 | N165: =InpActive!N$87 -> 0 | O165: =InpActive!O$87 -> 0 | P165: =InpActive!P$87 -> 0 | Q165: =InpActive!Q$87 -> 0 | R165: =InpActive!R$87 -> 0 | S165: =InpActive!S$87 -> 0 | T165: =InpActive!T$87 -> 0 | U165: =InpActive!U$87 -> 0
E166: G&C apportionment water resources capex - non price control - 2017/18 FYA CPIH deflated | G166: % | J166: =IF( SUM(J164:J165) = 0, 0, J165 / SUM(J164:J165)) -> 0 | K166: =IF( SUM(K164:K165) = 0, 0, K165 / SUM(K164:K165)) -> 0 | L166: 0 | M166: 0 | N166: 0 | O166: 0 | P166: 0 | Q166: 0 | R166: 0 | S166: 0 | T166: 0 | U166: 0
E168: =InpActive!E$86 -> Water resources operating expenditure grants and contributions (non-price control) | F168: =InpActive!F$86 -> 0 | G168: =InpActive!G$86 -> £m | H168: =InpActive!H$86 -> 0 | I168: =InpActive!I$86 -> 0 | J168: =InpActive!J$86 -> 0 | K168: =InpActive!K$86 -> 0 | L168: =InpActive!L$86 -> 0 | M168: =InpActive!M$86 -> 0 | N168: =InpActive!N$86 -> 0 | O168: =InpActive!O$86 -> 0 | P168: =InpActive!P$86 -> 0 | Q168: =InpActive!Q$86 -> 0 | R168: =InpActive!R$86 -> 0 | S168: =InpActive!S$86 -> 0 | T168: =InpActive!T$86 -> 0 | U168: =InpActive!U$86 -> 0
E169: =InpActive!E$84 -> Water resources operating expenditure grants and contributions (price control) | F169: =InpActive!F$84 -> 0 | G169: =InpActive!G$84 -> £m | H169: =InpActive!H$84 -> 0 | I169: =InpActive!I$84 -> 0 | J169: =InpActive!J$84 -> 0 | K169: =InpActive!K$84 -> 0 | L169: =InpActive!L$84 -> 0 | M169: =InpActive!M$84 -> 0 | N169: =InpActive!N$84 -> 0 | O169: =InpActive!O$84 -> 0 | P169: =InpActive!P$84 -> 0 | Q169: =InpActive!Q$84 -> 0 | R169: =InpActive!R$84 -> 0 | S169: =InpActive!S$84 -> 0 | T169: =InpActive!T$84 -> 0 | U169: =InpActive!U$84 -> 0
E170: G&C apportionment water resources opex - price control - 2017/18 FYA CPIH deflated | G170: % | J170: =IF( SUM(J168:J169) = 0, 0, J168 / SUM(J168:J169)) -> 0 | K170: =IF( SUM(K168:K169) = 0, 0, K168 / SUM(K168:K169)) -> 0 | L170: 0 | M170: 0 | N170: 0 | O170: 0 | P170: 0 | Q170: 0 | R170: 0 | S170: 0 | T170: 0 | U170: 0
E172: =InpActive!E$86 -> Water resources operating expenditure grants and contributions (non-price control) | F172: =InpActive!F$86 -> 0 | G172: =InpActive!G$86 -> £m | H172: =InpActive!H$86 -> 0 | I172: =InpActive!I$86 -> 0 | J172: =InpActive!J$86 -> 0 | K172: =InpActive!K$86 -> 0 | L172: =InpActive!L$86 -> 0 | M172: =InpActive!M$86 -> 0 | N172: =InpActive!N$86 -> 0 | O172: =InpActive!O$86 -> 0 | P172: =InpActive!P$86 -> 0 | Q172: =InpActive!Q$86 -> 0 | R172: =InpActive!R$86 -> 0 | S172: =InpActive!S$86 -> 0 | T172: =InpActive!T$86 -> 0 | U172: =InpActive!U$86 -> 0
E173: =InpActive!E$84 -> Water resources operating expenditure grants and contributions (price control) | F173: =InpActive!F$84 -> 0 | G173: =InpActive!G$84 -> £m | H173: =InpActive!H$84 -> 0 | I173: =InpActive!I$84 -> 0 | J173: =InpActive!J$84 -> 0 | K173: =InpActive!K$84 -> 0 | L173: =InpActive!L$84 -> 0 | M173: =InpActive!M$84 -> 0 | N173: =InpActive!N$84 -> 0 | O173: =InpActive!O$84 -> 0 | P173: =InpActive!P$84 -> 0 | Q173: =InpActive!Q$84 -> 0 | R173: =InpActive!R$84 -> 0 | S173: =InpActive!S$84 -> 0 | T173: =InpActive!T$84 -> 0 | U173: =InpActive!U$84 -> 0
E174: G&C apportionment water resources opex - non price control - 2017/18 FYA CPIH deflated | G174: % | J174: =IF( SUM(J172:J173) = 0, 0, J173 / SUM(J172:J173)) -> 0 | K174: =IF( SUM(K172:K173) = 0, 0, K173 / SUM(K172:K173)) -> 0 | L174: 0 | M174: 0 | N174: 0 | O174: 0 | P174: 0 | Q174: 0 | R174: 0 | S174: 0 | T174: 0 | U174: 0
C176: Check company data table entries for Grants & Contributions
E177: =InpActive!E$56 -> Infrastructure charge receipts (s146) - water | F177: =InpActive!F$56 -> 0 | G177: =InpActive!G$56 -> £m | H177: =InpActive!H$56 -> -36.45067384 | I177: =InpActive!I$56 -> 0 | J177: =InpActive!J$56 -> 0 | K177: =InpActive!K$56 -> 0 | L177: =InpActive!L$56 -> -7.890074308 | M177: =InpActive!M$56 -> -7.557520945 | N177: =InpActive!N$56 -> -7.115321065 | O177: =InpActive!O$56 -> -6.981203106 | P177: =InpActive!P$56 -> -6.906554414 | Q177: =InpActive!Q$56 -> 0 | R177: =InpActive!R$56 -> 0 | S177: =InpActive!S$56 -> 0 | T177: =InpActive!T$56 -> 0 | U177: =InpActive!U$56 -> 0
E178: =InpActive!E$57 -> Requisitioned mains (s43, s55 & s56) - water | F178: =InpActive!F$57 -> 0 | G178: =InpActive!G$57 -> £m | H178: =InpActive!H$57 -> 33.39563352 | I178: =InpActive!I$57 -> 0 | J178: =InpActive!J$57 -> 0 | K178: =InpActive!K$57 -> 0 | L178: =InpActive!L$57 -> 7.104782138 | M178: =InpActive!M$57 -> 6.848708904 | N178: =InpActive!N$57 -> 6.522714977 | O178: =InpActive!O$57 -> 6.462724079 | P178: =InpActive!P$57 -> 6.45670342 | Q178: =InpActive!Q$57 -> 0 | R178: =InpActive!R$57 -> 0 | S178: =InpActive!S$57 -> 0 | T178: =InpActive!T$57 -> 0 | U178: =InpActive!U$57 -> 0
E179: =InpActive!E$58 -> Grants and contributions received ~ wholesale water service - Other contributions (price control) | F179: =InpActive!F$58 -> 0 | G179: =InpActive!G$58 -> £m | H179: =InpActive!H$58 -> 10.80859661 | I179: =InpActive!I$58 -> 0 | J179: =InpActive!J$58 -> 0 | K179: =InpActive!K$58 -> 0 | L179: =InpActive!L$58 -> 2.316558546 | M179: =InpActive!M$58 -> 2.22375369 | N179: =InpActive!N$58 -> 2.106310752 | O179: =InpActive!O$58 -> 2.083062733 | P179: =InpActive!P$58 -> 2.078910888 | Q179: =InpActive!Q$58 -> 0 | R179: =InpActive!R$58 -> 0 | S179: =InpActive!S$58 -> 0 | T179: =InpActive!T$58 -> 0 | U179: =InpActive!U$58 -> 0
E180: =InpActive!E$59 -> Grants and contributions received ~ wholesale water service - Other contributions (non-price control) | F180: =InpActive!F$59 -> 0 | G180: =InpActive!G$59 -> £m | H180: =InpActive!H$59 -> 49.7909891 | I180: =InpActive!I$59 -> 0 | J180: =InpActive!J$59 -> 0 | K180: =InpActive!K$59 -> 0 | L180: =InpActive!L$59 -> 14.27957581 | M180: =InpActive!M$59 -> 13.24026443 | N180: =InpActive!N$59 -> 8.941083708 | O180: =InpActive!O$59 -> 8.017404892 | P180: =InpActive!P$59 -> 5.31266027 | Q180: =InpActive!Q$59 -> 0 | R180: =InpActive!R$59 -> 0 | S180: =InpActive!S$59 -> 0 | T180: =InpActive!T$59 -> 0 | U180: =InpActive!U$59 -> 0
E181: =InpActive!E$60 -> Diversions (s185) | F181: =InpActive!F$60 -> 0 | G181: =InpActive!G$60 -> £m | H181: =InpActive!H$60 -> 17.51756011 | I181: =InpActive!I$60 -> 0 | J181: =InpActive!J$60 -> 0 | K181: =InpActive!K$60 -> 0 | L181: =InpActive!L$60 -> 3.710914711 | M181: =InpActive!M$60 -> 3.58582009 | N181: =InpActive!N$60 -> 3.425915594 | O181: =InpActive!O$60 -> 3.398009796 | P181: =InpActive!P$60 -> 3.39689992 | Q181: =InpActive!Q$60 -> 0 | R181: =InpActive!R$60 -> 0 | S181: =InpActive!S$60 -> 0 | T181: =InpActive!T$60 -> 0 | U181: =InpActive!U$60 -> 0
E182: =InpActive!E$55 -> Connection charges (s45) - water | F182: =InpActive!F$55 -> 0 | G182: =InpActive!G$55 -> £m | H182: =InpActive!H$55 -> 114.047427 | I182: =InpActive!I$55 -> 0 | J182: =InpActive!J$55 -> 0 | K182: =InpActive!K$55 -> 0 | L182: =InpActive!L$55 -> 24.3707282 | M182: =InpActive!M$55 -> 23.43771491 | N182: =InpActive!N$55 -> 22.2605482 | O182: =InpActive!O$55 -> 22.01654114 | P182: =InpActive!P$55 -> 21.9618946 | Q182: =InpActive!Q$55 -> 0 | R182: =InpActive!R$55 -> 0 | S182: =InpActive!S$55 -> 0 | T182: =InpActive!T$55 -> 0 | U182: =InpActive!U$55 -> 0
E183: G&C from App28 | G183: £m | H183: =SUM(J183:U183) -> 189.1095326 | J183: =SUM(J177:J182) -> 0 | K183: 0 | L183: 43.8924851 | M183: 41.77874108 | N183: 36.14125216 | O183: 34.99653953 | P183: 32.30051468 | Q183: 0 | R183: 0 | S183: 0 | T183: 0 | U183: 0
E185: =InpActive!E$79 -> Water network capital expenditure grants and contributions (price control) | F185: =InpActive!F$79 -> 0 | G185: =InpActive!G$79 -> £m | H185: =InpActive!H$79 -> 126.516808 | I185: =InpActive!I$79 -> 0 | J185: =InpActive!J$79 -> 0 | K185: =InpActive!K$79 -> 0 | L185: =InpActive!L$79 -> 27.10372499 | M185: =InpActive!M$79 -> 26.00285656 | N185: =InpActive!N$79 -> 24.63970935 | O185: =InpActive!O$79 -> 24.393573 | P185: =InpActive!P$79 -> 24.37694412 | Q185: =InpActive!Q$79 -> 0 | R185: =InpActive!R$79 -> 0 | S185: =InpActive!S$79 -> 0 | T185: =InpActive!T$79 -> 0 | U185: =InpActive!U$79 -> 0
E186: =InpActive!E$81 -> Water network capital expenditure grants and contributions (non-price control) | F186: =InpActive!F$81 -> 0 | G186: =InpActive!G$81 -> £m | H186: =InpActive!H$81 -> 49.7909891 | I186: =InpActive!I$81 -> 0 | J186: =InpActive!J$81 -> 0 | K186: =InpActive!K$81 -> 0 | L186: =InpActive!L$81 -> 14.27957581 | M186: =InpActive!M$81 -> 13.24026443 | N186: =InpActive!N$81 -> 8.941083708 | O186: =InpActive!O$81 -> 8.017404892 | P186: =InpActive!P$81 -> 5.31266027 | Q186: =InpActive!Q$81 -> 0 | R186: =InpActive!R$81 -> 0 | S186: =InpActive!S$81 -> 0 | T186: =InpActive!T$81 -> 0 | U186: =InpActive!U$81 -> 0
E187: =InpActive!E$78 -> Water network operating expenditure grants and contributions (price control) | F187: =InpActive!F$78 -> 0 | G187: =InpActive!G$78 -> £m | H187: =InpActive!H$78 -> 12.80173542 | I187: =InpActive!I$78 -> 0 | J187: =InpActive!J$78 -> 0 | K187: =InpActive!K$78 -> 0 | L187: =InpActive!L$78 -> 2.509184295 | M187: =InpActive!M$78 -> 2.535620089 | N187: =InpActive!N$78 -> 2.560459105 | O187: =InpActive!O$78 -> 2.585561645 | P187: =InpActive!P$78 -> 2.610910289 | Q187: =InpActive!Q$78 -> 0 | R187: =InpActive!R$78 -> 0 | S187: =InpActive!S$78 -> 0 | T187: =InpActive!T$78 -> 0 | U187: =InpActive!U$78 -> 0
E188: =InpActive!E$80 -> Water network operating expenditure grants and contributions (non-price control) | F188: =InpActive!F$80 -> 0 | G188: =InpActive!G$80 -> £m | H188: =InpActive!H$80 -> 0 | I188: =InpActive!I$80 -> 0 | J188: =InpActive!J$80 -> 0 | K188: =InpActive!K$80 -> 0 | L188: =InpActive!L$80 -> 0 | M188: =InpActive!M$80 -> 0 | N188: =InpActive!N$80 -> 0 | O188: =InpActive!O$80 -> 0 | P188: =InpActive!P$80 -> 0 | Q188: =InpActive!Q$80 -> 0 | R188: =InpActive!R$80 -> 0 | S188: =InpActive!S$80 -> 0 | T188: =InpActive!T$80 -> 0 | U188: =InpActive!U$80 -> 0
E189: =InpActive!E$85 -> Water resources capital expenditure grants and contributions (price control) | F189: =InpActive!F$85 -> 0 | G189: =InpActive!G$85 -> £m | H189: =InpActive!H$85 -> 0 | I189: =InpActive!I$85 -> 0 | J189: =InpActive!J$85 -> 0 | K189: =InpActive!K$85 -> 0 | L189: =InpActive!L$85 -> 0 | M189: =InpActive!M$85 -> 0 | N189: =InpActive!N$85 -> 0 | O189: =InpActive!O$85 -> 0 | P189: =InpActive!P$85 -> 0 | Q189: =InpActive!Q$85 -> 0 | R189: =InpActive!R$85 -> 0 | S189: =InpActive!S$85 -> 0 | T189: =InpActive!T$85 -> 0 | U189: =InpActive!U$85 -> 0
E190: =InpActive!E$87 -> Water resources capital expenditure grants and contributions (non-price control) | F190: =InpActive!F$87 -> 0 | G190: =InpActive!G$87 -> £m | H190: =InpActive!H$87 -> 0 | I190: =InpActive!I$87 -> 0 | J190: =InpActive!J$87 -> 0 | K190: =InpActive!K$87 -> 0 | L190: =InpActive!L$87 -> 0 | M190: =InpActive!M$87 -> 0 | N190: =InpActive!N$87 -> 0 | O190: =InpActive!O$87 -> 0 | P190: =InpActive!P$87 -> 0 | Q190: =InpActive!Q$87 -> 0 | R190: =InpActive!R$87 -> 0 | S190: =InpActive!S$87 -> 0 | T190: =InpActive!T$87 -> 0 | U190: =InpActive!U$87 -> 0
E191: =InpActive!E$86 -> Water resources operating expenditure grants and contributions (non-price control) | F191: =InpActive!F$86 -> 0 | G191: =InpActive!G$86 -> £m | H191: =InpActive!H$86 -> 0 | I191: =InpActive!I$86 -> 0 | J191: =InpActive!J$86 -> 0 | K191: =InpActive!K$86 -> 0 | L191: =InpActive!L$86 -> 0 | M191: =InpActive!M$86 -> 0 | N191: =InpActive!N$86 -> 0 | O191: =InpActive!O$86 -> 0 | P191: =InpActive!P$86 -> 0 | Q191: =InpActive!Q$86 -> 0 | R191: =InpActive!R$86 -> 0 | S191: =InpActive!S$86 -> 0 | T191: =InpActive!T$86 -> 0 | U191: =InpActive!U$86 -> 0
E192: =InpActive!E$84 -> Water resources operating expenditure grants and contributions (price control) | F192: =InpActive!F$84 -> 0 | G192: =InpActive!G$84 -> £m | H192: =InpActive!H$84 -> 0 | I192: =InpActive!I$84 -> 0 | J192: =InpActive!J$84 -> 0 | K192: =InpActive!K$84 -> 0 | L192: =InpActive!L$84 -> 0 | M192: =InpActive!M$84 -> 0 | N192: =InpActive!N$84 -> 0 | O192: =InpActive!O$84 -> 0 | P192: =InpActive!P$84 -> 0 | Q192: =InpActive!Q$84 -> 0 | R192: =InpActive!R$84 -> 0 | S192: =InpActive!S$84 -> 0 | T192: =InpActive!T$84 -> 0 | U192: =InpActive!U$84 -> 0
E193: G&C from Wn3 and Wr3 | G193: £m | H193: =SUM(J193:U193) -> 189.1095326 | J193: =SUM(J185:J192) -> 0 | K193: =SUM(K185:K192) -> 0 | L193: 43.8924851 | M193: 41.77874108 | N193: 36.14125216 | O193: 34.99653953 | P193: 32.30051468 | Q193: 0 | R193: 0 | S193: 0 | T193: 0 | U193: 0
E195: =E183 -> G&C from App28 | F195: =F183 -> 0 | G195: £m | H195: 189.1095326 | I195: 0 | J195: 0 | K195: 0 | L195: 43.8924851 | M195: 41.77874108 | N195: 36.14125216 | O195: 34.99653953 | P195: 32.30051468 | Q195: 0 | R195: 0 | S195: 0 | T195: 0 | U195: 0
E196: =E193 -> G&C from Wn3 and Wr3 | F196: =F193 -> 0 | G196: £m | H196: 189.1095326 | I196: 0 | J196: 0 | K196: 0 | L196: 43.8924851 | M196: 41.77874108 | N196: 36.14125216 | O196: 34.99653953 | P196: 32.30051468 | Q196: 0 | R196: 0 | S196: 0 | T196: 0 | U196: 0
E197: Check company data table entries for Grants & Contributions - water | F197: =IF( SUM(L197:P197) > 0, 1, 0) -> 0 | G197: check | J197: =IF( ABS(J195 - J196) > CHK_TOL, 1, 0) -> 0 | K197: 0 | L197: 0 | M197: 0 | N197: 0 | O197: 0 | P197: 0 | Q197: 0 | R197: 0 | S197: 0 | T197: 0 | U197: 0
A199: OFWAT view of Grants & Contributions apportioned between pice control and non-price control
C201: Capex
E202: =E$131 -> Ofwat view of G&C for new developments & connections capex - water network - 2017/18 FYA CPIH deflated | F202: =F$131 -> 0 | G202: £m | H202: 151.0489459 | I202: 0 | J202: 0 | K202: 0 | L202: 35.437747 | M202: 33.61624455 | N202: 28.79699031 | O202: 27.79598333 | P202: 25.40198075 | Q202: 0 | R202: 0 | S202: 0 | T202: 0 | U202: 0
E203: =E$144 -> G&C apportionment water network capex - price control - 2017/18 FYA CPIH deflated | F203: =F$144 -> 0 | G203: % | H203: 0 | I203: 0 | J203: 0 | K203: 0 | L203: 0.6549435272 | M203: 0.6626092907 | N203: 0.733744117 | O203: 0.7526330455 | P203: 0.8210599172 | Q203: 0 | R203: 0 | S203: 0 | T203: 0 | U203: 0
E204: Ofwat view of G&C for capex - water network - price control - 2017/18 FYA CPIH deflated | G204: £m | H204: =SUM(J204:U204) -> 108.390505 | J204: =J202 * J203 -> 0 | K204: =K202 * K203 -> 0 | L204: 23.20972302 | M204: 22.27443596 | N204: 21.12962222 | O204: 20.92017559 | P204: 20.85654821 | Q204: 0 | R204: 0 | S204: 0 | T204: 0 | U204: 0
E206: =E204 -> Ofwat view of G&C for capex - water network - price control - 2017/18 FYA CPIH deflated | F206: =F204 -> 0 | G206: £m | H206: 108.390505 | I206: 0 | J206: 0 | K206: 0 | L206: 23.20972302 | M206: 22.27443596 | N206: 21.12962222 | O206: 20.92017559 | P206: 20.85654821 | Q206: 0 | R206: 0 | S206: 0 | T206: 0 | U206: 0
E207: =InpActive!E$126 -> Ofwat view of G&C for capex - water network - price control (override) | F207: =InpActive!F$126 -> 0 | G207: =InpActive!G$126 -> £m | H207: =InpActive!H$126 -> 0 | I207: =InpActive!I$126 -> 0 | J207: =InpActive!J$126 -> 0 | K207: =InpActive!K$126 -> 0 | L207: =InpActive!L$126 -> 0 | M207: =InpActive!M$126 -> 0 | N207: =InpActive!N$126 -> 0 | O207: =InpActive!O$126 -> 0 | P207: =InpActive!P$126 -> 0 | Q207: =InpActive!Q$126 -> 0 | R207: =InpActive!R$126 -> 0 | S207: =InpActive!S$126 -> 0 | T207: =InpActive!T$126 -> 0 | U207: =InpActive!U$126 -> 0
E208: Ofwat view of G&C for capex - water network - price control (post-override) | G208: £m | H208: =SUM(J208:U208) -> 108.390505 | J208: =IF(J207 = 0, J206, J207) -> 0 | K208: =IF(K207 = 0, K206, K207) -> 0 | L208: 23.20972302 | M208: 22.27443596 | N208: 21.12962222 | O208: 20.92017559 | P208: 20.85654821 | Q208: 0 | R208: 0 | S208: 0 | T208: 0 | U208: 0
E210: =E$131 -> Ofwat view of G&C for new developments & connections capex - water network - 2017/18 FYA CPIH deflated | F210: =F$131 -> 0 | G210: £m | H210: 151.0489459 | I210: 0 | J210: 0 | K210: 0 | L210: 35.437747 | M210: 33.61624455 | N210: 28.79699031 | O210: 27.79598333 | P210: 25.40198075 | Q210: 0 | R210: 0 | S210: 0 | T210: 0 | U210: 0
E211: =E$148 -> G&C apportionment water network capex - non price control - 2017/18 FYA CPIH deflated | F211: =F$148 -> 0 | G211: % | H211: 0 | I211: 0 | J211: 0 | K211: 0 | L211: 0.3450564728 | M211: 0.3373907093 | N211: 0.266255883 | O211: 0.2473669545 | P211: 0.1789400828 | Q211: 0 | R211: 0 | S211: 0 | T211: 0 | U211: 0
E212: Ofwat view of G&C for capex - water network - non price control - 2017/18 FYA CPIH deflated | G212: £m | H212: =SUM(J212:U212) -> 42.65844094 | J212: =J210 * J211 -> 0 | K212: =K210 * K211 -> 0 | L212: 12.22802399 | M212: 11.34180859 | N212: 7.667368082 | O212: 6.875807744 | P212: 4.545432539 | Q212: 0 | R212: 0 | S212: 0 | T212: 0 | U212: 0
E214: =E212 -> Ofwat view of G&C for capex - water network - non price control - 2017/18 FYA CPIH deflated | F214: =F212 -> 0 | G214: £m | H214: 42.65844094 | I214: 0 | J214: 0 | K214: 0 | L214: 12.22802399 | M214: 11.34180859 | N214: 7.667368082 | O214: 6.875807744 | P214: 4.545432539 | Q214: 0 | R214: 0 | S214: 0 | T214: 0 | U214: 0
E215: =InpActive!E$127 -> Ofwat view of G&C for capex - water network - non price control (override) | F215: =InpActive!F$127 -> 0 | G215: =InpActive!G$127 -> £m | H215: =InpActive!H$127 -> 0 | I215: =InpActive!I$127 -> 0 | J215: =InpActive!J$127 -> 0 | K215: =InpActive!K$127 -> 0 | L215: =InpActive!L$127 -> 0 | M215: =InpActive!M$127 -> 0 | N215: =InpActive!N$127 -> 0 | O215: =InpActive!O$127 -> 0 | P215: =InpActive!P$127 -> 0 | Q215: =InpActive!Q$127 -> 0 | R215: =InpActive!R$127 -> 0 | S215: =InpActive!S$127 -> 0 | T215: =InpActive!T$127 -> 0 | U215: =InpActive!U$127 -> 0
E216: Ofwat view of G&C for capex - water network - non price control (post-override) | G216: £m | H216: =SUM(J216:U216) -> 42.65844094 | J216: =IF(J215 = 0, J214, J215) -> 0 | K216: =IF(K215 = 0, K214, K215) -> 0 | L216: 12.22802399 | M216: 11.34180859 | N216: 7.667368082 | O216: 6.875807744 | P216: 4.545432539 | Q216: 0 | R216: 0 | S216: 0 | T216: 0 | U216: 0
E218: =E$100 -> Ofwat view of G&C for new developments capex - water resources - 2017/18 FYA CPIH deflated | F218: =F$100 -> 0 | G218: £m | H218: 0 | I218: 0 | J218: 0 | K218: 0 | L218: 0 | M218: 0 | N218: 0 | O218: 0 | P218: 0 | Q218: 0 | R218: 0 | S218: 0 | T218: 0 | U218: 0
E219: =E$162 -> G&C apportionment water resources capex - price control - 2017/18 FYA CPIH deflated | F219: =F$162 -> 0 | G219: % | H219: 0 | I219: 0 | J219: 0 | K219: 0 | L219: 0 | M219: 0 | N219: 0 | O219: 0 | P219: 0 | Q219: 0 | R219: 0 | S219: 0 | T219: 0 | U219: 0
E220: Ofwat view of G&C for capex - water resources - price control - 2017/18 FYA CPIH deflated | G220: £m | H220: =SUM(J220:U220) -> 0 | J220: =J218 * J219 -> 0 | K220: =K218 * K219 -> 0 | L220: 0 | M220: 0 | N220: 0 | O220: 0 | P220: 0 | Q220: 0 | R220: 0 | S220: 0 | T220: 0 | U220: 0
E222: =E220 -> Ofwat view of G&C for capex - water resources - price control - 2017/18 FYA CPIH deflated | F222: =F220 -> 0 | G222: £m | H222: 0 | I222: 0 | J222: 0 | K222: 0 | L222: 0 | M222: 0 | N222: 0 | O222: 0 | P222: 0 | Q222: 0 | R222: 0 | S222: 0 | T222: 0 | U222: 0
E223: =InpActive!E$131 -> Ofwat view of G&C for capex - water resources - price control (override) | F223: =InpActive!F$131 -> 0 | G223: =InpActive!G$131 -> £m | H223: =InpActive!H$131 -> 0 | I223: =InpActive!I$131 -> 0 | J223: =InpActive!J$131 -> 0 | K223: =InpActive!K$131 -> 0 | L223: =InpActive!L$131 -> 0 | M223: =InpActive!M$131 -> 0 | N223: =InpActive!N$131 -> 0 | O223: =InpActive!O$131 -> 0 | P223: =InpActive!P$131 -> 0 | Q223: =InpActive!Q$131 -> 0 | R223: =InpActive!R$131 -> 0 | S223: =InpActive!S$131 -> 0 | T223: =InpActive!T$131 -> 0 | U223: =InpActive!U$131 -> 0
E224: Ofwat view of G&C for capex - water resources - price control (post-override) | G224: £m | H224: =SUM(J224:U224) -> 0 | J224: =IF(J223 = 0, J222, J223) -> 0 | K224: =IF(K223 = 0, K222, K223) -> 0 | L224: 0 | M224: =IF(M223 = 0, M222, M223) -> 0 | N224: 0 | O224: 0 | P224: 0 | Q224: 0 | R224: 0 | S224: 0 | T224: 0 | U224: 0
E226: =E$100 -> Ofwat view of G&C for new developments capex - water resources - 2017/18 FYA CPIH deflated | F226: =F$100 -> 0 | G226: £m | H226: 0 | I226: 0 | J226: 0 | K226: 0 | L226: 0 | M226: 0 | N226: 0 | O226: 0 | P226: 0 | Q226: 0 | R226: 0 | S226: 0 | T226: 0 | U226: 0
E227: =E$166 -> G&C apportionment water resources capex - non price control - 2017/18 FYA CPIH deflated | F227: =F$166 -> 0 | G227: % | H227: 0 | I227: 0 | J227: 0 | K227: 0 | L227: 0 | M227: 0 | N227: 0 | O227: 0 | P227: 0 | Q227: 0 | R227: 0 | S227: 0 | T227: 0 | U227: 0
E228: Ofwat view of G&C for capex - water resources - non price control - 2017/18 FYA CPIH deflated | G228: £m | H228: =SUM(J228:U228) -> 0 | J228: =J226 * J227 -> 0 | K228: =K226 * K227 -> 0 | L228: 0 | M228: 0 | N228: 0 | O228: 0 | P228: 0 | Q228: 0 | R228: 0 | S228: 0 | T228: 0 | U228: 0
E230: =E228 -> Ofwat view of G&C for capex - water resources - non price control - 2017/18 FYA CPIH deflated | F230: =F228 -> 0 | G230: £m | H230: 0 | I230: 0 | J230: 0 | K230: 0 | L230: 0 | M230: 0 | N230: 0 | O230: 0 | P230: 0 | Q230: 0 | R230: 0 | S230: 0 | T230: 0 | U230: 0
E231: =InpActive!E$132 -> Ofwat view of G&C for capex - water resources - non price control (override) | F231: =InpActive!F$132 -> 0 | G231: =InpActive!G$132 -> £m | H231: =InpActive!H$132 -> 0 | I231: =InpActive!I$132 -> 0 | J231: =InpActive!J$132 -> 0 | K231: =InpActive!K$132 -> 0 | L231: =InpActive!L$132 -> 0 | M231: =InpActive!M$132 -> 0 | N231: =InpActive!N$132 -> 0 | O231: =InpActive!O$132 -> 0 | P231: =InpActive!P$132 -> 0 | Q231: =InpActive!Q$132 -> 0 | R231: =InpActive!R$132 -> 0 | S231: =InpActive!S$132 -> 0 | T231: =InpActive!T$132 -> 0 | U231: =InpActive!U$132 -> 0
E232: Ofwat view of G&C for capex - water resources - non price control (post-override) | G232: £m | H232: =SUM(J232:U232) -> 0 | J232: =IF(J231 = 0, J230, J231) -> 0 | K232: =IF(K231 = 0, K230, K231) -> 0 | L232: 0 | M232: 0 | N232: 0 | O232: 0 | P232: 0 | Q232: 0 | R232: 0 | S232: 0 | T232: 0 | U232: 0
C234: Opex
E235: =E$136 -> Ofwat view of G&C for new developments & connections opex - water network - 2017/18 FYA CPIH deflated | F235: =F$136 -> 0 | G235: £m | H235: 17.61388599 | I235: 0 | J235: 0 | K235: 0 | L235: 3.710914711 | M235: 3.602736617 | N235: 3.436441155 | O235: 3.408290418 | P235: 3.455503088 | Q235: 0 | R235: 0 | S235: 0 | T235: 0 | U235: 0
E236: =E$152 -> G&C apportionment water network opex - price control - 2017/18 FYA CPIH deflated | F236: =F$152 -> 0 | G236: % | H236: 0 | I236: 0 | J236: 0 | K236: 0 | L236: 1 | M236: 1 | N236: 1 | O236: 1 | P236: 1 | Q236: 0 | R236: 0 | S236: 0 | T236: 0 | U236: 0
E237: Ofwat view of G&C for opex - water network - price control - 2017/18 FYA CPIH deflated | G237: £m | H237: =SUM(J237:U237) -> 17.61388599 | J237: =J235 * J236 -> 0 | K237: =K235 * K236 -> 0 | L237: =L235 * L236 -> 3.710914711 | M237: =M235 * M236 -> 3.602736617 | N237: =N235 * N236 -> 3.436441155 | O237: =O235 * O236 -> 3.408290418 | P237: =P235 * P236 -> 3.455503088 | Q237: =Q235 * Q236 -> 0 | R237: =R235 * R236 -> 0 | S237: =S235 * S236 -> 0 | T237: =T235 * T236 -> 0 | U237: =U235 * U236 -> 0
E239: =E237 -> Ofwat view of G&C for opex - water network - price control - 2017/18 FYA CPIH deflated | F239: =F237 -> 0 | G239: £m | H239: 17.61388599 | I239: 0 | J239: 0 | K239: 0 | L239: 3.710914711 | M239: 3.602736617 | N239: 3.436441155 | O239: 3.408290418 | P239: 3.455503088 | Q239: 0 | R239: 0 | S239: 0 | T239: 0 | U239: 0
E240: =InpActive!E$128 -> Ofwat view of G&C for opex - water network - price control (override) | F240: =InpActive!F$128 -> 0 | G240: =InpActive!G$128 -> £m | H240: =InpActive!H$128 -> 0 | I240: =InpActive!I$128 -> 0 | J240: =InpActive!J$128 -> 0 | K240: =InpActive!K$128 -> 0 | L240: =InpActive!L$128 -> 0 | M240: =InpActive!M$128 -> 0 | N240: =InpActive!N$128 -> 0 | O240: =InpActive!O$128 -> 0 | P240: =InpActive!P$128 -> 0 | Q240: =InpActive!Q$128 -> 0 | R240: =InpActive!R$128 -> 0 | S240: =InpActive!S$128 -> 0 | T240: =InpActive!T$128 -> 0 | U240: =InpActive!U$128 -> 0
E241: Ofwat view of G&C for opex - water network - price control (post-override) | G241: £m | H241: =SUM(J241:U241) -> 17.61388599 | J241: =IF(J240 = 0, J239, J240) -> 0 | K241: =IF(K240 = 0, K239, K240) -> 0 | L241: 3.710914711 | M241: 3.602736617 | N241: 3.436441155 | O241: 3.408290418 | P241: 3.455503088 | Q241: 0 | R241: 0 | S241: 0 | T241: 0 | U241: 0
E243: =E$136 -> Ofwat view of G&C for new developments & connections opex - water network - 2017/18 FYA CPIH deflated | F243: =F$136 -> 0 | G243: £m | H243: 17.61388599 | I243: 0 | J243: 0 | K243: 0 | L243: 3.710914711 | M243: 3.602736617 | N243: 3.436441155 | O243: 3.408290418 | P243: 3.455503088 | Q243: 0 | R243: 0 | S243: 0 | T243: 0 | U243: 0
E244: =E$156 -> G&C apportionment water network opex - non price control - 2017/18 FYA CPIH deflated | F244: =F$156 -> 0 | G244: % | H244: 0 | I244: 0 | J244: 0 | K244: 0 | L244: 0 | M244: 0 | N244: 0 | O244: 0 | P244: 0 | Q244: 0 | R244: 0 | S244: 0 | T244: 0 | U244: 0
E245: Ofwat view of G&C for opex - water network - non price control - 2017/18 FYA CPIH deflated | G245: £m | H245: =SUM(J245:U245) -> 0 | J245: =J243 * J244 -> 0 | K245: =K243 * K244 -> 0 | L245: =L243 * L244 -> 0 | M245: =M243 * M244 -> 0 | N245: =N243 * N244 -> 0 | O245: =O243 * O244 -> 0 | P245: =P243 * P244 -> 0 | Q245: =Q243 * Q244 -> 0 | R245: =R243 * R244 -> 0 | S245: =S243 * S244 -> 0 | T245: =T243 * T244 -> 0 | U245: =U243 * U244 -> 0
E247: =E245 -> Ofwat view of G&C for opex - water network - non price control - 2017/18 FYA CPIH deflated | F247: =F245 -> 0 | G247: £m | H247: 0 | I247: 0 | J247: 0 | K247: 0 | L247: 0 | M247: 0 | N247: 0 | O247: 0 | P247: 0 | Q247: 0 | R247: 0 | S247: 0 | T247: 0 | U247: 0
E248: =InpActive!E$129 -> Ofwat view of G&C for opex - water network - non price control (override) | F248: =InpActive!F$129 -> 0 | G248: =InpActive!G$129 -> £m | H248: =InpActive!H$129 -> 0 | I248: =InpActive!I$129 -> 0 | J248: =InpActive!J$129 -> 0 | K248: =InpActive!K$129 -> 0 | L248: =InpActive!L$129 -> 0 | M248: =InpActive!M$129 -> 0 | N248: =InpActive!N$129 -> 0 | O248: =InpActive!O$129 -> 0 | P248: =InpActive!P$129 -> 0 | Q248: =InpActive!Q$129 -> 0 | R248: =InpActive!R$129 -> 0 | S248: =InpActive!S$129 -> 0 | T248: =InpActive!T$129 -> 0 | U248: =InpActive!U$129 -> 0
E249: Ofwat view of G&C for opex - water network - non price control (post-override) | G249: £m | H249: =SUM(J249:U249) -> 0 | J249: =IF(J248 = 0, J247, J248) -> 0 | K249: =IF(K248 = 0, K247, K248) -> 0 | L249: 0 | M249: 0 | N249: 0 | O249: 0 | P249: 0 | Q249: 0 | R249: 0 | S249: 0 | T249: 0 | U249: 0
E251: =E$110 -> Ofwat view of G&C for new developments opex - water resources - 2017/18 FYA CPIH deflated | F251: =F$110 -> 0 | G251: £m | H251: 0 | I251: 0 | J251: 0 | K251: 0 | L251: 0 | M251: 0 | N251: 0 | O251: 0 | P251: 0 | Q251: 0 | R251: 0 | S251: 0 | T251: 0 | U251: 0
E252: =E$170 -> G&C apportionment water resources opex - price control - 2017/18 FYA CPIH deflated | F252: 0 | G252: % | H252: 0 | I252: 0 | J252: 0 | K252: 0 | L252: 0 | M252: 0 | N252: 0 | O252: 0 | P252: 0 | Q252: 0 | R252: 0 | S252: 0 | T252: 0 | U252: 0
E253: Ofwat view of G&C for opex - water resources - price control - 2017/18 FYA CPIH deflated | G253: £m | H253: =SUM(J253:U253) -> 0 | J253: =J251 * J252 -> 0 | K253: =K251 * K252 -> 0 | L253: =L251 * L252 -> 0 | M253: =M251 * M252 -> 0 | N253: =N251 * N252 -> 0 | O253: =O251 * O252 -> 0 | P253: =P251 * P252 -> 0 | Q253: =Q251 * Q252 -> 0 | R253: =R251 * R252 -> 0 | S253: =S251 * S252 -> 0 | T253: =T251 * T252 -> 0 | U253: =U251 * U252 -> 0
E255: =E253 -> Ofwat view of G&C for opex - water resources - price control - 2017/18 FYA CPIH deflated | F255: =F253 -> 0 | G255: £m | H255: 0 | I255: 0 | J255: 0 | K255: 0 | L255: 0 | M255: 0 | N255: 0 | O255: 0 | P255: 0 | Q255: 0 | R255: 0 | S255: 0 | T255: 0 | U255: 0
E256: =InpActive!E$133 -> Ofwat view of G&C for opex - water resources - price control (override) | F256: =InpActive!F$133 -> 0 | G256: =InpActive!G$133 -> £m | H256: =InpActive!H$133 -> 0 | I256: =InpActive!I$133 -> 0 | J256: =InpActive!J$133 -> 0 | K256: =InpActive!K$133 -> 0 | L256: =InpActive!L$133 -> 0 | M256: =InpActive!M$133 -> 0 | N256: =InpActive!N$133 -> 0 | O256: =InpActive!O$133 -> 0 | P256: =InpActive!P$133 -> 0 | Q256: =InpActive!Q$133 -> 0 | R256: =InpActive!R$133 -> 0 | S256: =InpActive!S$133 -> 0 | T256: =InpActive!T$133 -> 0 | U256: =InpActive!U$133 -> 0
... 8 more rows

Sheet G&C Wastewater
A1: =RIGHT(CELL("filename", $A$1), LEN(CELL("filename", $A$1)) - SEARCH("]", CELL("filename", $A$1))) -> G&C Wastewater | F1: =IF(InpActive!$F$163 + InpOverride!$F$77 > 0, "Overrides", "No Overrides") -> No Overrides
E2: =Time!E2 -> Model period ending | F2: =Check!$F$11 -> 0 | G2: Checks | J2: =Time!J$25 -> 2019-03-31 | K2: =Time!K$25 -> 2020-03-31 | L2: =Time!L$25 -> 2021-03-31 | M2: =Time!M$25 -> 2022-03-31 | N2: =Time!N$25 -> 2023-03-31 | O2: =Time!O$25 -> 2024-03-31 | P2: =Time!P$25 -> 2025-03-31 | Q2: =Time!Q$25 -> 2026-03-31 | R2: =Time!R$25 -> 2027-03-31 | S2: =Time!S$25 -> 2028-03-31 | T2: =Time!T$25 -> 2029-03-31 | U2: =Time!U$25 -> 2030-03-31
E3: =Time!E3 -> Timeline label | F3: =Check!$F$28 -> 44 | G3: Track chgs | J3: =Time!J$104 -> Pre-Fcst | K3: =Time!K$104 -> Pre-Fcst | L3: =Time!L$104 -> Forecast | M3: =Time!M$104 -> Forecast | N3: =Time!N$104 -> Forecast | O3: =Time!O$104 -> Forecast | P3: =Time!P$104 -> Forecast | Q3: =Time!Q$104 -> Post-Fcst | R3: =Time!R$104 -> Post-Fcst | S3: =Time!S$104 -> Post-Fcst | T3: =Time!T$104 -> Post-Fcst | U3: =Time!U$104 -> Post-Fcst
E4: =Time!E4 -> Financial year ending | J4: =Time!J$127 -> 2019 | K4: =Time!K$127 -> 2020 | L4: =Time!L$127 -> 2021 | M4: =Time!M$127 -> 2022 | N4: =Time!N$127 -> 2023 | O4: =Time!O$127 -> 2024 | P4: =Time!P$127 -> 2025 | Q4: =Time!Q$127 -> 2026 | R4: =Time!R$127 -> 2027 | S4: =Time!S$127 -> 2028 | T4: =Time!T$127 -> 2029 | U4: =Time!U$127 -> 2030
E5: =Time!E5 -> Model column counter | F5: Constant | G5: Unit | H5: Total | J5: =Time!J$10 -> 1 | K5: =Time!K$10 -> 2 | L5: =Time!L$10 -> 3 | M5: =Time!M$10 -> 4 | N5: =Time!N$10 -> 5 | O5: =Time!O$10 -> 6 | P5: =Time!P$10 -> 7 | Q5: =Time!Q$10 -> 8 | R5: =Time!R$10 -> 9 | S5: =Time!S$10 -> 10 | T5: =Time!T$10 -> 11 | U5: =Time!U$10 -> 12
A7: WASTEWATER GRANTS & CONTRIBUTIONS FEEDER CALCULATION
B9: There are no Bioresources inputs for new developments
A11: Recovery rate
B12: Calculate the recovery rate: G&C divided by new developments totex
C14: Company View of new development totex
B15: Assume diversions expenditure = diversions G&C since 100% recovery rate
E16: =InpActive!E$113 -> New development and growth - Total | F16: =InpActive!F$113 -> 0 | G16: =InpActive!G$113 -> £m | H16: =InpActive!H$113 -> 130.8752265 | I16: =InpActive!I$113 -> 0 | J16: =InpActive!J$113 -> 0 | K16: =InpActive!K$113 -> 0 | L16: =InpActive!L$113 -> 34.18882295 | M16: =InpActive!M$113 -> 34.43888323 | N16: =InpActive!N$113 -> 20.28197982 | O16: =InpActive!O$113 -> 20.5759668 | P16: =InpActive!P$113 -> 21.38957367 | Q16: =InpActive!Q$113 -> 0 | R16: =InpActive!R$113 -> 0 | S16: =InpActive!S$113 -> 0 | T16: =InpActive!T$113 -> 0 | U16: =InpActive!U$113 -> 0
E17: =InpActive!E$114 -> Enhancement expenditure by purpose - operating - New development and growth - Total | F17: =InpActive!F$114 -> 0 | G17: =InpActive!G$114 -> £m | H17: =InpActive!H$114 -> 9.772418162 | I17: =InpActive!I$114 -> 0 | J17: =InpActive!J$114 -> 0 | K17: =InpActive!K$114 -> 0 | L17: =InpActive!L$114 -> 1.630857887 | M17: =InpActive!M$114 -> 1.629670716 | N17: =InpActive!N$114 -> 1.624620885 | O17: =InpActive!O$114 -> 2.169558273 | P17: =InpActive!P$114 -> 2.717710401 | Q17: =InpActive!Q$114 -> 0 | R17: =InpActive!R$114 -> 0 | S17: =InpActive!S$114 -> 0 | T17: =InpActive!T$114 -> 0 | U17: =InpActive!U$114 -> 0
E18: Company view of new developments totex (excl. diversions) - wastewater - 2017/18 FYA CPIH deflated | G18: £m | H18: =SUM(J18:U18) -> 140.6476446 | J18: =SUM(J16:J17) -> 0 | K18: =SUM(K16:K17) -> 0 | L18: 35.81968083 | M18: 36.06855395 | N18: 21.90660071 | O18: 22.74552507 | P18: 24.10728407 | Q18: 0 | R18: 0 | S18: 0 | T18: 0 | U18: 0
C20: Company View of grants and contributions towards new developments totex
E21: =InpActive!E$67 -> Infrastructure charge receipts (s146) - wastewater | F21: =InpActive!F$67 -> 0 | G21: =InpActive!G$67 -> £m | H21: =InpActive!H$67 -> 60.70507414 | I21: =InpActive!I$67 -> 0 | J21: =InpActive!J$67 -> 0 | K21: =InpActive!K$67 -> 0 | L21: =InpActive!L$67 -> 13.31702526 | M21: =InpActive!M$67 -> 13.06461251 | N21: =InpActive!N$67 -> 11.42207695 | O21: =InpActive!O$67 -> 11.65089173 | P21: =InpActive!P$67 -> 11.25046768 | Q21: =InpActive!Q$67 -> 0 | R21: =InpActive!R$67 -> 0 | S21: =InpActive!S$67 -> 0 | T21: =InpActive!T$67 -> 0 | U21: =InpActive!U$67 -> 0
E22: =InpActive!E$68 -> Requisitioned sewers (s100) | F22: =InpActive!F$68 -> 0 | G22: =InpActive!G$68 -> £m | H22: =InpActive!H$68 -> 15.29666624 | I22: =InpActive!I$68 -> 0 | J22: =InpActive!J$68 -> 0 | K22: =InpActive!K$68 -> 0 | L22: =InpActive!L$68 -> 3.309437795 | M22: =InpActive!M$68 -> 3.252062232 | N22: =InpActive!N$68 -> 2.890136643 | O22: =InpActive!O$68 -> 2.956277373 | P22: =InpActive!P$68 -> 2.888752198 | Q22: =InpActive!Q$68 -> 0 | R22: =InpActive!R$68 -> 0 | S22: =InpActive!S$68 -> 0 | T22: =InpActive!T$68 -> 0 | U22: =InpActive!U$68 -> 0
E23: =InpActive!E$69 -> Grants and contributions received ~ wholesale wastewater service - Other contributions (price control) | F23: =InpActive!F$69 -> 0 | G23: =InpActive!G$69 -> £m | H23: =InpActive!H$69 -> 3.722125919 | I23: =InpActive!I$69 -> 0 | J23: =InpActive!J$69 -> 0 | K23: =InpActive!K$69 -> 0 | L23: =InpActive!L$69 -> 0.7295495175 | M23: =InpActive!M$69 -> 0.7372357685 | N23: =InpActive!N$69 -> 0.7444577538 | O23: =InpActive!O$69 -> 0.7517563592 | P23: =InpActive!P$69 -> 0.7591265196 | Q23: =InpActive!Q$69 -> 0 | R23: =InpActive!R$69 -> 0 | S23: =InpActive!S$69 -> 0 | T23: =InpActive!T$69 -> 0 | U23: =InpActive!U$69 -> 0
E24: =InpActive!E$74 -> G&C received - wastewater - other contributions (non-price control) - post-override | F24: =InpActive!F$74 -> 0 | G24: =InpActive!G$74 -> £m | H24: =InpActive!H$74 -> 0 | I24: =InpActive!I$74 -> 0 | J24: =InpActive!J$74 -> 0 | K24: =InpActive!K$74 -> 0 | L24: =InpActive!L$74 -> 29.7885588 | M24: =InpActive!M$74 -> 27.03503791 | N24: =InpActive!N$74 -> 19.035014 | O24: =InpActive!O$74 -> 15.50145508 | P24: =InpActive!P$74 -> 10.93811581 | Q24: =InpActive!Q$74 -> 0 | R24: =InpActive!R$74 -> 0 | S24: =InpActive!S$74 -> 0 | T24: =InpActive!T$74 -> 0 | U24: =InpActive!U$74 -> 0
E25: Company view of new developments G&C (excl. diversions) - wastewater - 2017/18 FYA CPIH deflated | G25: £m | H25: =SUM(J25:U25) -> 182.0220479 | J25: =SUM(J21:J24) -> 0 | K25: 0 | L25: 47.14457138 | M25: 44.08894842 | N25: 34.09168535 | O25: 30.86038055 | P25: 25.83646221 | Q25: 0 | R25: 0 | S25: 0 | T25: 0 | U25: 0
C27: Calculate RECOVERY RATE
B28: Calculate the company view of G&C as a proportion of new developments totex
E29: =E$18 -> Company view of new developments totex (excl. diversions) - wastewater - 2017/18 FYA CPIH deflated | F29: =F$18 -> 0 | G29: £m | H29: 140.6476446 | I29: 0 | J29: 0 | K29: 0 | L29: 35.81968083 | M29: 36.06855395 | N29: 21.90660071 | O29: 22.74552507 | P29: 24.10728407 | Q29: 0 | R29: 0 | S29: 0 | T29: 0 | U29: 0
E30: =E$25 -> Company view of new developments G&C (excl. diversions) - wastewater - 2017/18 FYA CPIH deflated | F30: =F$25 -> 0 | G30: £m | H30: 182.0220479 | I30: 0 | J30: 0 | K30: 0 | L30: 47.14457138 | M30: 44.08894842 | N30: 34.09168535 | O30: 30.86038055 | P30: 25.83646221 | Q30: 0 | R30: 0 | S30: 0 | T30: 0 | U30: 0
E31: Company view of G&C recovery rate - new developments - wastewater | G31: % | J31: =IF(J29 = 0, 0, J30 / J29) -> 0 | K31: =IF(K29 = 0, 0, K30 / K29) -> 0 | L31: =IF(L29 = 0, 0, L30 / L29) -> 1.316163916 | M31: =IF(M29 = 0, 0, M30 / M29) -> 1.22236529 | N31: 1.55622891 | O31: 1.35676712 | P31: 1.071728451 | Q31: 0 | R31: 0 | S31: 0 | T31: 0 | U31: 0
E33: Wastewater G&C but no wastewater expenditure - check | F33: =IF( SUM(J33:U33) > 0, 1, 0) -> 0 | G33: check | J33: =IF( AND(J29 = 0, J30 > 0), 1, 0) -> 0 | K33: =IF( AND(K29 = 0, K30 > 0), 1, 0) -> 0 | L33: 0 | M33: 0 | N33: 0 | O33: 0 | P33: 0 | Q33: 0 | R33: 0 | S33: 0 | T33: 0 | U33: 0
B35: Option to override the calculated recovery rate
E36: =E$31 -> Company view of G&C recovery rate - new developments - wastewater | F36: =F$31 -> 0 | G36: % | H36: 0 | I36: 0 | J36: 0 | K36: 0 | L36: 1.316163916 | M36: 1.22236529 | N36: 1.55622891 | O36: 1.35676712 | P36: 1.071728451 | Q36: 0 | R36: 0 | S36: 0 | T36: 0 | U36: 0
E37: =InpActive!E$122 -> OFWAT view of G&C recovery rate - new developments - Wastewater | F37: =InpActive!F$122 -> 0 | G37: =InpActive!G$122 -> % | H37: =InpActive!H$122 -> 5 | I37: =InpActive!I$122 -> 0 | J37: =InpActive!J$122 -> 0 | K37: =InpActive!K$122 -> 0 | L37: =InpActive!L$122 -> 1 | M37: =InpActive!M$122 -> 1 | N37: =InpActive!N$122 -> 1 | O37: =InpActive!O$122 -> 1 | P37: =InpActive!P$122 -> 1 | Q37: =InpActive!Q$122 -> 0 | R37: =InpActive!R$122 -> 0 | S37: =InpActive!S$122 -> 0 | T37: =InpActive!T$122 -> 0 | U37: =InpActive!U$122 -> 0
E38: G&C recovery rate - new developments - wastewater - post-override | G38: % | J38: =IF(J37 = 0, J36, J37) -> 0 | K38: =IF(K37 = 0, K36, K37) -> 0 | L38: 1 | M38: 1 | N38: 1 | O38: 1 | P38: 1 | Q38: 0 | R38: 0 | S38: 0 | T38: 0 | U38: 0
A40: OFWAT view of expenditure (efficiency challenge)
B41: Calculate Ofwat's view of expenditure: company view of expenditure * efficiency challenge
C43: Efficiency Challenge * Company View - Capex
E44: =InpActive!E$143 -> Wastewater efficiency challenge - capex - (post override) | F44: =InpActive!F$143 -> 0.3403678112 | G44: =InpActive!G$143 -> %
E45: =InpActive!E$113 -> New development and growth - Total | F45: =InpActive!F$113 -> 0 | G45: =InpActive!G$113 -> £m | H45: =InpActive!H$113 -> 130.8752265 | I45: =InpActive!I$113 -> 0 | J45: =InpActive!J$113 -> 0 | K45: =InpActive!K$113 -> 0 | L45: =InpActive!L$113 -> 34.18882295 | M45: =InpActive!M$113 -> 34.43888323 | N45: =InpActive!N$113 -> 20.28197982 | O45: =InpActive!O$113 -> 20.5759668 | P45: =InpActive!P$113 -> 21.38957367 | Q45: =InpActive!Q$113 -> 0 | R45: =InpActive!R$113 -> 0 | S45: =InpActive!S$113 -> 0 | T45: =InpActive!T$113 -> 0 | U45: =InpActive!U$113 -> 0
E46: Ofwat view of wholesale wastewater capex - new developments (excl. diversions) - 2017/18 FYA CPIH deflated | G46: £m | H46: =SUM(J46:U46) -> 86.32951209 | J46: =(1 - $F$44) * J45 -> 0 | K46: =(1 - $F$44) * K45 -> 0 | L46: 22.55204811 | M46: 22.71699592 | N46: 13.37864674 | O46: 13.57257001 | P46: 14.10925129 | Q46: 0 | R46: 0 | S46: 0 | T46: 0 | U46: 0
C48: Efficiency Challenge * Company View - Opex
E49: =InpActive!E$142 -> Wastewater efficiency challenge - opex - (post override) | F49: =InpActive!F$142 -> 0.3403678112 | G49: =InpActive!G$142 -> %
E50: =InpActive!E$114 -> Enhancement expenditure by purpose - operating - New development and growth - Total | F50: =InpActive!F$114 -> 0 | G50: =InpActive!G$114 -> £m | H50: =InpActive!H$114 -> 9.772418162 | I50: =InpActive!I$114 -> 0 | J50: =InpActive!J$114 -> 0 | K50: =InpActive!K$114 -> 0 | L50: =InpActive!L$114 -> 1.630857887 | M50: =InpActive!M$114 -> 1.629670716 | N50: =InpActive!N$114 -> 1.624620885 | O50: =InpActive!O$114 -> 2.169558273 | P50: =InpActive!P$114 -> 2.717710401 | Q50: =InpActive!Q$114 -> 0 | R50: =InpActive!R$114 -> 0 | S50: =InpActive!S$114 -> 0 | T50: =InpActive!T$114 -> 0 | U50: =InpActive!U$114 -> 0
E51: Ofwat view of wholesale wastewater opex - new developments (excl. diversions) - 2017/18 FYA CPIH deflated | G51: £m | H51: =SUM(J51:U51) -> 6.446201582 | J51: =(1 - $F$49) * J50 -> 0 | K51: =(1 - $F$49) * K50 -> 0 | L51: =(1 - $F$49) * L50 -> 1.075766358 | M51: =(1 - $F$49) * M50 -> 1.074983261 | N51: 1.07165223 | O51: 1.431110472 | P51: 1.79268926 | Q51: 0 | R51: 0 | S51: 0 | T51: 0 | U51: 0
A54: Ofwat view of grants and contributions received
B55: Calculate Ofwat's view of G&C: Ofwat's view of expenditure * recovery rate
B57: Calculate Ofwat's view of G&C for new developments capex using Ofwat's view of new developments capex and the recovery rate
E58: =E$38 -> G&C recovery rate - new developments - wastewater - post-override | F58: =F$38 -> 0 | G58: % | H58: 0 | I58: 0 | J58: 0 | K58: 0 | L58: 1 | M58: 1 | N58: 1 | O58: 1 | P58: 1 | Q58: 0 | R58: 0 | S58: 0 | T58: 0 | U58: 0
E59: =E$46 -> Ofwat view of wholesale wastewater capex - new developments (excl. diversions) - 2017/18 FYA CPIH deflated | F59: 0 | G59: £m | H59: 86.32951209 | I59: 0 | J59: 0 | K59: 0 | L59: 22.55204811 | M59: 22.71699592 | N59: 13.37864674 | O59: 13.57257001 | P59: 14.10925129 | Q59: 0 | R59: 0 | S59: 0 | T59: 0 | U59: 0
D60: plus | E60: =InpActive!E$73 -> Diversions - capex - wastewater - post override | F60: =InpActive!F$73 -> 0 | G60: =InpActive!G$73 -> £m | H60: =InpActive!H$73 -> 0 | I60: =InpActive!I$73 -> 0 | J60: =InpActive!J$73 -> 0 | K60: =InpActive!K$73 -> 0 | L60: =InpActive!L$73 -> 0 | M60: =InpActive!M$73 -> 0 | N60: =InpActive!N$73 -> 0 | O60: =InpActive!O$73 -> 0 | P60: =InpActive!P$73 -> 0 | Q60: =InpActive!Q$73 -> 0 | R60: =InpActive!R$73 -> 0 | S60: =InpActive!S$73 -> 0 | T60: =InpActive!T$73 -> 0 | U60: =InpActive!U$73 -> 0
E61: Ofwat view of G&C for new developments capex - wastewater - 2017/18 FYA CPIH deflated | G61: £m | H61: =SUM(J61:U61) -> 86.32951209 | J61: =J59 * J58 + J60 -> 0 | K61: =K59 * K58 + K60 -> 0 | L61: 22.55204811 | M61: 22.71699592 | N61: 13.37864674 | O61: 13.57257001 | P61: 14.10925129 | Q61: 0 | R61: 0 | S61: 0 | T61: 0 | U61: 0
B63: Calculate Ofwat's view of G&C for new developments opex using Ofwat's view of new developments opex and the recovery rate
E64: =E$38 -> G&C recovery rate - new developments - wastewater - post-override | F64: =F$38 -> 0 | G64: % | H64: 0 | I64: 0 | J64: 0 | K64: 0 | L64: 1 | M64: 1 | N64: 1 | O64: 1 | P64: 1 | Q64: 0 | R64: 0 | S64: 0 | T64: 0 | U64: 0
E65: =E$51 -> Ofwat view of wholesale wastewater opex - new developments (excl. diversions) - 2017/18 FYA CPIH deflated | F65: 0 | G65: £m | H65: 6.446201582 | I65: 0 | J65: 0 | K65: 0 | L65: 1.075766358 | M65: 1.074983261 | N65: 1.07165223 | O65: 1.431110472 | P65: 1.79268926 | Q65: 0 | R65: 0 | S65: 0 | T65: 0 | U65: 0
D66: plus | E66: =InpActive!E$72 -> Diversions - opex - wastewater - post override | F66: =InpActive!F$72 -> 0 | G66: =InpActive!G$72 -> £m | H66: =InpActive!H$72 -> 0 | I66: =InpActive!I$72 -> 0 | J66: =InpActive!J$72 -> 0 | K66: =InpActive!K$72 -> 0 | L66: =InpActive!L$72 -> 1.822015786 | M66: =InpActive!M$72 -> 1.801028098 | N66: =InpActive!N$72 -> 1.647126818 | O66: =InpActive!O$72 -> 1.679744627 | P66: =InpActive!P$72 -> 1.654170668 | Q66: =InpActive!Q$72 -> 0 | R66: =InpActive!R$72 -> 0 | S66: =InpActive!S$72 -> 0 | T66: =InpActive!T$72 -> 0 | U66: =InpActive!U$72 -> 0
E67: Ofwat view of G&C for new developments opex - wastewater - 2017/18 FYA CPIH deflated | G67: £m | H67: =SUM(J67:U67) -> 15.05028758 | J67: =J65 * J64 + J66 -> 0 | K67: =K65 * K64 + K66 -> 0 | L67: =L65 * L64 + L66 -> 2.897782143 | M67: =M65 * M64 + M66 -> 2.876011359 | N67: =N65 * N64 + N66 -> 2.718779049 | O67: =O65 * O64 + O66 -> 3.1108551 | P67: =P65 * P64 + P66 -> 3.446859928 | Q67: =Q65 * Q64 + Q66 -> 0 | R67: =R65 * R64 + R66 -> 0 | S67: =S65 * S64 + S66 -> 0 | T67: =T65 * T64 + T66 -> 0 | U67: =U65 * U64 + U66 -> 0
A69: Grants and contributions price control apportionment
B70: Calculate the apportionment between price control and non-price control expenditure using the company's view
C72: Company View
E73: =InpActive!E$91 -> Wastewater network capital expenditure grants and contributions (price control) | F73: =InpActive!F$91 -> 0 | G73: =InpActive!G$91 -> £m | H73: =InpActive!H$91 -> 86.32818433 | I73: =InpActive!I$91 -> 0 | J73: =InpActive!J$91 -> 0 | K73: =InpActive!K$91 -> 0 | L73: =InpActive!L$91 -> 18.77229775 | M73: =InpActive!M$91 -> 18.43663035 | N73: =InpActive!N$91 -> 16.31570573 | O73: =InpActive!O$91 -> 16.64677283 | P73: =InpActive!P$91 -> 16.15677768 | Q73: =InpActive!Q$91 -> 0 | R73: =InpActive!R$91 -> 0 | S73: =InpActive!S$91 -> 0 | T73: =InpActive!T$91 -> 0 | U73: =InpActive!U$91 -> 0
E74: =InpActive!E$93 -> Wastewater network capital expenditure grants and contributions (non-price control) | F74: =InpActive!F$93 -> 0 | G74: =InpActive!G$93 -> £m | H74: =InpActive!H$93 -> 98.74303855 | I74: =InpActive!I$93 -> 0 | J74: =InpActive!J$93 -> 0 | K74: =InpActive!K$93 -> 0 | L74: =InpActive!L$93 -> 29.06725994 | M74: =InpActive!M$93 -> 26.29137878 | N74: =InpActive!N$93 -> 18.34507189 | O74: =InpActive!O$93 -> 14.80474883 | P74: =InpActive!P$93 -> 10.23457911 | Q74: =InpActive!Q$93 -> 0 | R74: =InpActive!R$93 -> 0 | S74: =InpActive!S$93 -> 0 | T74: =InpActive!T$93 -> 0 | U74: =InpActive!U$93 -> 0
E75: G&C apportionment capex - price control - 2017/18 FYA CPIH deflated | G75: % | J75: =IF( SUM(J73:J74) = 0, 0, J73 /SUM(J73:J74)) -> 0 | K75: =IF( SUM(K73:K74) = 0, 0, K73 /SUM(K73:K74)) -> 0 | L75: 0.3924011562 | M75: 0.4121942986 | N75: 0.4707253226 | O75: 0.5292835433 | P75: 0.6121995853 | Q75: 0 | R75: 0 | S75: 0 | T75: 0 | U75: 0
E77: =InpActive!E$91 -> Wastewater network capital expenditure grants and contributions (price control) | F77: =InpActive!F$91 -> 0 | G77: =InpActive!G$91 -> £m | H77: =InpActive!H$91 -> 86.32818433 | I77: =InpActive!I$91 -> 0 | J77: =InpActive!J$91 -> 0 | K77: =InpActive!K$91 -> 0 | L77: =InpActive!L$91 -> 18.77229775 | M77: =InpActive!M$91 -> 18.43663035 | N77: =InpActive!N$91 -> 16.31570573 | O77: =InpActive!O$91 -> 16.64677283 | P77: =InpActive!P$91 -> 16.15677768 | Q77: =InpActive!Q$91 -> 0 | R77: =InpActive!R$91 -> 0 | S77: =InpActive!S$91 -> 0 | T77: =InpActive!T$91 -> 0 | U77: =InpActive!U$91 -> 0
E78: =InpActive!E$93 -> Wastewater network capital expenditure grants and contributions (non-price control) | F78: =InpActive!F$93 -> 0 | G78: =InpActive!G$93 -> £m | H78: =InpActive!H$93 -> 98.74303855 | I78: =InpActive!I$93 -> 0 | J78: =InpActive!J$93 -> 0 | K78: =InpActive!K$93 -> 0 | L78: =InpActive!L$93 -> 29.06725994 | M78: =InpActive!M$93 -> 26.29137878 | N78: =InpActive!N$93 -> 18.34507189 | O78: =InpActive!O$93 -> 14.80474883 | P78: =InpActive!P$93 -> 10.23457911 | Q78: =InpActive!Q$93 -> 0 | R78: =InpActive!R$93 -> 0 | S78: =InpActive!S$93 -> 0 | T78: =InpActive!T$93 -> 0 | U78: =InpActive!U$93 -> 0
E79: G&C apportionment capex - non price control - 2017/18 FYA CPIH deflated | G79: % | J79: =IF( SUM(J77:J78) = 0, 0, J78 /SUM(J77:J78)) -> 0 | K79: =IF( SUM(K77:K78) = 0, 0, K78 /SUM(K77:K78)) -> 0 | L79: 0.6075988438 | M79: 0.5878057014 | N79: 0.5292746774 | O79: 0.4707164567 | P79: 0.3878004147 | Q79: 0 | R79: 0 | S79: 0 | T79: 0 | U79: 0
E81: =InpActive!E$90 -> Wastewater network operating expenditure grants and contributions (price control) | F81: =InpActive!F$90 -> 0 | G81: =InpActive!G$90 -> £m | H81: =InpActive!H$90 -> 1.999767964 | I81: =InpActive!I$90 -> 0 | J81: =InpActive!J$90 -> 0 | K81: =InpActive!K$90 -> 0 | L81: =InpActive!L$90 -> 0.4057306099 | M81: =InpActive!M$90 -> 0.4183082588 | N81: =InpActive!N$90 -> 0.3880924366 | O81: =InpActive!O$90 -> 0.3918972644 | P81: =InpActive!P$90 -> 0.3957393945 | Q81: =InpActive!Q$90 -> 0 | R81: =InpActive!R$90 -> 0 | S81: =InpActive!S$90 -> 0 | T81: =InpActive!T$90 -> 0 | U81: =InpActive!U$90 -> 0
E82: =InpActive!E$92 -> Wastewater network operating expenditure grants and contributions (non-price control) | F82: =InpActive!F$92 -> 0 | G82: =InpActive!G$92 -> £m | H82: =InpActive!H$92 -> 3.555143047 | I82: =InpActive!I$92 -> 0 | J82: =InpActive!J$92 -> 0 | K82: =InpActive!K$92 -> 0 | L82: =InpActive!L$92 -> 0.721298862 | M82: =InpActive!M$92 -> 0.7436591267 | N82: =InpActive!N$92 -> 0.6899421095 | O82: =InpActive!O$92 -> 0.6967062479 | P82: =InpActive!P$92 -> 0.7035367013 | Q82: =InpActive!Q$92 -> 0 | R82: =InpActive!R$92 -> 0 | S82: =InpActive!S$92 -> 0 | T82: =InpActive!T$92 -> 0 | U82: =InpActive!U$92 -> 0
E83: G&C apportionment opex - price control - 2017/18 FYA CPIH deflated | G83: % | J83: =IF( SUM(J81:J82) = 0, 0, J81 /SUM(J81:J82)) -> 0 | K83: =IF( SUM(K81:K82) = 0, 0, K81 /SUM(K81:K82)) -> 0 | L83: 0.36 | M83: 0.36 | N83: 0.36 | O83: 0.36 | P83: 0.36 | Q83: 0 | R83: 0 | S83: 0 | T83: 0 | U83: 0
E85: =InpActive!E$90 -> Wastewater network operating expenditure grants and contributions (price control) | F85: =InpActive!F$90 -> 0 | G85: =InpActive!G$90 -> £m | H85: =InpActive!H$90 -> 1.999767964 | I85: =InpActive!I$90 -> 0 | J85: =InpActive!J$90 -> 0 | K85: =InpActive!K$90 -> 0 | L85: =InpActive!L$90 -> 0.4057306099 | M85: =InpActive!M$90 -> 0.4183082588 | N85: =InpActive!N$90 -> 0.3880924366 | O85: =InpActive!O$90 -> 0.3918972644 | P85: =InpActive!P$90 -> 0.3957393945 | Q85: =InpActive!Q$90 -> 0 | R85: =InpActive!R$90 -> 0 | S85: =InpActive!S$90 -> 0 | T85: =InpActive!T$90 -> 0 | U85: =InpActive!U$90 -> 0
E86: =InpActive!E$92 -> Wastewater network operating expenditure grants and contributions (non-price control) | F86: =InpActive!F$92 -> 0 | G86: =InpActive!G$92 -> £m | H86: =InpActive!H$92 -> 3.555143047 | I86: =InpActive!I$92 -> 0 | J86: =InpActive!J$92 -> 0 | K86: =InpActive!K$92 -> 0 | L86: =InpActive!L$92 -> 0.721298862 | M86: =InpActive!M$92 -> 0.7436591267 | N86: =InpActive!N$92 -> 0.6899421095 | O86: =InpActive!O$92 -> 0.6967062479 | P86: =InpActive!P$92 -> 0.7035367013 | Q86: =InpActive!Q$92 -> 0 | R86: =InpActive!R$92 -> 0 | S86: =InpActive!S$92 -> 0 | T86: =InpActive!T$92 -> 0 | U86: =InpActive!U$92 -> 0
E87: G&C apportionment opex - non price control - 2017/18 FYA CPIH deflated | G87: % | J87: =IF( SUM(J85:J86) = 0, 0, J86 /SUM(J85:J86)) -> 0 | K87: =IF( SUM(K85:K86) = 0, 0, K86 /SUM(K85:K86)) -> 0 | L87: =IF( SUM(L85:L86) = 0, 0, L86 /SUM(L85:L86)) -> 0.64 | M87: =IF( SUM(M85:M86) = 0, 0, M86 /SUM(M85:M86)) -> 0.64 | N87: =IF( SUM(N85:N86) = 0, 0, N86 /SUM(N85:N86)) -> 0.64 | O87: =IF( SUM(O85:O86) = 0, 0, O86 /SUM(O85:O86)) -> 0.64 | P87: =IF( SUM(P85:P86) = 0, 0, P86 /SUM(P85:P86)) -> 0.64 | Q87: =IF( SUM(Q85:Q86) = 0, 0, Q86 /SUM(Q85:Q86)) -> 0 | R87: =IF( SUM(R85:R86) = 0, 0, R86 /SUM(R85:R86)) -> 0 | S87: =IF( SUM(S85:S86) = 0, 0, S86 /SUM(S85:S86)) -> 0 | T87: =IF( SUM(T85:T86) = 0, 0, T86 /SUM(T85:T86)) -> 0 | U87: =IF( SUM(U85:U86) = 0, 0, U86 /SUM(U85:U86)) -> 0
C89: Check company data table entries for Grants & Contributions
E90: =InpActive!E$67 -> Infrastructure charge receipts (s146) - wastewater | F90: =InpActive!F$67 -> 0 | G90: =InpActive!G$67 -> £m | H90: =InpActive!H$67 -> 60.70507414 | I90: =InpActive!I$67 -> 0 | J90: =InpActive!J$67 -> 0 | K90: =InpActive!K$67 -> 0 | L90: =InpActive!L$67 -> 13.31702526 | M90: =InpActive!M$67 -> 13.06461251 | N90: =InpActive!N$67 -> 11.42207695 | O90: =InpActive!O$67 -> 11.65089173 | P90: =InpActive!P$67 -> 11.25046768 | Q90: =InpActive!Q$67 -> 0 | R90: =InpActive!R$67 -> 0 | S90: =InpActive!S$67 -> 0 | T90: =InpActive!T$67 -> 0 | U90: =InpActive!U$67 -> 0
E91: =InpActive!E$68 -> Requisitioned sewers (s100) | F91: =InpActive!F$68 -> 0 | G91: =InpActive!G$68 -> £m | H91: =InpActive!H$68 -> 15.29666624 | I91: =InpActive!I$68 -> 0 | J91: =InpActive!J$68 -> 0 | K91: =InpActive!K$68 -> 0 | L91: =InpActive!L$68 -> 3.309437795 | M91: =InpActive!M$68 -> 3.252062232 | N91: =InpActive!N$68 -> 2.890136643 | O91: =InpActive!O$68 -> 2.956277373 | P91: =InpActive!P$68 -> 2.888752198 | Q91: =InpActive!Q$68 -> 0 | R91: =InpActive!R$68 -> 0 | S91: =InpActive!S$68 -> 0 | T91: =InpActive!T$68 -> 0 | U91: =InpActive!U$68 -> 0
E92: =InpActive!E$69 -> Grants and contributions received ~ wholesale wastewater service - Other contributions (price control) | F92: =InpActive!F$69 -> 0 | G92: =InpActive!G$69 -> £m | H92: =InpActive!H$69 -> 3.722125919 | I92: =InpActive!I$69 -> 0 | J92: =InpActive!J$69 -> 0 | K92: =InpActive!K$69 -> 0 | L92: =InpActive!L$69 -> 0.7295495175 | M92: =InpActive!M$69 -> 0.7372357685 | N92: =InpActive!N$69 -> 0.7444577538 | O92: =InpActive!O$69 -> 0.7517563592 | P92: =InpActive!P$69 -> 0.7591265196 | Q92: =InpActive!Q$69 -> 0 | R92: =InpActive!R$69 -> 0 | S92: =InpActive!S$69 -> 0 | T92: =InpActive!T$69 -> 0 | U92: =InpActive!U$69 -> 0
E93: =InpActive!E$70 -> Grants and contributions received ~ wholesale wastewater service - Other contributions (non-price control) | F93: =InpActive!F$70 -> 0 | G93: =InpActive!G$70 -> £m | H93: =InpActive!H$70 -> 102.2981816 | I93: =InpActive!I$70 -> 0 | J93: =InpActive!J$70 -> 0 | K93: =InpActive!K$70 -> 0 | L93: =InpActive!L$70 -> 29.7885588 | M93: =InpActive!M$70 -> 27.03503791 | N93: =InpActive!N$70 -> 19.035014 | O93: =InpActive!O$70 -> 15.50145508 | P93: =InpActive!P$70 -> 10.93811581 | Q93: =InpActive!Q$70 -> 0 | R93: =InpActive!R$70 -> 0 | S93: =InpActive!S$70 -> 0 | T93: =InpActive!T$70 -> 0 | U93: =InpActive!U$70 -> 0
E94: =InpActive!E$71 -> Diversions (s185) | F94: =InpActive!F$71 -> 0 | G94: =InpActive!G$71 -> £m | H94: =InpActive!H$71 -> 8.604085997 | I94: =InpActive!I$71 -> 0 | J94: =InpActive!J$71 -> 0 | K94: =InpActive!K$71 -> 0 | L94: =InpActive!L$71 -> 1.822015786 | M94: =InpActive!M$71 -> 1.801028098 | N94: =InpActive!N$71 -> 1.647126818 | O94: =InpActive!O$71 -> 1.679744627 | P94: =InpActive!P$71 -> 1.654170668 | Q94: =InpActive!Q$71 -> 0 | R94: =InpActive!R$71 -> 0 | S94: =InpActive!S$71 -> 0 | T94: =InpActive!T$71 -> 0 | U94: =InpActive!U$71 -> 0
E95: G&C from App28 | G95: £m | H95: =SUM(J95:U95) -> 190.6261339 | J95: =SUM(J90:J94) -> 0 | K95: =SUM(K90:K94) -> 0 | L95: 48.96658716 | M95: 45.88997652 | N95: 35.73881216 | O95: 32.54012518 | P95: 27.49063288 | Q95: 0 | R95: 0 | S95: 0 | T95: 0 | U95: 0
E97: =InpActive!E$91 -> Wastewater network capital expenditure grants and contributions (price control) | F97: =InpActive!F$91 -> 0 | G97: =InpActive!G$91 -> £m | H97: =InpActive!H$91 -> 86.32818433 | I97: =InpActive!I$91 -> 0 | J97: =InpActive!J$91 -> 0 | K97: =InpActive!K$91 -> 0 | L97: =InpActive!L$91 -> 18.77229775 | M97: =InpActive!M$91 -> 18.43663035 | N97: =InpActive!N$91 -> 16.31570573 | O97: =InpActive!O$91 -> 16.64677283 | P97: =InpActive!P$91 -> 16.15677768 | Q97: =InpActive!Q$91 -> 0 | R97: =InpActive!R$91 -> 0 | S97: =InpActive!S$91 -> 0 | T97: =InpActive!T$91 -> 0 | U97: =InpActive!U$91 -> 0
E98: =InpActive!E$93 -> Wastewater network capital expenditure grants and contributions (non-price control) | F98: =InpActive!F$93 -> 0 | G98: =InpActive!G$93 -> £m | H98: =InpActive!H$93 -> 98.74303855 | I98: =InpActive!I$93 -> 0 | J98: =InpActive!J$93 -> 0 | K98: =InpActive!K$93 -> 0 | L98: =InpActive!L$93 -> 29.06725994 | M98: =InpActive!M$93 -> 26.29137878 | N98: =InpActive!N$93 -> 18.34507189 | O98: =InpActive!O$93 -> 14.80474883 | P98: =InpActive!P$93 -> 10.23457911 | Q98: =InpActive!Q$93 -> 0 | R98: =InpActive!R$93 -> 0 | S98: =InpActive!S$93 -> 0 | T98: =InpActive!T$93 -> 0 | U98: =InpActive!U$93 -> 0
E99: =InpActive!E$90 -> Wastewater network operating expenditure grants and contributions (price control) | F99: =InpActive!F$90 -> 0 | G99: =InpActive!G$90 -> £m | H99: =InpActive!H$90 -> 1.999767964 | I99: =InpActive!I$90 -> 0 | J99: =InpActive!J$90 -> 0 | K99: =InpActive!K$90 -> 0 | L99: =InpActive!L$90 -> 0.4057306099 | M99: =InpActive!M$90 -> 0.4183082588 | N99: =InpActive!N$90 -> 0.3880924366 | O99: =InpActive!O$90 -> 0.3918972644 | P99: =InpActive!P$90 -> 0.3957393945 | Q99: =InpActive!Q$90 -> 0 | R99: =InpActive!R$90 -> 0 | S99: =InpActive!S$90 -> 0 | T99: =InpActive!T$90 -> 0 | U99: =InpActive!U$90 -> 0
E100: =InpActive!E$92 -> Wastewater network operating expenditure grants and contributions (non-price control) | F100: =InpActive!F$92 -> 0 | G100: =InpActive!G$92 -> £m | H100: =InpActive!H$92 -> 3.555143047 | I100: =InpActive!I$92 -> 0 | J100: =InpActive!J$92 -> 0 | K100: =InpActive!K$92 -> 0 | L100: =InpActive!L$92 -> 0.721298862 | M100: =InpActive!M$92 -> 0.7436591267 | N100: =InpActive!N$92 -> 0.6899421095 | O100: =InpActive!O$92 -> 0.6967062479 | P100: =InpActive!P$92 -> 0.7035367013 | Q100: =InpActive!Q$92 -> 0 | R100: =InpActive!R$92 -> 0 | S100: =InpActive!S$92 -> 0 | T100: =InpActive!T$92 -> 0 | U100: =InpActive!U$92 -> 0
E101: G&C from WWn5 | G101: £m | H101: =SUM(J101:U101) -> 190.6261339 | J101: =SUM(J97:J100) -> 0 | K101: =SUM(K97:K100) -> 0 | L101: 48.96658716 | M101: 45.88997652 | N101: 35.73881216 | O101: 32.54012518 | P101: 27.49063288 | Q101: 0 | R101: 0 | S101: 0 | T101: 0 | U101: 0
E103: =E95 -> G&C from App28 | F103: =F95 -> 0 | G103: £m | H103: 190.6261339 | I103: 0 | J103: 0 | K103: 0 | L103: 48.96658716 | M103: 45.88997652 | N103: 35.73881216 | O103: 32.54012518 | P103: 27.49063288 | Q103: 0 | R103: 0 | S103: 0 | T103: 0 | U103: 0
E104: =E101 -> G&C from WWn5 | F104: =F101 -> 0 | G104: £m | H104: 190.6261339 | I104: 0 | J104: 0 | K104: 0 | L104: 48.96658716 | M104: 45.88997652 | N104: 35.73881216 | O104: 32.54012518 | P104: 27.49063288 | Q104: 0 | R104: 0 | S104: 0 | T104: 0 | U104: 0
E105: Check company data table entries for Grants & Contributions - wastewater | F105: =IF( SUM(L105:P105) > 0, 1, 0) -> 0 | G105: check | J105: =IF( ABS(J103 - J104) > CHK_TOL, 1, 0) -> 0 | K105: 0 | L105: 0 | M105: 0 | N105: 0 | O105: 0 | P105: 0 | Q105: 0 | R105: 0 | S105: 0 | T105: 0 | U105: 0
A107: OFWAT view of Grants & Contributions apportioned between pice control and non-price control
C109: Capex
E110: =E$61 -> Ofwat view of G&C for new developments capex - wastewater - 2017/18 FYA CPIH deflated | F110: =F$61 -> 0 | G110: £m | H110: 86.32951209 | I110: 0 | J110: 0 | K110: 0 | L110: 22.55204811 | M110: 22.71699592 | N110: 13.37864674 | O110: 13.57257001 | P110: 14.10925129 | Q110: 0 | R110: 0 | S110: 0 | T110: 0 | U110: 0
E111: =E$75 -> G&C apportionment capex - price control - 2017/18 FYA CPIH deflated | F111: =F$75 -> 0 | G111: % | H111: 0 | I111: 0 | J111: 0 | K111: 0 | L111: 0.3924011562 | M111: 0.4121942986 | N111: 0.4707253226 | O111: 0.5292835433 | P111: 0.6121995853 | Q111: 0 | R111: 0 | S111: 0 | T111: 0 | U111: 0
E112: Ofwat view of G&C for capex - wastewater - price control - 2017/18 FYA CPIH deflated | G112: £m | H112: =SUM(J112:U112) -> 40.3323495 | J112: =J110 * J111 -> 0 | K112: =K110 * K111 -> 0 | L112: =L110 * L111 -> 8.849449754 | M112: 9.3638162 | N112: 6.297667804 | O112: 7.183737949 | P112: 8.637677791 | Q112: 0 | R112: 0 | S112: 0 | T112: 0 | U112: 0
E114: =E112 -> Ofwat view of G&C for capex - wastewater - price control - 2017/18 FYA CPIH deflated | F114: =F112 -> 0 | G114: £m | H114: 40.3323495 | I114: 0 | J114: 0 | K114: 0 | L114: 8.849449754 | M114: 9.3638162 | N114: 6.297667804 | O114: 7.183737949 | P114: 8.637677791 | Q114: 0 | R114: 0 | S114: 0 | T114: 0 | U114: 0
E115: =InpActive!E$136 -> Ofwat view of G&C for capex - wastewater - price control (override) | F115: =InpActive!F$136 -> 0 | G115: =InpActive!G$136 -> £m | H115: =InpActive!H$136 -> 0 | I115: =InpActive!I$136 -> 0 | J115: =InpActive!J$136 -> 0 | K115: =InpActive!K$136 -> 0 | L115: =InpActive!L$136 -> 0 | M115: =InpActive!M$136 -> 0 | N115: =InpActive!N$136 -> 0 | O115: =InpActive!O$136 -> 0 | P115: =InpActive!P$136 -> 0 | Q115: =InpActive!Q$136 -> 0 | R115: =InpActive!R$136 -> 0 | S115: =InpActive!S$136 -> 0 | T115: =InpActive!T$136 -> 0 | U115: =InpActive!U$136 -> 0
E116: Ofwat view of G&C for capex - wastewater - price control (post-override) | G116: £m | H116: =SUM(J116:U116) -> 40.3323495 | J116: =IF(J115 = 0, J114, J115) -> 0 | K116: =IF(K115 = 0, K114, K115) -> 0 | L116: 8.849449754 | M116: 9.3638162 | N116: 6.297667804 | O116: 7.183737949 | P116: 8.637677791 | Q116: 0 | R116: 0 | S116: 0 | T116: 0 | U116: 0
E118: =E$61 -> Ofwat view of G&C for new developments capex - wastewater - 2017/18 FYA CPIH deflated | F118: =F$61 -> 0 | G118: £m | H118: 86.32951209 | I118: 0 | J118: 0 | K118: 0 | L118: 22.55204811 | M118: 22.71699592 | N118: 13.37864674 | O118: 13.57257001 | P118: 14.10925129 | Q118: 0 | R118: 0 | S118: 0 | T118: 0 | U118: 0
E119: =E$79 -> G&C apportionment capex - non price control - 2017/18 FYA CPIH deflated | F119: =F$79 -> 0 | G119: % | H119: 0 | I119: 0 | J119: 0 | K119: 0 | L119: 0.6075988438 | M119: 0.5878057014 | N119: 0.5292746774 | O119: 0.4707164567 | P119: 0.3878004147 | Q119: 0 | R119: 0 | S119: 0 | T119: 0 | U119: 0
E120: Ofwat view of G&C for capex - wastewater - non price control - 2017/18 FYA CPIH deflated | F120: =F$79 -> 0 | G120: £m | H120: =SUM(J120:U120) -> 45.99716259 | J120: =J118 * J119 -> 0 | K120: =K118 * K119 -> 0 | L120: =L118 * L119 -> 13.70259836 | M120: 13.35317972 | N120: 7.080978938 | O120: 6.388832065 | P120: 5.471573504 | Q120: 0 | R120: 0 | S120: 0 | T120: 0 | U120: 0
E122: =E120 -> Ofwat view of G&C for capex - wastewater - non price control - 2017/18 FYA CPIH deflated | F122: =F120 -> 0 | G122: £m | H122: 45.99716259 | I122: 0 | J122: 0 | K122: 0 | L122: 13.70259836 | M122: 13.35317972 | N122: 7.080978938 | O122: 6.388832065 | P122: 5.471573504 | Q122: 0 | R122: 0 | S122: 0 | T122: 0 | U122: 0
E123: =InpActive!E$137 -> Ofwat view of G&C for capex - wastewater - non price control (override) | F123: =InpActive!F$137 -> 0 | G123: =InpActive!G$137 -> £m | H123: =InpActive!H$137 -> 0 | I123: =InpActive!I$137 -> 0 | J123: =InpActive!J$137 -> 0 | K123: =InpActive!K$137 -> 0 | L123: =InpActive!L$137 -> 0 | M123: =InpActive!M$137 -> 0 | N123: =InpActive!N$137 -> 0 | O123: =InpActive!O$137 -> 0 | P123: =InpActive!P$137 -> 0 | Q123: =InpActive!Q$137 -> 0 | R123: =InpActive!R$137 -> 0 | S123: =InpActive!S$137 -> 0 | T123: =InpActive!T$137 -> 0 | U123: =InpActive!U$137 -> 0
E124: Ofwat view of G&C for capex - wastewater - non price control (post-override) | G124: £m | H124: =SUM(J124:U124) -> 45.99716259 | J124: =IF(J123 = 0, J122, J123) -> 0 | K124: =IF(K123 = 0, K122, K123) -> 0 | L124: 13.70259836 | M124: 13.35317972 | N124: 7.080978938 | O124: 6.388832065 | P124: 5.471573504 | Q124: 0 | R124: 0 | S124: 0 | T124: 0 | U124: 0
C126: Opex
E127: =E$67 -> Ofwat view of G&C for new developments opex - wastewater - 2017/18 FYA CPIH deflated | F127: =F$67 -> 0 | G127: £m | H127: 15.05028758 | I127: 0 | J127: 0 | K127: 0 | L127: 2.897782143 | M127: 2.876011359 | N127: 2.718779049 | O127: 3.1108551 | P127: 3.446859928 | Q127: 0 | R127: 0 | S127: 0 | T127: 0 | U127: 0
E128: =E$83 -> G&C apportionment opex - price control - 2017/18 FYA CPIH deflated | F128: =F$83 -> 0 | G128: % | H128: 0 | I128: 0 | J128: 0 | K128: 0 | L128: 0.36 | M128: 0.36 | N128: 0.36 | O128: 0.36 | P128: 0.36 | Q128: 0 | R128: 0 | S128: 0 | T128: 0 | U128: 0
E129: Ofwat view of G&C for opex - wastewater - price control - 2017/18 FYA CPIH deflated | G129: £m | H129: =SUM(J129:U129) -> 5.418103528 | J129: =J127 * J128 -> 0 | K129: =K127 * K128 -> 0 | L129: =L127 * L128 -> 1.043201572 | M129: 1.035364089 | N129: 0.9787604575 | O129: 1.119907836 | P129: 1.240869574 | Q129: 0 | R129: 0 | S129: 0 | T129: 0 | U129: 0
E131: =E129 -> Ofwat view of G&C for opex - wastewater - price control - 2017/18 FYA CPIH deflated | F131: =F129 -> 0 | G131: £m | H131: 5.418103528 | I131: 0 | J131: 0 | K131: 0 | L131: 1.043201572 | M131: 1.035364089 | N131: 0.9787604575 | O131: 1.119907836 | P131: 1.240869574 | Q131: 0 | R131: 0 | S131: 0 | T131: 0 | U131: 0
E132: =InpActive!E$138 -> Ofwat view of G&C for opex - wastewater - price control (override) | F132: =InpActive!F$138 -> 0 | G132: =InpActive!G$138 -> £m | H132: =InpActive!H$138 -> 0 | I132: =InpActive!I$138 -> 0 | J132: =InpActive!J$138 -> 0 | K132: =InpActive!K$138 -> 0 | L132: =InpActive!L$138 -> 0 | M132: =InpActive!M$138 -> 0 | N132: =InpActive!N$138 -> 0 | O132: =InpActive!O$138 -> 0 | P132: =InpActive!P$138 -> 0 | Q132: =InpActive!Q$138 -> 0 | R132: =InpActive!R$138 -> 0 | S132: =InpActive!S$138 -> 0 | T132: =InpActive!T$138 -> 0 | U132: =InpActive!U$138 -> 0
E133: Ofwat view of G&C for opex - wastewater - price control (post-override) | G133: £m | H133: =SUM(J133:U133) -> 5.418103528 | J133: =IF(J132 = 0, J131, J132) -> 0 | K133: =IF(K132 = 0, K131, K132) -> 0 | L133: 1.043201572 | M133: 1.035364089 | N133: 0.9787604575 | O133: 1.119907836 | P133: 1.240869574 | Q133: 0 | R133: 0 | S133: 0 | T133: 0 | U133: 0
E135: =E$67 -> Ofwat view of G&C for new developments opex - wastewater - 2017/18 FYA CPIH deflated | F135: =F$67 -> 0 | G135: £m | H135: 15.05028758 | I135: 0 | J135: 0 | K135: 0 | L135: 2.897782143 | M135: 2.876011359 | N135: 2.718779049 | O135: 3.1108551 | P135: 3.446859928 | Q135: 0 | R135: 0 | S135: 0 | T135: 0 | U135: 0
E136: =E$87 -> G&C apportionment opex - non price control - 2017/18 FYA CPIH deflated | F136: =F$87 -> 0 | G136: % | H136: 0 | I136: 0 | J136: 0 | K136: 0 | L136: 0.64 | M136: 0.64 | N136: 0.64 | O136: 0.64 | P136: 0.64 | Q136: 0 | R136: 0 | S136: 0 | T136: 0 | U136: 0
E137: Ofwat view of G&C for opex - wastewater - non price control - 2017/18 FYA CPIH deflated | G137: £m | H137: =SUM(J137:U137) -> 9.63218405 | J137: =J135 * J136 -> 0 | K137: =K135 * K136 -> 0 | L137: =L135 * L136 -> 1.854580572 | M137: 1.84064727 | N137: 1.740018591 | O137: 1.990947264 | P137: 2.205990354 | Q137: 0 | R137: 0 | S137: 0 | T137: 0 | U137: 0
E139: =E137 -> Ofwat view of G&C for opex - wastewater - non price control - 2017/18 FYA CPIH deflated | F139: =F137 -> 0 | G139: £m | H139: 9.63218405 | I139: 0 | J139: 0 | K139: 0 | L139: 1.854580572 | M139: 1.84064727 | N139: 1.740018591 | O139: 1.990947264 | P139: 2.205990354 | Q139: 0 | R139: 0 | S139: 0 | T139: 0 | U139: 0
E140: =InpActive!E$139 -> Ofwat view of G&C for opex - wastewater - non price control (override) | F140: =InpActive!F$139 -> 0 | G140: =InpActive!G$139 -> £m | H140: =InpActive!H$139 -> 0 | I140: =InpActive!I$139 -> 0 | J140: =InpActive!J$139 -> 0 | K140: =InpActive!K$139 -> 0 | L140: =InpActive!L$139 -> 0 | M140: =InpActive!M$139 -> 0 | N140: =InpActive!N$139 -> 0 | O140: =InpActive!O$139 -> 0 | P140: =InpActive!P$139 -> 0 | Q140: =InpActive!Q$139 -> 0 | R140: =InpActive!R$139 -> 0 | S140: =InpActive!S$139 -> 0 | T140: =InpActive!T$139 -> 0 | U140: =InpActive!U$139 -> 0
E141: Ofwat view of G&C for opex - wastewater - non price control (post-override) | G141: £m | H141: =SUM(J141:U141) -> 9.63218405 | J141: =IF(J140 = 0, J139, J140) -> 0 | K141: =IF(K140 = 0, K139, K140) -> 0 | L141: 1.854580572 | M141: 1.84064727 | N141: 1.740018591 | O141: 1.990947264 | P141: 2.205990354 | Q141: 0 | R141: 0 | S141: 0 | T141: 0 | U141: 0
A144: End of sheet

Sheet Outputs >>

Sheet G&C outputs
A1: =RIGHT(CELL("filename", $A$1), LEN(CELL("filename", $A$1)) - SEARCH("]", CELL("filename", $A$1))) -> G&C outputs | F1: =IF(InpActive!$F$163 + InpOverride!$F$77 > 0, "Overrides", "No Overrides") -> No Overrides
E2: =Time!E2 -> Model period ending | F2: =Check!$F$11 -> 0 | G2: Checks | J2: =Time!J$25 -> 2019-03-31 | K2: =Time!K$25 -> 2020-03-31 | L2: =Time!L$25 -> 2021-03-31 | M2: =Time!M$25 -> 2022-03-31 | N2: =Time!N$25 -> 2023-03-31 | O2: =Time!O$25 -> 2024-03-31 | P2: =Time!P$25 -> 2025-03-31 | Q2: =Time!Q$25 -> 2026-03-31 | R2: =Time!R$25 -> 2027-03-31 | S2: =Time!S$25 -> 2028-03-31 | T2: =Time!T$25 -> 2029-03-31 | U2: =Time!U$25 -> 2030-03-31
E3: =Time!E3 -> Timeline label | F3: =Check!$F$28 -> 44 | G3: Track chgs | J3: =Time!J$104 -> Pre-Fcst | K3: =Time!K$104 -> Pre-Fcst | L3: =Time!L$104 -> Forecast | M3: =Time!M$104 -> Forecast | N3: =Time!N$104 -> Forecast | O3: =Time!O$104 -> Forecast | P3: =Time!P$104 -> Forecast | Q3: =Time!Q$104 -> Post-Fcst | R3: =Time!R$104 -> Post-Fcst | S3: =Time!S$104 -> Post-Fcst | T3: =Time!T$104 -> Post-Fcst | U3: =Time!U$104 -> Post-Fcst
E4: =Time!E4 -> Financial year ending | J4: =Time!J$127 -> 2019 | K4: =Time!K$127 -> 2020 | L4: =Time!L$127 -> 2021 | M4: =Time!M$127 -> 2022 | N4: =Time!N$127 -> 2023 | O4: =Time!O$127 -> 2024 | P4: =Time!P$127 -> 2025 | Q4: =Time!Q$127 -> 2026 | R4: =Time!R$127 -> 2027 | S4: =Time!S$127 -> 2028 | T4: =Time!T$127 -> 2029 | U4: =Time!U$127 -> 2030
E5: =Time!E5 -> Model column counter | F5: Constant | G5: Unit | H5: Total | J5: =Time!J$10 -> 1 | K5: =Time!K$10 -> 2 | L5: =Time!L$10 -> 3 | M5: =Time!M$10 -> 4 | N5: =Time!N$10 -> 5 | O5: =Time!O$10 -> 6 | P5: =Time!P$10 -> 7 | Q5: =Time!Q$10 -> 8 | R5: =Time!R$10 -> 9 | S5: =Time!S$10 -> 10 | T5: =Time!T$10 -> 11 | U5: =Time!U$10 -> 12
A7: GRANTS & CONTRIBUTIONS FEEDER OUTPUTS
C9: Water Network
E10: ='G&C Water'!E$208 -> Ofwat view of G&C for capex - water network - price control (post-override) | F10: ='G&C Water'!F$208 -> 0 | G10: ='G&C Water'!G$208 -> £m | H10: ='G&C Water'!H$208 -> 108.390505 | I10: ='G&C Water'!I$208 -> 0 | J10: ='G&C Water'!J$208 -> 0 | K10: ='G&C Water'!K$208 -> 0 | L10: ='G&C Water'!L$208 -> 23.20972302 | M10: ='G&C Water'!M$208 -> 22.27443596 | N10: ='G&C Water'!N$208 -> 21.12962222 | O10: ='G&C Water'!O$208 -> 20.92017559 | P10: ='G&C Water'!P$208 -> 20.85654821 | Q10: ='G&C Water'!Q$208 -> 0 | R10: ='G&C Water'!R$208 -> 0 | S10: ='G&C Water'!S$208 -> 0 | T10: ='G&C Water'!T$208 -> 0 | U10: ='G&C Water'!U$208 -> 0
D11: plus | E11: =InpActive!E$148 -> Ofwat adjustment to capex - water network - price control | F11: =InpActive!F$148 -> 0 | G11: =InpActive!G$148 -> £m | H11: =InpActive!H$148 -> 0 | I11: =InpActive!I$148 -> 0 | J11: =InpActive!J$148 -> 0 | K11: =InpActive!K$148 -> 0 | L11: =InpActive!L$148 -> 0 | M11: =InpActive!M$148 -> 0 | N11: =InpActive!N$148 -> 0 | O11: =InpActive!O$148 -> 0 | P11: =InpActive!P$148 -> 0 | Q11: =InpActive!Q$148 -> 0 | R11: =InpActive!R$148 -> 0 | S11: =InpActive!S$148 -> 0 | T11: =InpActive!T$148 -> 0 | U11: =InpActive!U$148 -> 0
E12: WN - Grants and contributions - capital expenditure - price control - real | G12: £m | H12: =SUM(J12:U12) -> 108.390505 | J12: =J10 + J11 -> 0 | K12: =K10 + K11 -> 0 | L12: 23.20972302 | M12: 22.27443596 | N12: 21.12962222 | O12: 20.92017559 | P12: 20.85654821 | Q12: 0 | R12: 0 | S12: 0 | T12: 0 | U12: 0
E14: ='G&C Water'!E$216 -> Ofwat view of G&C for capex - water network - non price control (post-override) | F14: ='G&C Water'!F$216 -> 0 | G14: ='G&C Water'!G$216 -> £m | H14: ='G&C Water'!H$216 -> 42.65844094 | I14: ='G&C Water'!I$216 -> 0 | J14: ='G&C Water'!J$216 -> 0 | K14: ='G&C Water'!K$216 -> 0 | L14: ='G&C Water'!L$216 -> 12.22802399 | M14: ='G&C Water'!M$216 -> 11.34180859 | N14: ='G&C Water'!N$216 -> 7.667368082 | O14: ='G&C Water'!O$216 -> 6.875807744 | P14: ='G&C Water'!P$216 -> 4.545432539 | Q14: ='G&C Water'!Q$216 -> 0 | R14: ='G&C Water'!R$216 -> 0 | S14: ='G&C Water'!S$216 -> 0 | T14: ='G&C Water'!T$216 -> 0 | U14: ='G&C Water'!U$216 -> 0
D15: plus | E15: =InpActive!E$149 -> Ofwat adjustment to capex - water network - non price control | F15: =InpActive!F$149 -> 0 | G15: =InpActive!G$149 -> £m | H15: =InpActive!H$149 -> 0 | I15: =InpActive!I$149 -> 0 | J15: =InpActive!J$149 -> 0 | K15: =InpActive!K$149 -> 0 | L15: =InpActive!L$149 -> 0 | M15: =InpActive!M$149 -> 0 | N15: =InpActive!N$149 -> 0 | O15: =InpActive!O$149 -> 0 | P15: =InpActive!P$149 -> 0 | Q15: =InpActive!Q$149 -> 0 | R15: =InpActive!R$149 -> 0 | S15: =InpActive!S$149 -> 0 | T15: =InpActive!T$149 -> 0 | U15: =InpActive!U$149 -> 0
E16: WN - Grants and contributions - capital expenditure - non price control - real | G16: £m | H16: =SUM(J16:U16) -> 42.65844094 | J16: =J14 + J15 -> 0 | K16: =K14 + K15 -> 0 | L16: =L14 + L15 -> 12.22802399 | M16: =M14 + M15 -> 11.34180859 | N16: =N14 + N15 -> 7.667368082 | O16: =O14 + O15 -> 6.875807744 | P16: =P14 + P15 -> 4.545432539 | Q16: =Q14 + Q15 -> 0 | R16: =R14 + R15 -> 0 | S16: =S14 + S15 -> 0 | T16: =T14 + T15 -> 0 | U16: =U14 + U15 -> 0
E18: ='G&C Water'!E$241 -> Ofwat view of G&C for opex - water network - price control (post-override) | F18: ='G&C Water'!F$241 -> 0 | G18: ='G&C Water'!G$241 -> £m | H18: ='G&C Water'!H$241 -> 17.61388599 | I18: ='G&C Water'!I$241 -> 0 | J18: ='G&C Water'!J$241 -> 0 | K18: ='G&C Water'!K$241 -> 0 | L18: ='G&C Water'!L$241 -> 3.710914711 | M18: ='G&C Water'!M$241 -> 3.602736617 | N18: ='G&C Water'!N$241 -> 3.436441155 | O18: ='G&C Water'!O$241 -> 3.408290418 | P18: ='G&C Water'!P$241 -> 3.455503088 | Q18: ='G&C Water'!Q$241 -> 0 | R18: ='G&C Water'!R$241 -> 0 | S18: ='G&C Water'!S$241 -> 0 | T18: ='G&C Water'!T$241 -> 0 | U18: ='G&C Water'!U$241 -> 0
D19: plus | E19: =InpActive!E$150 -> Ofwat adjustment to opex - water network - price control | F19: =InpActive!F$150 -> 0 | G19: =InpActive!G$150 -> £m | H19: =InpActive!H$150 -> 0 | I19: =InpActive!I$150 -> 0 | J19: =InpActive!J$150 -> 0 | K19: =InpActive!K$150 -> 0 | L19: =InpActive!L$150 -> 0 | M19: =InpActive!M$150 -> 0 | N19: =InpActive!N$150 -> 0 | O19: =InpActive!O$150 -> 0 | P19: =InpActive!P$150 -> 0 | Q19: =InpActive!Q$150 -> 0 | R19: =InpActive!R$150 -> 0 | S19: =InpActive!S$150 -> 0 | T19: =InpActive!T$150 -> 0 | U19: =InpActive!U$150 -> 0
E20: WN - Grants and contributions - operational expenditure - price control - real | G20: £m | H20: =SUM(J20:U20) -> 17.61388599 | J20: =J18 + J19 -> 0 | K20: =K18 + K19 -> 0 | L20: =L18 + L19 -> 3.710914711 | M20: =M18 + M19 -> 3.602736617 | N20: =N18 + N19 -> 3.436441155 | O20: =O18 + O19 -> 3.408290418 | P20: =P18 + P19 -> 3.455503088 | Q20: =Q18 + Q19 -> 0 | R20: =R18 + R19 -> 0 | S20: =S18 + S19 -> 0 | T20: =T18 + T19 -> 0 | U20: =U18 + U19 -> 0
E22: ='G&C Water'!E$249 -> Ofwat view of G&C for opex - water network - non price control (post-override) | F22: ='G&C Water'!F$249 -> 0 | G22: ='G&C Water'!G$249 -> £m | H22: ='G&C Water'!H$249 -> 0 | I22: ='G&C Water'!I$249 -> 0 | J22: ='G&C Water'!J$249 -> 0 | K22: ='G&C Water'!K$249 -> 0 | L22: ='G&C Water'!L$249 -> 0 | M22: ='G&C Water'!M$249 -> 0 | N22: ='G&C Water'!N$249 -> 0 | O22: ='G&C Water'!O$249 -> 0 | P22: ='G&C Water'!P$249 -> 0 | Q22: ='G&C Water'!Q$249 -> 0 | R22: ='G&C Water'!R$249 -> 0 | S22: ='G&C Water'!S$249 -> 0 | T22: ='G&C Water'!T$249 -> 0 | U22: ='G&C Water'!U$249 -> 0
D23: plus | E23: =InpActive!E$151 -> Ofwat adjustment to opex - water network - non price control | F23: =InpActive!F$151 -> 0 | G23: =InpActive!G$151 -> £m | H23: =InpActive!H$151 -> 0 | I23: =InpActive!I$151 -> 0 | J23: =InpActive!J$151 -> 0 | K23: =InpActive!K$151 -> 0 | L23: =InpActive!L$151 -> 0 | M23: =InpActive!M$151 -> 0 | N23: =InpActive!N$151 -> 0 | O23: =InpActive!O$151 -> 0 | P23: =InpActive!P$151 -> 0 | Q23: =InpActive!Q$151 -> 0 | R23: =InpActive!R$151 -> 0 | S23: =InpActive!S$151 -> 0 | T23: =InpActive!T$151 -> 0 | U23: =InpActive!U$151 -> 0
E24: WN - Grants and contributions - operational expenditure - non price control - real | G24: £m | H24: =SUM(J24:U24) -> 0 | J24: =J22 + J23 -> 0 | K24: =K22 + K23 -> 0 | L24: =L22 + L23 -> 0 | M24: =M22 + M23 -> 0 | N24: =N22 + N23 -> 0 | O24: =O22 + O23 -> 0 | P24: =P22 + P23 -> 0 | Q24: =Q22 + Q23 -> 0 | R24: =R22 + R23 -> 0 | S24: =S22 + S23 -> 0 | T24: =T22 + T23 -> 0 | U24: =U22 + U23 -> 0
C26: Water Resources
E27: ='G&C Water'!E$224 -> Ofwat view of G&C for capex - water resources - price control (post-override) | F27: ='G&C Water'!F$224 -> 0 | G27: ='G&C Water'!G$224 -> £m | H27: ='G&C Water'!H$224 -> 0 | I27: ='G&C Water'!I$224 -> 0 | J27: ='G&C Water'!J$224 -> 0 | K27: ='G&C Water'!K$224 -> 0 | L27: ='G&C Water'!L$224 -> 0 | M27: ='G&C Water'!M$224 -> 0 | N27: ='G&C Water'!N$224 -> 0 | O27: ='G&C Water'!O$224 -> 0 | P27: ='G&C Water'!P$224 -> 0 | Q27: ='G&C Water'!Q$224 -> 0 | R27: ='G&C Water'!R$224 -> 0 | S27: ='G&C Water'!S$224 -> 0 | T27: ='G&C Water'!T$224 -> 0 | U27: ='G&C Water'!U$224 -> 0
D28: plus | E28: =InpActive!E$153 -> Ofwat adjustment to capex - water resources - price control | F28: =InpActive!F$153 -> 0 | G28: =InpActive!G$153 -> £m | H28: =InpActive!H$153 -> 0 | I28: =InpActive!I$153 -> 0 | J28: =InpActive!J$153 -> 0 | K28: =InpActive!K$153 -> 0 | L28: =InpActive!L$153 -> 0 | M28: =InpActive!M$153 -> 0 | N28: =InpActive!N$153 -> 0 | O28: =InpActive!O$153 -> 0 | P28: =InpActive!P$153 -> 0 | Q28: =InpActive!Q$153 -> 0 | R28: =InpActive!R$153 -> 0 | S28: =InpActive!S$153 -> 0 | T28: =InpActive!T$153 -> 0 | U28: =InpActive!U$153 -> 0
E29: WR - Grants and contributions - capital expenditure - price control - real | G29: £m | H29: =SUM(J29:U29) -> 0 | J29: =J27 + J28 -> 0 | K29: =K27 + K28 -> 0 | L29: =L27 + L28 -> 0 | M29: =M27 + M28 -> 0 | N29: =N27 + N28 -> 0 | O29: =O27 + O28 -> 0 | P29: =P27 + P28 -> 0 | Q29: =Q27 + Q28 -> 0 | R29: =R27 + R28 -> 0 | S29: =S27 + S28 -> 0 | T29: =T27 + T28 -> 0 | U29: =U27 + U28 -> 0
E31: ='G&C Water'!E$232 -> Ofwat view of G&C for capex - water resources - non price control (post-override) | F31: ='G&C Water'!F$232 -> 0 | G31: ='G&C Water'!G$232 -> £m | H31: ='G&C Water'!H$232 -> 0 | I31: ='G&C Water'!I$232 -> 0 | J31: ='G&C Water'!J$232 -> 0 | K31: ='G&C Water'!K$232 -> 0 | L31: ='G&C Water'!L$232 -> 0 | M31: ='G&C Water'!M$232 -> 0 | N31: ='G&C Water'!N$232 -> 0 | O31: ='G&C Water'!O$232 -> 0 | P31: ='G&C Water'!P$232 -> 0 | Q31: ='G&C Water'!Q$232 -> 0 | R31: ='G&C Water'!R$232 -> 0 | S31: ='G&C Water'!S$232 -> 0 | T31: ='G&C Water'!T$232 -> 0 | U31: ='G&C Water'!U$232 -> 0
D32: plus | E32: =InpActive!E$154 -> Ofwat adjustment to capex - water resources - non price control | F32: =InpActive!F$154 -> 0 | G32: =InpActive!G$154 -> £m | H32: =InpActive!H$154 -> 0 | I32: =InpActive!I$154 -> 0 | J32: =InpActive!J$154 -> 0 | K32: =InpActive!K$154 -> 0 | L32: =InpActive!L$154 -> 0 | M32: =InpActive!M$154 -> 0 | N32: =InpActive!N$154 -> 0 | O32: =InpActive!O$154 -> 0 | P32: =InpActive!P$154 -> 0 | Q32: =InpActive!Q$154 -> 0 | R32: =InpActive!R$154 -> 0 | S32: =InpActive!S$154 -> 0 | T32: =InpActive!T$154 -> 0 | U32: =InpActive!U$154 -> 0
E33: WR - Grants and contributions - capital expenditure - non price control - real | G33: £m | H33: =SUM(J33:U33) -> 0 | J33: =J31 + J32 -> 0 | K33: =K31 + K32 -> 0 | L33: =L31 + L32 -> 0 | M33: =M31 + M32 -> 0 | N33: =N31 + N32 -> 0 | O33: =O31 + O32 -> 0 | P33: =P31 + P32 -> 0 | Q33: =Q31 + Q32 -> 0 | R33: =R31 + R32 -> 0 | S33: =S31 + S32 -> 0 | T33: =T31 + T32 -> 0 | U33: =U31 + U32 -> 0
E35: ='G&C Water'!E$257 -> Ofwat view of G&C for opex - water resources - price control (post-override) | F35: ='G&C Water'!F$257 -> 0 | G35: ='G&C Water'!G$257 -> £m | H35: ='G&C Water'!H$257 -> 0 | I35: ='G&C Water'!I$257 -> 0 | J35: ='G&C Water'!J$257 -> 0 | K35: ='G&C Water'!K$257 -> 0 | L35: ='G&C Water'!L$257 -> 0 | M35: ='G&C Water'!M$257 -> 0 | N35: ='G&C Water'!N$257 -> 0 | O35: ='G&C Water'!O$257 -> 0 | P35: ='G&C Water'!P$257 -> 0 | Q35: ='G&C Water'!Q$257 -> 0 | R35: ='G&C Water'!R$257 -> 0 | S35: ='G&C Water'!S$257 -> 0 | T35: ='G&C Water'!T$257 -> 0 | U35: ='G&C Water'!U$257 -> 0
D36: plus | E36: =InpActive!E$155 -> Ofwat adjustment to opex - water resources - price control | F36: =InpActive!F$155 -> 0 | G36: =InpActive!G$155 -> £m | H36: =InpActive!H$155 -> 0 | I36: =InpActive!I$155 -> 0 | J36: =InpActive!J$155 -> 0 | K36: =InpActive!K$155 -> 0 | L36: =InpActive!L$155 -> 0 | M36: =InpActive!M$155 -> 0 | N36: =InpActive!N$155 -> 0 | O36: =InpActive!O$155 -> 0 | P36: =InpActive!P$155 -> 0 | Q36: =InpActive!Q$155 -> 0 | R36: =InpActive!R$155 -> 0 | S36: =InpActive!S$155 -> 0 | T36: =InpActive!T$155 -> 0 | U36: =InpActive!U$155 -> 0
E37: WR - Grants and contributions - operational expenditure - price control - real | G37: £m | H37: =SUM(J37:U37) -> 0 | J37: =J35 + J36 -> 0 | K37: =K35 + K36 -> 0 | L37: =L35 + L36 -> 0 | M37: =M35 + M36 -> 0 | N37: =N35 + N36 -> 0 | O37: =O35 + O36 -> 0 | P37: =P35 + P36 -> 0 | Q37: =Q35 + Q36 -> 0 | R37: =R35 + R36 -> 0 | S37: =S35 + S36 -> 0 | T37: =T35 + T36 -> 0 | U37: =U35 + U36 -> 0
E39: ='G&C Water'!E$265 -> Ofwat view of G&C for opex - water resources - non price control (post-override) | F39: ='G&C Water'!F$265 -> 0 | G39: ='G&C Water'!G$265 -> £m | H39: ='G&C Water'!H$265 -> 0 | I39: ='G&C Water'!I$265 -> 0 | J39: ='G&C Water'!J$265 -> 0 | K39: ='G&C Water'!K$265 -> 0 | L39: ='G&C Water'!L$265 -> 0 | M39: ='G&C Water'!M$265 -> 0 | N39: ='G&C Water'!N$265 -> 0 | O39: ='G&C Water'!O$265 -> 0 | P39: ='G&C Water'!P$265 -> 0 | Q39: ='G&C Water'!Q$265 -> 0 | R39: ='G&C Water'!R$265 -> 0 | S39: ='G&C Water'!S$265 -> 0 | T39: ='G&C Water'!T$265 -> 0 | U39: ='G&C Water'!U$265 -> 0
D40: plus | E40: =InpActive!E$156 -> Ofwat adjustment to opex - water resources - non price control | F40: =InpActive!F$156 -> 0 | G40: =InpActive!G$156 -> £m | H40: =InpActive!H$156 -> 0 | I40: =InpActive!I$156 -> 0 | J40: =InpActive!J$156 -> 0 | K40: =InpActive!K$156 -> 0 | L40: =InpActive!L$156 -> 0 | M40: =InpActive!M$156 -> 0 | N40: =InpActive!N$156 -> 0 | O40: =InpActive!O$156 -> 0 | P40: =InpActive!P$156 -> 0 | Q40: =InpActive!Q$156 -> 0 | R40: =InpActive!R$156 -> 0 | S40: =InpActive!S$156 -> 0 | T40: =InpActive!T$156 -> 0 | U40: =InpActive!U$156 -> 0
E41: WR - Grants and contributions - operational expenditure - non price control - real | G41: £m | H41: =SUM(J41:U41) -> 0 | J41: =J39 + J40 -> 0 | K41: =K39 + K40 -> 0 | L41: =L39 + L40 -> 0 | M41: =M39 + M40 -> 0 | N41: =N39 + N40 -> 0 | O41: =O39 + O40 -> 0 | P41: =P39 + P40 -> 0 | Q41: =Q39 + Q40 -> 0 | R41: =R39 + R40 -> 0 | S41: =S39 + S40 -> 0 | T41: =T39 + T40 -> 0 | U41: =U39 + U40 -> 0
C43: Wastewater
E44: ='G&C Wastewater'!E$116 -> Ofwat view of G&C for capex - wastewater - price control (post-override) | F44: ='G&C Wastewater'!F$116 -> 0 | G44: ='G&C Wastewater'!G$116 -> £m | H44: ='G&C Wastewater'!H$116 -> 40.3323495 | I44: ='G&C Wastewater'!I$116 -> 0 | J44: ='G&C Wastewater'!J$116 -> 0 | K44: ='G&C Wastewater'!K$116 -> 0 | L44: ='G&C Wastewater'!L$116 -> 8.849449754 | M44: ='G&C Wastewater'!M$116 -> 9.3638162 | N44: ='G&C Wastewater'!N$116 -> 6.297667804 | O44: ='G&C Wastewater'!O$116 -> 7.183737949 | P44: ='G&C Wastewater'!P$116 -> 8.637677791 | Q44: ='G&C Wastewater'!Q$116 -> 0 | R44: ='G&C Wastewater'!R$116 -> 0 | S44: ='G&C Wastewater'!S$116 -> 0 | T44: ='G&C Wastewater'!T$116 -> 0 | U44: ='G&C Wastewater'!U$116 -> 0
D45: plus | E45: =InpActive!E$158 -> Ofwat adjustment to capex - wastewater - price control | F45: =InpActive!F$158 -> 0 | G45: =InpActive!G$158 -> £m | H45: =InpActive!H$158 -> 0 | I45: =InpActive!I$158 -> 0 | J45: =InpActive!J$158 -> 0 | K45: =InpActive!K$158 -> 0 | L45: =InpActive!L$158 -> 0 | M45: =InpActive!M$158 -> 0 | N45: =InpActive!N$158 -> 0 | O45: =InpActive!O$158 -> 0 | P45: =InpActive!P$158 -> 0 | Q45: =InpActive!Q$158 -> 0 | R45: =InpActive!R$158 -> 0 | S45: =InpActive!S$158 -> 0 | T45: =InpActive!T$158 -> 0 | U45: =InpActive!U$158 -> 0
E46: WWN - Grants and contributions - capital expenditure - price control - real | G46: £m | H46: =SUM(J46:U46) -> 40.3323495 | J46: =J44 + J45 -> 0 | K46: =K44 + K45 -> 0 | L46: =L44 + L45 -> 8.849449754 | M46: =M44 + M45 -> 9.3638162 | N46: =N44 + N45 -> 6.297667804 | O46: =O44 + O45 -> 7.183737949 | P46: =P44 + P45 -> 8.637677791 | Q46: =Q44 + Q45 -> 0 | R46: =R44 + R45 -> 0 | S46: =S44 + S45 -> 0 | T46: =T44 + T45 -> 0 | U46: =U44 + U45 -> 0
E48: ='G&C Wastewater'!E$124 -> Ofwat view of G&C for capex - wastewater - non price control (post-override) | F48: ='G&C Wastewater'!F$124 -> 0 | G48: ='G&C Wastewater'!G$124 -> £m | H48: ='G&C Wastewater'!H$124 -> 45.99716259 | I48: ='G&C Wastewater'!I$124 -> 0 | J48: ='G&C Wastewater'!J$124 -> 0 | K48: ='G&C Wastewater'!K$124 -> 0 | L48: ='G&C Wastewater'!L$124 -> 13.70259836 | M48: ='G&C Wastewater'!M$124 -> 13.35317972 | N48: ='G&C Wastewater'!N$124 -> 7.080978938 | O48: ='G&C Wastewater'!O$124 -> 6.388832065 | P48: ='G&C Wastewater'!P$124 -> 5.471573504 | Q48: ='G&C Wastewater'!Q$124 -> 0 | R48: ='G&C Wastewater'!R$124 -> 0 | S48: ='G&C Wastewater'!S$124 -> 0 | T48: ='G&C Wastewater'!T$124 -> 0 | U48: ='G&C Wastewater'!U$124 -> 0
D49: plus | E49: =InpActive!E$159 -> Ofwat adjustment to capex - wastewater - non price control | F49: =InpActive!F$159 -> 0 | G49: =InpActive!G$159 -> £m | H49: =InpActive!H$159 -> 0 | I49: =InpActive!I$159 -> 0 | J49: =InpActive!J$159 -> 0 | K49: =InpActive!K$159 -> 0 | L49: =InpActive!L$159 -> 0 | M49: =InpActive!M$159 -> 0 | N49: =InpActive!N$159 -> 0 | O49: =InpActive!O$159 -> 0 | P49: =InpActive!P$159 -> 0 | Q49: =InpActive!Q$159 -> 0 | R49: =InpActive!R$159 -> 0 | S49: =InpActive!S$159 -> 0 | T49: =InpActive!T$159 -> 0 | U49: =InpActive!U$159 -> 0
E50: WWN - Grants and contributions - capital expenditure - non price control - real | G50: £m | H50: =SUM(J50:U50) -> 45.99716259 | J50: =J48 + J49 -> 0 | K50: =K48 + K49 -> 0 | L50: =L48 + L49 -> 13.70259836 | M50: =M48 + M49 -> 13.35317972 | N50: =N48 + N49 -> 7.080978938 | O50: =O48 + O49 -> 6.388832065 | P50: =P48 + P49 -> 5.471573504 | Q50: =Q48 + Q49 -> 0 | R50: =R48 + R49 -> 0 | S50: =S48 + S49 -> 0 | T50: =T48 + T49 -> 0 | U50: =U48 + U49 -> 0
E52: ='G&C Wastewater'!E$133 -> Ofwat view of G&C for opex - wastewater - price control (post-override) | F52: ='G&C Wastewater'!F$133 -> 0 | G52: ='G&C Wastewater'!G$133 -> £m | H52: ='G&C Wastewater'!H$133 -> 5.418103528 | I52: ='G&C Wastewater'!I$133 -> 0 | J52: ='G&C Wastewater'!J$133 -> 0 | K52: ='G&C Wastewater'!K$133 -> 0 | L52: ='G&C Wastewater'!L$133 -> 1.043201572 | M52: ='G&C Wastewater'!M$133 -> 1.035364089 | N52: ='G&C Wastewater'!N$133 -> 0.9787604575 | O52: ='G&C Wastewater'!O$133 -> 1.119907836 | P52: ='G&C Wastewater'!P$133 -> 1.240869574 | Q52: ='G&C Wastewater'!Q$133 -> 0 | R52: ='G&C Wastewater'!R$133 -> 0 | S52: ='G&C Wastewater'!S$133 -> 0 | T52: ='G&C Wastewater'!T$133 -> 0 | U52: ='G&C Wastewater'!U$133 -> 0
D53: plus | E53: =InpActive!E$160 -> Ofwat adjustment to opex - wastewater - price control | F53: =InpActive!F$160 -> 0 | G53: =InpActive!G$160 -> £m | H53: =InpActive!H$160 -> 0 | I53: =InpActive!I$160 -> 0 | J53: =InpActive!J$160 -> 0 | K53: =InpActive!K$160 -> 0 | L53: =InpActive!L$160 -> 0 | M53: =InpActive!M$160 -> 0 | N53: =InpActive!N$160 -> 0 | O53: =InpActive!O$160 -> 0 | P53: =InpActive!P$160 -> 0 | Q53: =InpActive!Q$160 -> 0 | R53: =InpActive!R$160 -> 0 | S53: =InpActive!S$160 -> 0 | T53: =InpActive!T$160 -> 0 | U53: =InpActive!U$160 -> 0
E54: WWN - Grants and contributions - operational expenditure - price control - real | G54: £m | H54: =SUM(J54:U54) -> 5.418103528 | J54: =J52 + J53 -> 0 | K54: =K52 + K53 -> 0 | L54: =L52 + L53 -> 1.043201572 | M54: =M52 + M53 -> 1.035364089 | N54: =N52 + N53 -> 0.9787604575 | O54: =O52 + O53 -> 1.119907836 | P54: =P52 + P53 -> 1.240869574 | Q54: =Q52 + Q53 -> 0 | R54: =R52 + R53 -> 0 | S54: =S52 + S53 -> 0 | T54: =T52 + T53 -> 0 | U54: =U52 + U53 -> 0
E56: ='G&C Wastewater'!E$141 -> Ofwat view of G&C for opex - wastewater - non price control (post-override) | F56: ='G&C Wastewater'!F$141 -> 0 | G56: ='G&C Wastewater'!G$141 -> £m | H56: ='G&C Wastewater'!H$141 -> 9.63218405 | I56: ='G&C Wastewater'!I$141 -> 0 | J56: ='G&C Wastewater'!J$141 -> 0 | K56: ='G&C Wastewater'!K$141 -> 0 | L56: ='G&C Wastewater'!L$141 -> 1.854580572 | M56: ='G&C Wastewater'!M$141 -> 1.84064727 | N56: ='G&C Wastewater'!N$141 -> 1.740018591 | O56: ='G&C Wastewater'!O$141 -> 1.990947264 | P56: ='G&C Wastewater'!P$141 -> 2.205990354 | Q56: ='G&C Wastewater'!Q$141 -> 0 | R56: ='G&C Wastewater'!R$141 -> 0 | S56: ='G&C Wastewater'!S$141 -> 0 | T56: ='G&C Wastewater'!T$141 -> 0 | U56: ='G&C Wastewater'!U$141 -> 0
D57: plus | E57: =InpActive!E$161 -> Ofwat adjustment to opex - wastewater - non price control | F57: =InpActive!F$161 -> 0 | G57: =InpActive!G$161 -> £m | H57: =InpActive!H$161 -> 0 | I57: =InpActive!I$161 -> 0 | J57: =InpActive!J$161 -> 0 | K57: =InpActive!K$161 -> 0 | L57: =InpActive!L$161 -> 0 | M57: =InpActive!M$161 -> 0 | N57: =InpActive!N$161 -> 0 | O57: =InpActive!O$161 -> 0 | P57: =InpActive!P$161 -> 0 | Q57: =InpActive!Q$161 -> 0 | R57: =InpActive!R$161 -> 0 | S57: =InpActive!S$161 -> 0 | T57: =InpActive!T$161 -> 0 | U57: =InpActive!U$161 -> 0
E58: WWN - Grants and contributions - operational expenditure - non price control - real | G58: £m | H58: =SUM(J58:U58) -> 9.63218405 | J58: =J56 + J57 -> 0 | K58: =K56 + K57 -> 0 | L58: =L56 + L57 -> 1.854580572 | M58: =M56 + M57 -> 1.84064727 | N58: =N56 + N57 -> 1.740018591 | O58: =O56 + O57 -> 1.990947264 | P58: =P56 + P57 -> 2.205990354 | Q58: =Q56 + Q57 -> 0 | R58: =R56 + R57 -> 0 | S58: =S56 + S57 -> 0 | T58: =T56 + T57 -> 0 | U58: =U56 + U57 -> 0
A60: Company view of G&C (for comparison with values calculated above)
D61: =F_Inputs!B$38 -> A19053WN | E61: =F_Inputs!C$38 -> Water network capital expenditure grants and contributions (price control) | F61: =F_Inputs!D$38 -> £m | L61: =F_Inputs!F$38 -> 27.10372499 | M61: =F_Inputs!G$38 -> 26.00285656 | N61: =F_Inputs!H$38 -> 24.63970935 | O61: =F_Inputs!I$38 -> 24.393573 | P61: =F_Inputs!J$38 -> 24.37694412
D62: =F_Inputs!B$40 -> A19055WN | E62: =F_Inputs!C$40 -> Water network capital expenditure grants and contributions (non-price control) | F62: =F_Inputs!D$40 -> £m | L62: =F_Inputs!F$40 -> 14.27957581 | M62: =F_Inputs!G$40 -> 13.24026443 | N62: =F_Inputs!H$40 -> 8.941083708 | O62: =F_Inputs!I$40 -> 8.017404892 | P62: =F_Inputs!J$40 -> 5.31266027
D63: =F_Inputs!B$37 -> A19052WN | E63: =F_Inputs!C$37 -> Water network operating expenditure grants and contributions (price control) | F63: =F_Inputs!D$37 -> £m | L63: =F_Inputs!F$37 -> 2.509184295 | M63: =F_Inputs!G$37 -> 2.535620089 | N63: =F_Inputs!H$37 -> 2.560459105 | O63: =F_Inputs!I$37 -> 2.585561645 | P63: =F_Inputs!J$37 -> 2.610910289
D64: =F_Inputs!B$39 -> A19054WN | E64: =F_Inputs!C$39 -> Water network operating expenditure grants and contributions (non-price control) | F64: =F_Inputs!D$39 -> £m | L64: =F_Inputs!F$39 -> 0 | M64: =F_Inputs!G$39 -> 0 | N64: =F_Inputs!H$39 -> 0 | O64: =F_Inputs!I$39 -> 0 | P64: =F_Inputs!J$39 -> 0
D66: =F_Inputs!B$34 -> A19049WR | E66: =F_Inputs!C$34 -> Water resources capital expenditure grants and contributions (price control) | F66: =F_Inputs!D$34 -> £m | L66: =F_Inputs!F$34 -> 0 | M66: =F_Inputs!G$34 -> 0 | N66: =F_Inputs!H$34 -> 0 | O66: =F_Inputs!I$34 -> 0 | P66: =F_Inputs!J$34 -> 0
D67: =F_Inputs!B$36 -> A19053WR | E67: =F_Inputs!C$36 -> Water resources capital expenditure grants and contributions (non-price control) | F67: =F_Inputs!D$36 -> £m | L67: =F_Inputs!F$36 -> 0 | M67: =F_Inputs!G$36 -> 0 | N67: =F_Inputs!H$36 -> 0 | O67: =F_Inputs!I$36 -> 0 | P67: =F_Inputs!J$36 -> 0
D68: =F_Inputs!B$33 -> A19048WR | E68: =F_Inputs!C$33 -> Water resources operating expenditure grants and contributions (price control) | F68: =F_Inputs!D$33 -> £m | L68: =F_Inputs!F$33 -> 0 | M68: =F_Inputs!G$33 -> 0 | N68: =F_Inputs!H$33 -> 0 | O68: =F_Inputs!I$33 -> 0 | P68: =F_Inputs!J$33 -> 0
D69: =F_Inputs!B$35 -> A19052WR | E69: =F_Inputs!C$35 -> Water resources operating expenditure grants and contributions (non-price control) | F69: =F_Inputs!D$35 -> £m | L69: =F_Inputs!F$35 -> 0 | M69: =F_Inputs!G$35 -> 0 | N69: =F_Inputs!H$35 -> 0 | O69: =F_Inputs!I$35 -> 0 | P69: =F_Inputs!J$35 -> 0
D71: =F_Inputs!B$42 -> A19053WWN | E71: =F_Inputs!C$42 -> Wastewater network capital expenditure grants and contributions (price control) | F71: =F_Inputs!D$42 -> £m | L71: =F_Inputs!F$42 -> 18.77229775 | M71: =F_Inputs!G$42 -> 18.43663035 | N71: =F_Inputs!H$42 -> 16.31570573 | O71: =F_Inputs!I$42 -> 16.64677283 | P71: =F_Inputs!J$42 -> 16.15677768
D72: =F_Inputs!B$44 -> A19055WWN | E72: =F_Inputs!C$44 -> Wastewater network capital expenditure grants and contributions (non-price control) | F72: =F_Inputs!D$44 -> £m | L72: =F_Inputs!F$44 -> 29.06725994 | M72: =F_Inputs!G$44 -> 26.29137878 | N72: =F_Inputs!H$44 -> 18.34507189 | O72: =F_Inputs!I$44 -> 14.80474883 | P72: =F_Inputs!J$44 -> 10.23457911
D73: =F_Inputs!B$41 -> A19052WWN | E73: =F_Inputs!C$41 -> Wastewater network operating expenditure grants and contributions (price control) | F73: =F_Inputs!D$41 -> £m | L73: =F_Inputs!F$41 -> 0.4057306099 | M73: =F_Inputs!G$41 -> 0.4183082588 | N73: =F_Inputs!H$41 -> 0.3880924366 | O73: =F_Inputs!I$41 -> 0.3918972644 | P73: =F_Inputs!J$41 -> 0.3957393945
D74: =F_Inputs!B$43 -> A19054WWN | E74: =F_Inputs!C$43 -> Wastewater network operating expenditure grants and contributions (non-price control) | F74: =F_Inputs!D$43 -> £m | L74: =F_Inputs!F$43 -> 0.721298862 | M74: =F_Inputs!G$43 -> 0.7436591267 | N74: =F_Inputs!H$43 -> 0.6899421095 | O74: =F_Inputs!I$43 -> 0.6967062479 | P74: =F_Inputs!J$43 -> 0.7035367013
A76: Efficiency Challenge
E77: =InpOverride!E12 -> Wastewater efficiency challenge - opex - override | F77: =InpOverride!F12 -> 0 | G77: =InpOverride!G12 -> %
E78: =InpOverride!E16 -> Wastewater efficiency challenge - capex - override | F78: =InpOverride!F16 -> 0 | G78: =InpOverride!G16 -> %
E79: =InpOverride!E20 -> Water efficiency challenge - opex - override | F79: =InpOverride!F20 -> 0 | G79: =InpOverride!G20 -> %
E80: =InpOverride!E24 -> Water efficiency challenge - capex - override | F80: =InpOverride!F24 -> 0 | G80: =InpOverride!G24 -> %
E82: =E77 -> Wastewater efficiency challenge - opex - override | F82: 0 | G82: %
E83: Wastewater efficiency challenge - capex - override | F83: 0 | G83: %
E84: Water efficiency challenge - opex - override | F84: 0 | G84: %
E85: =E80 -> Water efficiency challenge - capex - override | F85: =F80 -> 0 | G85: %
A87: Recovery Rates - calculated from company view
E88: ='G&C Water'!E$36 -> Company view of G&C recovery rate - new developments - water | F88: ='G&C Water'!F$36 -> 0 | G88: ='G&C Water'!G$36 -> % | H88: ='G&C Water'!H$36 -> 0 | I88: ='G&C Water'!I$36 -> 0 | J88: ='G&C Water'!J$36 -> 0 | K88: ='G&C Water'!K$36 -> 0 | L88: ='G&C Water'!L$36 -> 0.9736143679 | M88: ='G&C Water'!M$36 -> 0.5024357394 | N88: ='G&C Water'!N$36 -> 0.3157603668 | O88: ='G&C Water'!O$36 -> 0.3112800781 | P88: ='G&C Water'!P$36 -> 0.2537796196 | Q88: ='G&C Water'!Q$36 -> 0 | R88: ='G&C Water'!R$36 -> 0 | S88: ='G&C Water'!S$36 -> 0 | T88: ='G&C Water'!T$36 -> 0 | U88: ='G&C Water'!U$36 -> 0
E89: ='G&C Wastewater'!E$31 -> Company view of G&C recovery rate - new developments - wastewater | F89: ='G&C Wastewater'!F$31 -> 0 | G89: ='G&C Wastewater'!G$31 -> % | H89: ='G&C Wastewater'!H$31 -> 0 | I89: ='G&C Wastewater'!I$31 -> 0 | J89: ='G&C Wastewater'!J$31 -> 0 | K89: ='G&C Wastewater'!K$31 -> 0 | L89: ='G&C Wastewater'!L$31 -> 1.316163916 | M89: ='G&C Wastewater'!M$31 -> 1.22236529 | N89: ='G&C Wastewater'!N$31 -> 1.55622891 | O89: ='G&C Wastewater'!O$31 -> 1.35676712 | P89: ='G&C Wastewater'!P$31 -> 1.071728451 | Q89: ='G&C Wastewater'!Q$31 -> 0 | R89: ='G&C Wastewater'!R$31 -> 0 | S89: ='G&C Wastewater'!S$31 -> 0 | T89: ='G&C Wastewater'!T$31 -> 0 | U89: ='G&C Wastewater'!U$31 -> 0
E90: ='G&C Water'!E$43 -> Company view of G&C recovery rate - new connections - water | F90: ='G&C Water'!F$43 -> 0 | G90: ='G&C Water'!G$43 -> % | H90: ='G&C Water'!H$43 -> 0 | I90: ='G&C Water'!I$43 -> 0 | J90: ='G&C Water'!J$43 -> 0 | K90: ='G&C Water'!K$43 -> 0 | L90: ='G&C Water'!L$43 -> 0.9613306975 | M90: ='G&C Water'!M$43 -> 0.9640945831 | N90: ='G&C Water'!N$43 -> 0.9676016842 | O90: ='G&C Water'!O$43 -> 0.9692204878 | P90: ='G&C Water'!P$43 -> 0.9704161479 | Q90: ='G&C Water'!Q$43 -> 0 | R90: ='G&C Water'!R$43 -> 0 | S90: ='G&C Water'!S$43 -> 0 | T90: ='G&C Water'!T$43 -> 0 | U90: ='G&C Water'!U$43 -> 0
A93: End of sheet

Sheet F_Outputs
C1: PR19FM007_GC_Out
A2: Acronym | B2: Reference | C2: Item description | D2: Unit | E2: Model | F2: 2020-21 | G2: 2021-22 | H2: 2022-23 | I2: 2023-24 | J2: 2024-25
B4: PR19GC0001 | C4: ='G&C outputs'!E12 -> WN - Grants and contributions - capital expenditure - price control - real | D4: £m | E4: Price Review 2019 | F4: ='G&C outputs'!L12 -> 23.20972302 | G4: ='G&C outputs'!M12 -> 22.27443596 | H4: ='G&C outputs'!N12 -> 21.12962222 | I4: ='G&C outputs'!O12 -> 20.92017559 | J4: ='G&C outputs'!P12 -> 20.85654821
B5: PR19GC0002 | C5: ='G&C outputs'!E16 -> WN - Grants and contributions - capital expenditure - non price control - real | D5: £m | E5: Price Review 2019 | F5: ='G&C outputs'!L16 -> 12.22802399 | G5: ='G&C outputs'!M16 -> 11.34180859 | H5: ='G&C outputs'!N16 -> 7.667368082 | I5: ='G&C outputs'!O16 -> 6.875807744 | J5: ='G&C outputs'!P16 -> 4.545432539
B6: PR19GC0003 | C6: ='G&C outputs'!E20 -> WN - Grants and contributions - operational expenditure - price control - real | D6: £m | E6: Price Review 2019 | F6: ='G&C outputs'!L20 -> 3.710914711 | G6: ='G&C outputs'!M20 -> 3.602736617 | H6: ='G&C outputs'!N20 -> 3.436441155 | I6: ='G&C outputs'!O20 -> 3.408290418 | J6: ='G&C outputs'!P20 -> 3.455503088
B7: PR19GC0004 | C7: ='G&C outputs'!E24 -> WN - Grants and contributions - operational expenditure - non price control - real | D7: £m | E7: Price Review 2019 | F7: ='G&C outputs'!L24 -> 0 | G7: ='G&C outputs'!M24 -> 0 | H7: ='G&C outputs'!N24 -> 0 | I7: ='G&C outputs'!O24 -> 0 | J7: ='G&C outputs'!P24 -> 0
B8: PR19GC0005 | C8: ='G&C outputs'!E29 -> WR - Grants and contributions - capital expenditure - price control - real | D8: £m | E8: Price Review 2019 | F8: ='G&C outputs'!L29 -> 0 | G8: ='G&C outputs'!M29 -> 0 | H8: ='G&C outputs'!N29 -> 0 | I8: ='G&C outputs'!O29 -> 0 | J8: ='G&C outputs'!P29 -> 0
B9: PR19GC0006 | C9: ='G&C outputs'!E33 -> WR - Grants and contributions - capital expenditure - non price control - real | D9: £m | E9: Price Review 2019 | F9: ='G&C outputs'!L33 -> 0 | G9: ='G&C outputs'!M33 -> 0 | H9: ='G&C outputs'!N33 -> 0 | I9: ='G&C outputs'!O33 -> 0 | J9: ='G&C outputs'!P33 -> 0
B10: PR19GC0007 | C10: ='G&C outputs'!E37 -> WR - Grants and contributions - operational expenditure - price control - real | D10: £m | E10: Price Review 2019 | F10: ='G&C outputs'!L37 -> 0 | G10: ='G&C outputs'!M37 -> 0 | H10: ='G&C outputs'!N37 -> 0 | I10: ='G&C outputs'!O37 -> 0 | J10: ='G&C outputs'!P37 -> 0
B11: PR19GC0008 | C11: ='G&C outputs'!E41 -> WR - Grants and contributions - operational expenditure - non price control - real | D11: £m | E11: Price Review 2019 | F11: ='G&C outputs'!L41 -> 0 | G11: ='G&C outputs'!M41 -> 0 | H11: ='G&C outputs'!N41 -> 0 | I11: ='G&C outputs'!O41 -> 0 | J11: ='G&C outputs'!P41 -> 0
B12: PR19GC0009 | C12: ='G&C outputs'!E46 -> WWN - Grants and contributions - capital expenditure - price control - real | D12: £m | E12: Price Review 2019 | F12: ='G&C outputs'!L46 -> 8.849449754 | G12: ='G&C outputs'!M46 -> 9.3638162 | H12: ='G&C outputs'!N46 -> 6.297667804 | I12: ='G&C outputs'!O46 -> 7.183737949 | J12: ='G&C outputs'!P46 -> 8.637677791
B13: PR19GC0010 | C13: ='G&C outputs'!E50 -> WWN - Grants and contributions - capital expenditure - non price control - real | D13: £m | E13: Price Review 2019 | F13: ='G&C outputs'!L50 -> 13.70259836 | G13: ='G&C outputs'!M50 -> 13.35317972 | H13: ='G&C outputs'!N50 -> 7.080978938 | I13: ='G&C outputs'!O50 -> 6.388832065 | J13: ='G&C outputs'!P50 -> 5.471573504
B14: PR19GC0011 | C14: ='G&C outputs'!E54 -> WWN - Grants and contributions - operational expenditure - price control - real | D14: £m | E14: Price Review 2019 | F14: ='G&C outputs'!L54 -> 1.043201572 | G14: ='G&C outputs'!M54 -> 1.035364089 | H14: ='G&C outputs'!N54 -> 0.9787604575 | I14: ='G&C outputs'!O54 -> 1.119907836 | J14: ='G&C outputs'!P54 -> 1.240869574
B15: PR19GC0012 | C15: ='G&C outputs'!E58 -> WWN - Grants and contributions - operational expenditure - non price control - real | D15: £m | E15: Price Review 2019 | F15: ='G&C outputs'!L58 -> 1.854580572 | G15: ='G&C outputs'!M58 -> 1.84064727 | H15: ='G&C outputs'!N58 -> 1.740018591 | I15: ='G&C outputs'!O58 -> 1.990947264 | J15: ='G&C outputs'!P58 -> 2.205990354
B16: PR19GC0024 | C16: =InpOverride!E62 -> Ofwat view of G&C for capex - water network - price control (override) | D16: £m | E16: Price Review 2019 | F16: =InpOverride!$L62 -> 0 | G16: =InpOverride!$M62 -> 0 | H16: =InpOverride!$N62 -> 0 | I16: =InpOverride!$O62 -> 0 | J16: =InpOverride!$P62 -> 0
B17: PR19GC0025 | C17: =InpOverride!E63 -> Ofwat view of G&C for capex - water network - non price control (override) | D17: £m | E17: Price Review 2019 | F17: =InpOverride!$L63 -> 0 | G17: =InpOverride!$M63 -> 0 | H17: =InpOverride!$N63 -> 0 | I17: =InpOverride!$O63 -> 0 | J17: =InpOverride!$P63 -> 0
B18: PR19GC0026 | C18: =InpOverride!E64 -> Ofwat view of G&C for opex - water network - price control (override) | D18: £m | E18: Price Review 2019 | F18: =InpOverride!$L64 -> 0 | G18: =InpOverride!$M64 -> 0 | H18: =InpOverride!$N64 -> 0 | I18: =InpOverride!$O64 -> 0 | J18: =InpOverride!$P64 -> 0
B19: PR19GC0027 | C19: =InpOverride!E65 -> Ofwat view of G&C for opex - water network - non price control (override) | D19: £m | E19: Price Review 2019 | F19: =InpOverride!$L65 -> 0 | G19: =InpOverride!$M65 -> 0 | H19: =InpOverride!$N65 -> 0 | I19: =InpOverride!$O65 -> 0 | J19: =InpOverride!$P65 -> 0
B20: PR19GC0028 | C20: =InpOverride!E67 -> Ofwat view of G&C for capex - water resources - price control (override) | D20: £m | E20: Price Review 2019 | F20: =InpOverride!$L67 -> 0 | G20: =InpOverride!$M67 -> 0 | H20: =InpOverride!$N67 -> 0 | I20: =InpOverride!$O67 -> 0 | J20: =InpOverride!$P67 -> 0
B21: PR19GC0029 | C21: =InpOverride!E68 -> Ofwat view of G&C for capex - water resources - non price control (override) | D21: £m | E21: Price Review 2019 | F21: =InpOverride!$L68 -> 0 | G21: =InpOverride!$M68 -> 0 | H21: =InpOverride!$N68 -> 0 | I21: =InpOverride!$O68 -> 0 | J21: =InpOverride!$P68 -> 0
B22: PR19GC0030 | C22: =InpOverride!E69 -> Ofwat view of G&C for opex - water resources - price control (override) | D22: £m | E22: Price Review 2019 | F22: =InpOverride!$L69 -> 0 | G22: =InpOverride!$M69 -> 0 | H22: =InpOverride!$N69 -> 0 | I22: =InpOverride!$O69 -> 0 | J22: =InpOverride!$P69 -> 0
B23: PR19GC0031 | C23: =InpOverride!E70 -> Ofwat view of G&C for opex - water resources - non price control (override) | D23: £m | E23: Price Review 2019 | F23: =InpOverride!$L70 -> 0 | G23: =InpOverride!$M70 -> 0 | H23: =InpOverride!$N70 -> 0 | I23: =InpOverride!$O70 -> 0 | J23: =InpOverride!$P70 -> 0
B24: PR19GC0032 | C24: =InpOverride!E72 -> Ofwat view of G&C for capex - wastewater - price control (override) | D24: £m | E24: Price Review 2019 | F24: =InpOverride!$L72 -> 0 | G24: =InpOverride!$M72 -> 0 | H24: =InpOverride!$N72 -> 0 | I24: =InpOverride!$O72 -> 0 | J24: =InpOverride!$P72 -> 0
B25: PR19GC0033 | C25: =InpOverride!E73 -> Ofwat view of G&C for capex - wastewater - non price control (override) | D25: £m | E25: Price Review 2019 | F25: =InpOverride!$L73 -> 0 | G25: =InpOverride!$M73 -> 0 | H25: =InpOverride!$N73 -> 0 | I25: =InpOverride!$O73 -> 0 | J25: =InpOverride!$P73 -> 0
B26: PR19GC0034 | C26: =InpOverride!E74 -> Ofwat view of G&C for opex - wastewater - price control (override) | D26: £m | E26: Price Review 2019 | F26: =InpOverride!$L74 -> 0 | G26: =InpOverride!$M74 -> 0 | H26: =InpOverride!$N74 -> 0 | I26: =InpOverride!$O74 -> 0 | J26: =InpOverride!$P74 -> 0
B27: PR19GC0035 | C27: =InpOverride!E75 -> Ofwat view of G&C for opex - wastewater - non price control (override) | D27: £m | E27: Price Review 2019 | F27: =InpOverride!$L75 -> 0 | G27: =InpOverride!$M75 -> 0 | H27: =InpOverride!$N75 -> 0 | I27: =InpOverride!$O75 -> 0 | J27: =InpOverride!$P75 -> 0
B28: PR19GC0041 | C28: ='G&C outputs'!E82 -> Wastewater efficiency challenge - opex - override | D28: % | E28: Price Review 2019 | F28: ='G&C outputs'!$F82 -> 0 | G28: ='G&C outputs'!$F82 -> 0 | H28: ='G&C outputs'!$F82 -> 0 | I28: ='G&C outputs'!$F82 -> 0 | J28: ='G&C outputs'!$F82 -> 0
B29: PR19GC0043 | C29: ='G&C outputs'!E83 -> Wastewater efficiency challenge - capex - override | D29: % | E29: Price Review 2019 | F29: ='G&C outputs'!$F83 -> 0 | G29: ='G&C outputs'!$F83 -> 0 | H29: ='G&C outputs'!$F83 -> 0 | I29: ='G&C outputs'!$F83 -> 0 | J29: ='G&C outputs'!$F83 -> 0
B30: PR19GC0045 | C30: ='G&C outputs'!E84 -> Water efficiency challenge - opex - override | D30: % | E30: Price Review 2019 | F30: ='G&C outputs'!$F84 -> 0 | G30: ='G&C outputs'!$F84 -> 0 | H30: ='G&C outputs'!$F84 -> 0 | I30: ='G&C outputs'!$F84 -> 0 | J30: ='G&C outputs'!$F84 -> 0
B31: PR19GC0047 | C31: ='G&C outputs'!E85 -> Water efficiency challenge - capex - override | D31: % | E31: Price Review 2019 | F31: ='G&C outputs'!$F85 -> 0 | G31: ='G&C outputs'!$F85 -> 0 | H31: ='G&C outputs'!$F85 -> 0 | I31: ='G&C outputs'!$F85 -> 0 | J31: ='G&C outputs'!$F85 -> 0
B32: PR19GC0038 | C32: ='G&C outputs'!E88 -> Company view of G&C recovery rate - new developments - water | D32: % | E32: Price Review 2019 | F32: ='G&C outputs'!L88 -> 0.9736143679 | G32: ='G&C outputs'!M88 -> 0.5024357394 | H32: ='G&C outputs'!N88 -> 0.3157603668 | I32: ='G&C outputs'!O88 -> 0.3112800781 | J32: ='G&C outputs'!P88 -> 0.2537796196
B33: PR19GC0039 | C33: ='G&C outputs'!E89 -> Company view of G&C recovery rate - new developments - wastewater | D33: % | E33: Price Review 2019 | F33: ='G&C outputs'!L89 -> 1.316163916 | G33: ='G&C outputs'!M89 -> 1.22236529 | H33: ='G&C outputs'!N89 -> 1.55622891 | I33: ='G&C outputs'!O89 -> 1.35676712 | J33: ='G&C outputs'!P89 -> 1.071728451
B34: PR19GC0048 | C34: ='G&C outputs'!E90 -> Company view of G&C recovery rate - new connections - water | D34: % | E34: Price Review 2019 | F34: ='G&C outputs'!L90 -> 0.9613306975 | G34: ='G&C outputs'!M90 -> 0.9640945831 | H34: ='G&C outputs'!N90 -> 0.9676016842 | I34: ='G&C outputs'!O90 -> 0.9692204878 | J34: ='G&C outputs'!P90 -> 0.9704161479
B35: PR19GC0040_QA1 | C35: Grants and Contributions model date stamp | D35: text | E35: Price Review 2019 | F35: =CONCATENATE("[…]", TEXT(NOW(), "dd/mm/yyy hh:mm:ss")) -> […]12/07/2019 15:15:24 | G35: =CONCATENATE("[…]", TEXT(NOW(), "dd/mm/yyy hh:mm:ss")) -> […]12/07/2019 15:15:24 | H35: […]12/07/2019 15:15:24 | I35: […]12/07/2019 15:15:24 | J35: […]12/07/2019 15:15:24
B36: PR19GC0040_QA2 | C36: Grants and Contributions model time stamp | D36: text | E36: Price Review 2019 | F36: =CONCATENATE("[…]", TEXT(NOW(), "dd/mm/yyy hh:mm:ss")) -> […]12/07/2019 15:15:24 | G36: =CONCATENATE("[…]", TEXT(NOW(), "dd/mm/yyy hh:mm:ss")) -> […]12/07/2019 15:15:24 | H36: […]12/07/2019 15:15:24 | I36: […]12/07/2019 15:15:24 | J36: […]12/07/2019 15:15:24

Sheet QA >>

Sheet Track
A1: =RIGHT(CELL("filename", $A$1), LEN(CELL("filename", $A$1)) - SEARCH("]", CELL("filename", $A$1))) -> Track | F1: =IF(InpActive!$F$163 + InpOverride!$F$77 > 0, "Overrides", "No Overrides") -> No Overrides | M1: do not del col | O1: do not del col
F2: =Check!$F$11 -> 0 | G2: Checks | J2: =SUM(J7:J96) -> 44
F3: =J2 -> 44 | G3: Track chgs
G5: Unit | J5: =MATCH($H$6, M6:O6, 0) -> 2 | K5: Difference | L5: Diff %
E6: Comparison column label | H6: Nil inputs | N6: Nil inputs
E7: [do not delete row]
A8: INPUTS
C10: Water
C11: Business Plan Table Inputs | J11: =IF(ABS(K11) > CHK_TOL, 1, 0) -> 0 | K11: =H11 - INDEX(M11:O11, $J$5) -> 0 | L11: =IF(ABS(K11) > CHK_TOL, IF(INDEX(M11:O11, $J$5) = 0, 0, H11 / INDEX(M11:O11, $J$5) - 1), 0) -> 0 | N11: 0
E12: =InpActive!E103 -> New developments - Total | F12: =InpActive!F103 -> 0 | G12: =InpActive!G103 -> £m | H12: =InpActive!H103 -> 136.4680202 | J12: 1 | K12: 136.4680202 | L12: 0 | N12: 0
E13: =InpActive!E104 -> New connections element of new development (CPs, meters) - Total | F13: =InpActive!F104 -> 0 | G13: =InpActive!G104 -> £m | H13: =InpActive!H104 -> 118.0146718 | J13: 1 | K13: 118.0146718 | L13: 0 | N13: 0
E14: =InpActive!E109 -> Enhancement expenditure by purpose ~ operating - New developments - Total | F14: =InpActive!F109 -> 0 | G14: =InpActive!G109 -> £m | H14: =InpActive!H109 -> 0.3844088438 | J14: 1 | K14: 0.3844088438 | L14: 0 | N14: 0
E15: =InpActive!E110 -> Enhancement expenditure by purpose ~ operating - New connections element of new development (CPs, meters) - Total | F15: =InpActive!F110 -> 0 | G15: =InpActive!G110 -> £m | H15: =InpActive!H110 -> 0 | J15: 0 | K15: 0 | L15: 0 | N15: 0
E16: =InpActive!E55 -> Connection charges (s45) - water | F16: =InpActive!F55 -> 0 | G16: =InpActive!G55 -> £m | H16: =InpActive!H55 -> 114.047427 | J16: 1 | K16: 114.047427 | L16: 0 | N16: 0
E17: =InpActive!E56 -> Infrastructure charge receipts (s146) - water | F17: =InpActive!F56 -> 0 | G17: =InpActive!G56 -> £m | H17: =InpActive!H56 -> -36.45067384 | J17: 1 | K17: -36.45067384 | L17: 0 | N17: 0
E18: =InpActive!E57 -> Requisitioned mains (s43, s55 & s56) - water | F18: =InpActive!F57 -> 0 | G18: =InpActive!G57 -> £m | H18: =InpActive!H57 -> 33.39563352 | J18: 1 | K18: 33.39563352 | L18: 0 | N18: 0
E19: =InpActive!E58 -> Grants and contributions received ~ wholesale water service - Other contributions (price control) | F19: =InpActive!F58 -> 0 | G19: =InpActive!G58 -> £m | H19: =InpActive!H58 -> 10.80859661 | J19: 1 | K19: 10.80859661 | L19: 0 | N19: 0
E20: =InpActive!E59 -> Grants and contributions received ~ wholesale water service - Other contributions (non-price control) | F20: =InpActive!F59 -> 0 | G20: =InpActive!G59 -> £m | H20: =InpActive!H59 -> 49.7909891 | J20: =IF(ABS(K20) > CHK_TOL, 1, 0) -> 1 | K20: =H20 - INDEX(M20:O20, $J$5) -> 49.7909891 | L20: =IF(ABS(K20) > CHK_TOL, IF(INDEX(M20:O20, $J$5) = 0, 0, H20 / INDEX(M20:O20, $J$5) - 1), 0) -> 0 | N20: 0
E21: =InpActive!E60 -> Diversions (s185) | F21: =InpActive!F60 -> 0 | G21: =InpActive!G60 -> £m | H21: =InpActive!H60 -> 17.51756011 | J21: 1 | K21: 17.51756011 | L21: 0 | N21: 0
E22: =InpActive!E78 -> Water network operating expenditure grants and contributions (price control) | F22: =InpActive!F78 -> 0 | G22: =InpActive!G78 -> £m | H22: =InpActive!H78 -> 12.80173542 | J22: 1 | K22: 12.80173542 | L22: 0 | N22: 0
E23: =InpActive!E79 -> Water network capital expenditure grants and contributions (price control) | F23: =InpActive!F79 -> 0 | G23: =InpActive!G79 -> £m | H23: =InpActive!H79 -> 126.516808 | J23: 1 | K23: 126.516808 | L23: 0 | N23: 0
E24: =InpActive!E80 -> Water network operating expenditure grants and contributions (non-price control) | F24: =InpActive!F80 -> 0 | G24: =InpActive!G80 -> £m | H24: =InpActive!H80 -> 0 | J24: 0 | K24: 0 | L24: 0 | N24: 0
E25: =InpActive!E81 -> Water network capital expenditure grants and contributions (non-price control) | F25: =InpActive!F81 -> 0 | G25: =InpActive!G81 -> £m | H25: =InpActive!H81 -> 49.7909891 | J25: 1 | K25: 49.7909891 | L25: 0 | N25: 0
E26: =InpActive!E84 -> Water resources operating expenditure grants and contributions (price control) | F26: =InpActive!F84 -> 0 | G26: =InpActive!G84 -> £m | H26: =InpActive!H84 -> 0 | J26: 0 | K26: 0 | L26: 0 | N26: 0
E27: =InpActive!E85 -> Water resources capital expenditure grants and contributions (price control) | F27: =InpActive!F85 -> 0 | G27: =InpActive!G85 -> £m | H27: =InpActive!H85 -> 0 | J27: 0 | K27: 0 | L27: 0 | N27: 0
E28: =InpActive!E86 -> Water resources operating expenditure grants and contributions (non-price control) | F28: =InpActive!F86 -> 0 | G28: =InpActive!G86 -> £m | H28: =InpActive!H86 -> 0 | J28: 0 | K28: 0 | L28: 0 | N28: 0
E29: =InpActive!E87 -> Water resources capital expenditure grants and contributions (non-price control) | F29: =InpActive!F87 -> 0 | G29: =InpActive!G87 -> £m | H29: =InpActive!H87 -> 0 | J29: 0 | K29: 0 | L29: 0 | N29: 0
C30: Overrides | J30: 0 | K30: 0 | L30: 0 | N30: 0
E31: =InpActive!E126 -> Ofwat view of G&C for capex - water network - price control (override) | F31: =InpActive!F126 -> 0 | G31: =InpActive!G126 -> £m | H31: =InpActive!H126 -> 0 | J31: 0 | K31: 0 | L31: 0 | N31: 0
E32: =InpActive!E127 -> Ofwat view of G&C for capex - water network - non price control (override) | F32: =InpActive!F127 -> 0 | G32: =InpActive!G127 -> £m | H32: =InpActive!H127 -> 0 | J32: 0 | K32: 0 | L32: 0 | N32: 0
E33: =InpActive!E128 -> Ofwat view of G&C for opex - water network - price control (override) | F33: =InpActive!F128 -> 0 | G33: =InpActive!G128 -> £m | H33: =InpActive!H128 -> 0 | J33: 0 | K33: 0 | L33: 0 | N33: 0
E34: =InpActive!E129 -> Ofwat view of G&C for opex - water network - non price control (override) | F34: =InpActive!F129 -> 0 | G34: =InpActive!G129 -> £m | H34: =InpActive!H129 -> 0 | J34: 0 | K34: 0 | L34: 0 | N34: 0
E35: =InpOverride!E67 -> Ofwat view of G&C for capex - water resources - price control (override) | F35: =InpOverride!F67 -> 0 | G35: =InpOverride!G67 -> £m | H35: =InpOverride!H67 -> 0 | J35: 0 | K35: 0 | L35: 0 | N35: 0
E36: =InpOverride!E68 -> Ofwat view of G&C for capex - water resources - non price control (override) | F36: =InpOverride!F68 -> 0 | G36: =InpOverride!G68 -> £m | H36: =InpOverride!H68 -> 0 | J36: 0 | K36: 0 | L36: 0 | N36: 0
E37: =InpOverride!E69 -> Ofwat view of G&C for opex - water resources - price control (override) | F37: =InpOverride!F69 -> 0 | G37: =InpOverride!G69 -> £m | H37: =InpOverride!H69 -> 0 | J37: 0 | K37: 0 | L37: 0 | N37: 0
E38: =InpOverride!E70 -> Ofwat view of G&C for opex - water resources - non price control (override) | F38: =InpOverride!F70 -> 0 | G38: =InpOverride!G70 -> £m | H38: =InpOverride!H70 -> 0 | J38: 0 | K38: 0 | L38: 0 | N38: 0
E39: =InpActive!E$144 -> Water efficiency challenge - opex - (post override) | F39: =InpActive!F$144 -> 0.1390638769 | G39: =InpActive!G$144 -> % | H39: =F39 -> 0.1390638769 | J39: 1 | K39: =H39 - INDEX(M39:O39, $J$5) -> 0.1390638769 | L39: 0 | N39: 0
E40: =InpActive!E$145 -> Water efficiency challenge - capex - (post override) | F40: =InpActive!F$145 -> 0.1390638769 | G40: =InpActive!G$145 -> % | H40: 0.1390638769 | J40: 1 | K40: 0.1390638769 | L40: 0 | N40: 0
C41: Calculations | J41: 0 | K41: 0 | L41: 0 | N41: 0
E42: ='G&C Water'!E$63 -> Ofwat view of capex - new developments - water resources - 2017/18 FYA CPIH deflated | F42: ='G&C Water'!F$63 -> 0 | G42: ='G&C Water'!G$63 -> £m | H42: ='G&C Water'!H$63 -> 0 | J42: 0 | K42: 0 | L42: 0 | N42: 0
E43: ='G&C Water'!E$69 -> Ofwat view of capex - new developments (excl. diversions) - water network - 2017/18 FYA CPIH deflated | F43: ='G&C Water'!F$69 -> 0 | G43: ='G&C Water'!G$69 -> £m | H43: ='G&C Water'!H$69 -> 117.4902483 | J43: =IF(ABS(K43) > CHK_TOL, 1, 0) -> 1 | K43: =H43 - INDEX(M43:O43, $J$5) -> 117.4902483 | L43: =IF(ABS(K43) > CHK_TOL, IF(INDEX(M43:O43, $J$5) = 0, 0, H43 / INDEX(M43:O43, $J$5) - 1), 0) -> 0 | N43: 0
E44: ='G&C Water'!E$74 -> Ofwat view of water capex - new connections - water network - 2017/18 FYA CPIH deflated | F44: ='G&C Water'!F$74 -> 0 | G44: ='G&C Water'!G$74 -> £m | H44: ='G&C Water'!H$74 -> 101.603094 | J44: 1 | K44: 101.603094 | L44: 0 | N44: 0
E45: ='G&C Water'!E$80 -> Ofwat view of water opex - new developments - water resources - 2017/18 FYA CPIH deflated | F45: ='G&C Water'!F$80 -> 0 | G45: ='G&C Water'!G$80 -> £m | H45: ='G&C Water'!H$80 -> 0 | J45: 0 | K45: 0 | L45: 0 | N45: 0
E46: ='G&C Water'!E$86 -> Ofwat view of water opex - new developments less diversions - water network - 2017/18 FYA CPIH deflated | F46: ='G&C Water'!F$86 -> 0 | G46: ='G&C Water'!G$86 -> £m | H46: ='G&C Water'!H$86 -> 0.3309514597 | J46: 1 | K46: 0.3309514597 | L46: 0 | N46: 0
E47: ='G&C Water'!E$91 -> Ofwat view of water opex - new connections - water network - 2017/18 FYA CPIH deflated | F47: ='G&C Water'!F$91 -> 0 | G47: ='G&C Water'!G$91 -> £m | H47: ='G&C Water'!H$91 -> 0 | J47: 0 | K47: 0 | L47: 0 | N47: 0
E48: ='G&C Water'!E$100 -> Ofwat view of G&C for new developments capex - water resources - 2017/18 FYA CPIH deflated | F48: ='G&C Water'!F$100 -> 0 | G48: ='G&C Water'!G$100 -> £m | H48: ='G&C Water'!H$100 -> 0 | J48: 0 | K48: =H48 - INDEX(M48:O48, $J$5) -> 0 | L48: 0 | N48: 0
E49: ='G&C Water'!E$105 -> Ofwat view of G&C for new developments capex - water network - 2017/18 FYA CPIH deflated | F49: ='G&C Water'!F$105 -> 0 | G49: ='G&C Water'!G$105 -> £m | H49: ='G&C Water'!H$105 -> 49.44585194 | J49: 1 | K49: 49.44585194 | L49: 0 | N49: 0
E50: ='G&C Water'!E$110 -> Ofwat view of G&C for new developments opex - water resources - 2017/18 FYA CPIH deflated | F50: ='G&C Water'!F$110 -> 0 | G50: ='G&C Water'!G$110 -> £m | H50: ='G&C Water'!H$110 -> 0 | J50: 0 | K50: 0 | L50: 0 | N50: 0
E51: ='G&C Water'!E$115 -> Ofwat view of G&C for new developments opex - water network - 2017/18 FYA CPIH deflated | F51: ='G&C Water'!F$115 -> 0 | G51: ='G&C Water'!G$115 -> £m | H51: ='G&C Water'!H$115 -> 17.61388599 | J51: 1 | K51: 17.61388599 | L51: 0 | N51: 0
E52: ='G&C Water'!E$121 -> Ofwat view of G&C for new connections capex - water network - 2017/18 FYA CPIH deflated | F52: ='G&C Water'!F$121 -> 0 | G52: ='G&C Water'!G$121 -> £m | H52: ='G&C Water'!H$121 -> 101.603094 | J52: 1 | K52: 101.603094 | L52: 0 | N52: 0
E53: ='G&C Water'!E$126 -> Ofwat view of G&C for new connections opex - water network - 2017/18 FYA CPIH deflated | F53: ='G&C Water'!F$126 -> 0 | G53: ='G&C Water'!G$126 -> £m | H53: ='G&C Water'!H$126 -> 0 | J53: 0 | K53: 0 | L53: 0 | N53: 0
C54: Outputs | J54: 0 | K54: 0 | L54: 0 | N54: 0
E55: ='G&C outputs'!E12 -> WN - Grants and contributions - capital expenditure - price control - real | F55: ='G&C outputs'!F12 -> 0 | G55: ='G&C outputs'!G12 -> £m | H55: ='G&C outputs'!H12 -> 108.390505 | J55: 1 | K55: 108.390505 | L55: 0 | N55: 0
E56: ='G&C outputs'!E16 -> WN - Grants and contributions - capital expenditure - non price control - real | F56: ='G&C outputs'!F16 -> 0 | G56: ='G&C outputs'!G16 -> £m | H56: ='G&C outputs'!H16 -> 42.65844094 | J56: 1 | K56: =H56 - INDEX(M56:O56, $J$5) -> 42.65844094 | L56: 0 | N56: 0
E57: ='G&C outputs'!E20 -> WN - Grants and contributions - operational expenditure - price control - real | F57: ='G&C outputs'!F20 -> 0 | G57: ='G&C outputs'!G20 -> £m | H57: ='G&C outputs'!H20 -> 17.61388599 | J57: 1 | K57: 17.61388599 | L57: 0 | N57: 0
E58: ='G&C outputs'!E24 -> WN - Grants and contributions - operational expenditure - non price control - real | F58: ='G&C outputs'!F24 -> 0 | G58: ='G&C outputs'!G24 -> £m | H58: ='G&C outputs'!H24 -> 0 | J58: 0 | K58: 0 | L58: 0 | N58: 0
E59: ='G&C outputs'!E29 -> WR - Grants and contributions - capital expenditure - price control - real | F59: ='G&C outputs'!F29 -> 0 | G59: ='G&C outputs'!G29 -> £m | H59: ='G&C outputs'!H29 -> 0 | J59: 0 | K59: 0 | L59: 0 | N59: 0
E60: ='G&C outputs'!E33 -> WR - Grants and contributions - capital expenditure - non price control - real | F60: ='G&C outputs'!F33 -> 0 | G60: ='G&C outputs'!G33 -> £m | H60: ='G&C outputs'!H33 -> 0 | J60: 0 | K60: 0 | L60: 0 | N60: 0
E61: ='G&C outputs'!E37 -> WR - Grants and contributions - operational expenditure - price control - real | F61: ='G&C outputs'!F37 -> 0 | G61: ='G&C outputs'!G37 -> £m | H61: ='G&C outputs'!H37 -> 0 | J61: 0 | K61: 0 | L61: 0 | N61: 0
E62: ='G&C outputs'!E41 -> WR - Grants and contributions - operational expenditure - non price control - real | F62: ='G&C outputs'!F41 -> 0 | G62: ='G&C outputs'!G41 -> £m | H62: ='G&C outputs'!H41 -> 0 | J62: 0 | K62: 0 | L62: 0 | N62: 0
J63: 0 | K63: 0 | L63: 0 | N63: 0
C64: Wastewater | J64: 0 | K64: 0 | L64: 0 | N64: 0
C65: Business Plan Table Inputs | J65: 0 | K65: 0 | L65: 0 | N65: 0
E66: =InpActive!E$113 -> New development and growth - Total | F66: =InpActive!F113 -> 0 | G66: =InpActive!G113 -> £m | H66: =InpActive!H113 -> 130.8752265 | J66: 1 | K66: 130.8752265 | L66: 0 | N66: 0
E67: =InpActive!E$114 -> Enhancement expenditure by purpose - operating - New development and growth - Total | F67: =InpActive!F114 -> 0 | G67: =InpActive!G114 -> £m | H67: =InpActive!H114 -> 9.772418162 | J67: 1 | K67: 9.772418162 | L67: 0 | N67: 0
E68: =InpActive!E67 -> Infrastructure charge receipts (s146) - wastewater | F68: =InpActive!F67 -> 0 | G68: =InpActive!G67 -> £m | H68: =InpActive!H67 -> 60.70507414 | J68: =IF(ABS(K68) > CHK_TOL, 1, 0) -> 1 | K68: =H68 - INDEX(M68:O68, $J$5) -> 60.70507414 | L68: =IF(ABS(K68) > CHK_TOL, IF(INDEX(M68:O68, $J$5) = 0, 0, H68 / INDEX(M68:O68, $J$5) - 1), 0) -> 0 | N68: 0
E69: =InpActive!E68 -> Requisitioned sewers (s100) | F69: =InpActive!F68 -> 0 | G69: =InpActive!G68 -> £m | H69: =InpActive!H68 -> 15.29666624 | J69: 1 | K69: 15.29666624 | L69: 0 | N69: 0
E70: =InpActive!E69 -> Grants and contributions received ~ wholesale wastewater service - Other contributions (price control) | F70: =InpActive!F69 -> 0 | G70: =InpActive!G69 -> £m | H70: =InpActive!H69 -> 3.722125919 | J70: 1 | K70: 3.722125919 | L70: 0 | N70: 0
E71: =InpActive!E70 -> Grants and contributions received ~ wholesale wastewater service - Other contributions (non-price control) | F71: =InpActive!F70 -> 0 | G71: =InpActive!G70 -> £m | H71: =InpActive!H70 -> 102.2981816 | J71: 1 | K71: 102.2981816 | L71: 0 | N71: 0
E72: =InpActive!E71 -> Diversions (s185) | F72: =InpActive!F71 -> 0 | G72: =InpActive!G71 -> £m | H72: =InpActive!H71 -> 8.604085997 | J72: 1 | K72: 8.604085997 | L72: 0 | N72: 0
E73: =InpActive!E$90 -> Wastewater network operating expenditure grants and contributions (price control) | F73: =InpActive!F90 -> 0 | G73: =InpActive!G90 -> £m | H73: =InpActive!H90 -> 1.999767964 | J73: 1 | K73: 1.999767964 | L73: 0 | N73: 0
E74: =InpActive!E$91 -> Wastewater network capital expenditure grants and contributions (price control) | F74: =InpActive!F91 -> 0 | G74: =InpActive!G91 -> £m | H74: =InpActive!H91 -> 86.32818433 | J74: 1 | K74: 86.32818433 | L74: 0 | N74: 0
E75: =InpActive!E$92 -> Wastewater network operating expenditure grants and contributions (non-price control) | F75: =InpActive!F92 -> 0 | G75: =InpActive!G92 -> £m | H75: =InpActive!H92 -> 3.555143047 | J75: 1 | K75: 3.555143047 | L75: 0 | N75: 0
E76: =InpActive!E$93 -> Wastewater network capital expenditure grants and contributions (non-price control) | F76: =InpActive!F93 -> 0 | G76: =InpActive!G93 -> £m | H76: =InpActive!H93 -> 98.74303855 | J76: 1 | K76: 98.74303855 | L76: 0 | N76: 0
C77: Overrides | J77: 0 | K77: 0 | L77: 0 | N77: 0
E78: =InpActive!E$136 -> Ofwat view of G&C for capex - wastewater - price control (override) | F78: =InpActive!F$136 -> 0 | G78: =InpActive!G$136 -> £m | H78: =InpActive!H$136 -> 0 | J78: 0 | K78: 0 | L78: 0 | N78: 0
E79: =InpActive!E$137 -> Ofwat view of G&C for capex - wastewater - non price control (override) | F79: =InpActive!F$137 -> 0 | G79: =InpActive!G$137 -> £m | H79: =InpActive!H$137 -> 0 | J79: 0 | K79: 0 | L79: 0 | N79: 0
E80: =InpActive!E$138 -> Ofwat view of G&C for opex - wastewater - price control (override) | F80: =InpActive!F$138 -> 0 | G80: =InpActive!G$138 -> £m | H80: =InpActive!H$138 -> 0 | J80: =IF(ABS(K80) > CHK_TOL, 1, 0) -> 0 | K80: 0 | L80: =IF(ABS(K80) > CHK_TOL, IF(INDEX(M80:O80, $J$5) = 0, 0, H80 / INDEX(M80:O80, $J$5) - 1), 0) -> 0 | N80: 0
E81: =InpActive!E$139 -> Ofwat view of G&C for opex - wastewater - non price control (override) | F81: =InpActive!F$139 -> 0 | G81: =InpActive!G$139 -> £m | H81: =InpActive!H$139 -> 0 | J81: 0 | K81: 0 | L81: 0 | N81: 0
E82: =InpActive!E$142 -> Wastewater efficiency challenge - opex - (post override) | F82: =InpActive!F$142 -> 0.3403678112 | G82: =InpActive!G$142 -> % | H82: =F82 -> 0.3403678112 | J82: 1 | K82: 0.3403678112 | L82: 0 | N82: 0
E83: =InpActive!E$143 -> Wastewater efficiency challenge - capex - (post override) | F83: =InpActive!F$143 -> 0.3403678112 | G83: =InpActive!G$143 -> % | H83: =F83 -> 0.3403678112 | J83: 1 | K83: 0.3403678112 | L83: 0 | N83: 0
C84: Calculations | J84: 0 | K84: =H84 - INDEX(M84:O84, $J$5) -> 0 | L84: 0 | N84: 0
E85: ='G&C Wastewater'!E$46 -> Ofwat view of wholesale wastewater capex - new developments (excl. diversions) - 2017/18 FYA CPIH deflated | F85: ='G&C Wastewater'!F$46 -> 0 | G85: ='G&C Wastewater'!G$46 -> £m | H85: ='G&C Wastewater'!H$46 -> 86.32951209 | J85: 1 | K85: =H85 - INDEX(M85:O85, $J$5) -> 86.32951209 | L85: 0 | N85: 0
E86: ='G&C Wastewater'!E$51 -> Ofwat view of wholesale wastewater opex - new developments (excl. diversions) - 2017/18 FYA CPIH deflated | F86: ='G&C Wastewater'!F$51 -> 0 | G86: ='G&C Wastewater'!G$51 -> £m | H86: ='G&C Wastewater'!H$51 -> 6.446201582 | J86: 1 | K86: 6.446201582 | L86: 0 | N86: 0
E87: ='G&C Wastewater'!E$61 -> Ofwat view of G&C for new developments capex - wastewater - 2017/18 FYA CPIH deflated | F87: ='G&C Wastewater'!F$61 -> 0 | G87: ='G&C Wastewater'!G$61 -> £m | H87: ='G&C Wastewater'!H$61 -> 86.32951209 | J87: 1 | K87: 86.32951209 | L87: 0 | N87: 0
E88: ='G&C Wastewater'!E$67 -> Ofwat view of G&C for new developments opex - wastewater - 2017/18 FYA CPIH deflated | F88: ='G&C Wastewater'!F$67 -> 0 | G88: ='G&C Wastewater'!G$67 -> £m | H88: ='G&C Wastewater'!H$67 -> 15.05028758 | J88: 1 | K88: 15.05028758 | L88: 0 | N88: 0
C89: Outputs | J89: 0 | K89: 0 | L89: 0 | N89: 0
E90: ='G&C outputs'!$E$46 -> WWN - Grants and contributions - capital expenditure - price control - real | F90: ='G&C outputs'!F46 -> 0 | G90: ='G&C outputs'!G46 -> £m | H90: ='G&C outputs'!H46 -> 40.3323495 | J90: 1 | K90: 40.3323495 | L90: 0 | N90: 0
E91: ='G&C outputs'!E50 -> WWN - Grants and contributions - capital expenditure - non price control - real | F91: ='G&C outputs'!F50 -> 0 | G91: ='G&C outputs'!G50 -> £m | H91: ='G&C outputs'!H50 -> 45.99716259 | J91: 1 | K91: 45.99716259 | L91: 0 | N91: 0
E92: ='G&C outputs'!E54 -> WWN - Grants and contributions - operational expenditure - price control - real | F92: ='G&C outputs'!F54 -> 0 | G92: ='G&C outputs'!G54 -> £m | H92: ='G&C outputs'!H54 -> 5.418103528 | J92: 1 | K92: 5.418103528 | L92: 0 | N92: 0
E93: ='G&C outputs'!E58 -> WWN - Grants and contributions - operational expenditure - non price control - real | F93: ='G&C outputs'!F58 -> 0 | G93: ='G&C outputs'!G58 -> £m | H93: ='G&C outputs'!H58 -> 9.63218405 | J93: 1 | K93: 9.63218405 | L93: 0 | N93: 0
J94: 0 | K94: 0 | L94: 0 | N94: 0
A96: INFO ONLY
E98: Date | H98: =TODAY() -> 2019-07-12 | N98: 2018-04-04
E99: Time | H99: =NOW() -> 43658.6357 | N99: 43166.59595
E100: File | H100: =MID(CELL("filename",$A$1), SEARCH("[", CELL("filename",$A$1)) + 1, SEARCH("]", CELL("filename",$A$1)) - SEARCH("[", CELL("filename",$A$1)) - 1) -> Grants and Contributions model_TMS_ST_DD.xlsm | N100: G&C_v0.0.xlsm
E101: [do not delete row] | J101: range end
E103: Comment: Key input and logic changes | N103: Nil inputs
E104: Comment: Key result changes
A106: End of sheet

Sheet Check
A1: =RIGHT(CELL("filename", $A$1), LEN(CELL("filename", $A$1)) - SEARCH("]", CELL("filename", $A$1))) -> Check | F1: =IF(InpActive!$F$163 + InpOverride!$F$77 > 0, "Overrides", "No Overrides") -> No Overrides
F2: =F11 -> 0 | G2: Checks
F3: =F28 -> 44 | G3: Track chgs
F5: Constant
A7: CHECK SUMMARY
A9: MODEL INTEGRITY CHECKS
E11: Total model integrity checks | F11: =SUM(F15:F24) -> 0
E13: [do not delete row]
B15: Water
E16: ='G&C Water'!E$38 -> New developments G&C but no expenditure, water - check | F16: ='G&C Water'!F$38 -> 0
E17: ='G&C Water'!E$45 -> New connections G&C but no expenditure, water - check | F17: ='G&C Water'!F$45 -> 0
B19: Wastewater
E20: ='G&C Wastewater'!E$33 -> Wastewater G&C but no wastewater expenditure - check | F20: ='G&C Wastewater'!F33 -> 0
B22: App28 reconciliation
E23: ='G&C Water'!$E$197 -> Check company data table entries for Grants & Contributions - water | F23: ='G&C Water'!F$197 -> 0
E24: ='G&C Wastewater'!$E$105 -> Check company data table entries for Grants & Contributions - wastewater | F24: ='G&C Wastewater'!F$105 -> 0
E26: [do not delete row]
E28: Total track changes | F28: =Track!$F$3 -> 44
A31: End of sheet
